{"text_format":"1","workbook":"xlsx","n_sheets":2,"sheets":["חיפוש תוכנות","טבלת נתונים ב"],"not_rendered":{"charts":0,"images":2,"macros":1,"external_links":0,"defined_names":28,"comments":0,"pivot_tables":0},"unopened":[],"bounds":{"document_bytes":16777216,"sheet_cells":100000,"rows_first":2000,"rows_last":500,"rows_between":2000,"halvings":0,"cell_chars":16384,"cell_head_chars":4096},"cells_cut":0,"cells_raw":0,"read":"whole","date_system":"1900"}

{"sheet":"חיפוש תוכנות","index":0,"n_rows":80,"n_cols":20,"rows_kept":80,"cut":false,"hidden":false,"merged":[[23,0,45,0],[23,2,23,3],[25,2,25,3],[24,5,25,8],[27,9,32,11],[2,0,21,0],[2,1,2,10],[0,5,0,10],[0,11,0,12],[0,13,0,14],[0,0,0,4]]}
[null,null,null,null,null,"מצאי תוכנות קומה ב'",null,null,null,null,null,"מעודכן לתאריך:",null,{"$f":"'טבלת נתונים ב'!A2","v":"18/11/2018"}]
[]
["אגף צפוני",{"$f":"INDEX(Q3:Q28,P3)","v":"PASCO Capstone"},null,null,null,null,null,null,null,null,null,null,null,"בחר/י תוכנה ",null,26,"Office 2016","lib2-1-1",{"$f":"OR(AND(תוכנה_ב=Office_Microsoft,'טבלת נתונים ב'!B4=\"+\"),OR(AND(תוכנה_ב=Spss_17b,'טבלת נתונים ב'!C4=\"+\"),OR(AND(תוכנה_ב=Babylon_b,'טבלת נתונים ב'!D4=\"+\"),OR(AND(תוכנה_ב=Eclipse_Java_b,'טבלת נתונים ב'!E4=\"+\"),OR(AND(תוכנה_ב=Photoshop_CS3b,'טבלת נתונים ב'!F4=\"+\"),OR(AND(תוכנה_ב=Flash_b,'טבלת נתונים ב'!G4=\"+\"),OR(AND(תוכנה_ב=Nero9_b,'טבלת נתונים ב'!H4=\"+\"),OR(AND(תוכנה_ב=Tree_Viewb,'טבלת נתונים ב'!I4=\"+\"),OR(AND(תוכנה_ב=Audacity,'טבלת נתונים ב'!J4=\"+\"),OR(AND(תוכנה_ב=Gene_Runner,'טבלת נתונים ב'!K4=\"+\"),OR(AND(תוכנה_ב=Natural_Reader,'טבלת נתונים ב'!L4= \"+\"),OR(AND(תוכנה_ב=VLC,'טבלת נתונים ב'!M4=\"+\"),OR(AND(תוכנה_ב=Google_Earth,'טבלת נתונים ב'!N4=\"+\"),OR(AND(תוכנה_ב=Firefox,'טבלת נתונים ב'!O4=\"+\"),OR(AND(תוכנה_ב=Game_Maker,'טבלת נתונים ב'!P4=\"+\"),OR(AND(תוכנה_ב=Greenfoot,'טבלת נתונים ב'!Q4=\"+\"),OR(AND(תוכנה_ב=GeoGebra,'טבלת נתונים ב'!R4=\"+\"),OR(AND(תוכנה_ב=ArcG.I.S,'טבלת נתונים ב'!S4=\"+\"),OR(AND(תוכנה_ב=CLC_Sequence_Viewer,'טבלת נתונים ב'!T4=\"+\"),OR(AND(תוכנה_ב=MEGA_5x,'טבלת נתונים ב'!U4=\"+\"),OR(AND(תוכנה_ב=Chimera,'טבלת נתונים ב'!V4=\"+\"),OR(AND(תוכנה_ב=MultiLab,'טבלת נתונים ב'!W4=\"+\"),OR(AND(תוכנה_ב=Turbo_C,'טבלת נתונים ב'!X4=\"+\"),OR(AND(תוכנה_ב=Chrome,'טבלת נתונים ב'!Y4=\"+\"),OR(AND(תוכנה_ב=CodeBlocks,'טבלת נתונים ב'!Z4=\"+\"),OR(AND(תוכנה_ב=PASCO_Capstoe,'טבלת נתונים ב'!AA4=\"+\")))))))))))))))))))))))))))","v":false}]
[null,"lib2-1-1","lib2-1-2","lib2-1-3","lib2-1-4","lib2-1-5","lib2-1-6","lib2-1-7","lib2-1-8","שולחן","שולחן",null,null,"מתוך רשימה",null,null,"Spss 24","lib2-1-2",{"$f":"OR(AND(תוכנה_ב=Office_Microsoft,'טבלת נתונים ב'!B5=\"+\"),OR(AND(תוכנה_ב=Spss_17b,'טבלת נתונים ב'!C5=\"+\"),OR(AND(תוכנה_ב=Babylon_b,'טבלת נתונים ב'!D5=\"+\"),OR(AND(תוכנה_ב=Eclipse_Java_b,'טבלת נתונים ב'!E5=\"+\"),OR(AND(תוכנה_ב=Photoshop_CS3b,'טבלת נתונים ב'!F5=\"+\"),OR(AND(תוכנה_ב=Flash_b,'טבלת נתונים ב'!G5=\"+\"),OR(AND(תוכנה_ב=Nero9_b,'טבלת נתונים ב'!H5=\"+\"),OR(AND(תוכנה_ב=Tree_Viewb,'טבלת נתונים ב'!I5=\"+\"),OR(AND(תוכנה_ב=Audacity,'טבלת נתונים ב'!J5=\"+\"),OR(AND(תוכנה_ב=Gene_Runner,'טבלת נתונים ב'!K5=\"+\"),OR(AND(תוכנה_ב=Natural_Reader,'טבלת נתונים ב'!L5= \"+\"),OR(AND(תוכנה_ב=VLC,'טבלת נתונים ב'!M5=\"+\"),OR(AND(תוכנה_ב=Google_Earth,'טבלת נתונים ב'!N5=\"+\"),OR(AND(תוכנה_ב=Firefox,'טבלת נתונים ב'!O5=\"+\"),OR(AND(תוכנה_ב=Game_Maker,'טבלת נתונים ב'!P5=\"+\"),OR(AND(תוכנה_ב=Greenfoot,'טבלת נתונים ב'!Q5=\"+\"),OR(AND(תוכנה_ב=GeoGebra,'טבלת נתונים ב'!R5=\"+\"),OR(AND(תוכנה_ב=ArcG.I.S,'טבלת נתונים ב'!S5=\"+\"),OR(AND(תוכנה_ב=CLC_Sequence_Viewer,'טבלת נתונים ב'!T5=\"+\"),OR(AND(תוכנה_ב=MEGA_5x,'טבלת נתונים ב'!U5=\"+\"),OR(AND(תוכנה_ב=Chimera,'טבלת נתונים ב'!V5=\"+\"),OR(AND(תוכנה_ב=MultiLab,'טבלת נתונים ב'!W5=\"+\"),OR(AND(תוכנה_ב=Turbo_C,'טבלת נתונים ב'!X5=\"+\"),OR(AND(תוכנה_ב=Chrome,'טבלת נתונים ב'!Y5=\"+\"),OR(AND(תוכנה_ב=CodeBlocks,'טבלת נתונים ב'!Z5=\"+\"),OR(AND(תוכנה_ב=PASCO_Capstoe,'טבלת נתונים ב'!AA5=\"+\")))))))))))))))))))))))))))","v":false}]
[null,null,null,null,null,null,null,null,null,null,null,null,null,null,null,null,"Babylon","lib2-1-3",{"$f":"OR(AND(תוכנה_ב=Office_Microsoft,'טבלת נתונים ב'!B6=\"+\"),OR(AND(תוכנה_ב=Spss_17b,'טבלת נתונים ב'!C6=\"+\"),OR(AND(תוכנה_ב=Babylon_b,'טבלת נתונים ב'!D6=\"+\"),OR(AND(תוכנה_ב=Eclipse_Java_b,'טבלת נתונים ב'!E6=\"+\"),OR(AND(תוכנה_ב=Photoshop_CS3b,'טבלת נתונים ב'!F6=\"+\"),OR(AND(תוכנה_ב=Flash_b,'טבלת נתונים ב'!G6=\"+\"),OR(AND(תוכנה_ב=Nero9_b,'טבלת נתונים ב'!H6=\"+\"),OR(AND(תוכנה_ב=Tree_Viewb,'טבלת נתונים ב'!I6=\"+\"),OR(AND(תוכנה_ב=Audacity,'טבלת נתונים ב'!J6=\"+\"),OR(AND(תוכנה_ב=Gene_Runner,'טבלת נתונים ב'!K6=\"+\"),OR(AND(תוכנה_ב=Natural_Reader,'טבלת נתונים ב'!L6= \"+\"),OR(AND(תוכנה_ב=VLC,'טבלת נתונים ב'!M6=\"+\"),OR(AND(תוכנה_ב=Google_Earth,'טבלת נתונים ב'!N6=\"+\"),OR(AND(תוכנה_ב=Firefox,'טבלת נתונים ב'!O6=\"+\"),OR(AND(תוכנה_ב=Game_Maker,'טבלת נתונים ב'!P6=\"+\"),OR(AND(תוכנה_ב=Greenfoot,'טבלת נתונים ב'!Q6=\"+\"),OR(AND(תוכנה_ב=GeoGebra,'טבלת נתונים ב'!R6=\"+\"),OR(AND(תוכנה_ב=ArcG.I.S,'טבלת נתונים ב'!S6=\"+\"),OR(AND(תוכנה_ב=CLC_Sequence_Viewer,'טבלת נתונים ב'!T6=\"+\"),OR(AND(תוכנה_ב=MEGA_5x,'טבלת נתונים ב'!U6=\"+\"),OR(AND(תוכנה_ב=Chimera,'טבלת נתונים ב'!V6=\"+\"),OR(AND(תוכנה_ב=MultiLab,'טבלת נתונים ב'!W6=\"+\"),OR(AND(תוכנה_ב=Turbo_C,'טבלת נתונים ב'!X6=\"+\"),OR(AND(תוכנה_ב=Chrome,'טבלת נתונים ב'!Y6=\"+\"),OR(AND(תוכנה_ב=CodeBlocks,'טבלת נתונים ב'!Z6=\"+\"),OR(AND(תוכנה_ב=PASCO_Capstoe,'טבלת נתונים ב'!AA6=\"+\")))))))))))))))))))))))))))","v":false}]
[null,"lib2-2-1","lib2-2-2","lib2-2-3","lib2-2-4","lib2-2-5","lib2-2-6","lib2-2-7","lib2-2-8","שולחן","שולחן",null,null,null,null,null,"Eclipse-Java","lib2-1-4",{"$f":"OR(AND(תוכנה_ב=Office_Microsoft,'טבלת נתונים ב'!B7=\"+\"),OR(AND(תוכנה_ב=Spss_17b,'טבלת נתונים ב'!C7=\"+\"),OR(AND(תוכנה_ב=Babylon_b,'טבלת נתונים ב'!D7=\"+\"),OR(AND(תוכנה_ב=Eclipse_Java_b,'טבלת נתונים ב'!E7=\"+\"),OR(AND(תוכנה_ב=Photoshop_CS3b,'טבלת נתונים ב'!F7=\"+\"),OR(AND(תוכנה_ב=Flash_b,'טבלת נתונים ב'!G7=\"+\"),OR(AND(תוכנה_ב=Nero9_b,'טבלת נתונים ב'!H7=\"+\"),OR(AND(תוכנה_ב=Tree_Viewb,'טבלת נתונים ב'!I7=\"+\"),OR(AND(תוכנה_ב=Audacity,'טבלת נתונים ב'!J7=\"+\"),OR(AND(תוכנה_ב=Gene_Runner,'טבלת נתונים ב'!K7=\"+\"),OR(AND(תוכנה_ב=Natural_Reader,'טבלת נתונים ב'!L7= \"+\"),OR(AND(תוכנה_ב=VLC,'טבלת נתונים ב'!M7=\"+\"),OR(AND(תוכנה_ב=Google_Earth,'טבלת נתונים ב'!N7=\"+\"),OR(AND(תוכנה_ב=Firefox,'טבלת נתונים ב'!O7=\"+\"),OR(AND(תוכנה_ב=Game_Maker,'טבלת נתונים ב'!P7=\"+\"),OR(AND(תוכנה_ב=Greenfoot,'טבלת נתונים ב'!Q7=\"+\"),OR(AND(תוכנה_ב=GeoGebra,'טבלת נתונים ב'!R7=\"+\"),OR(AND(תוכנה_ב=ArcG.I.S,'טבלת נתונים ב'!S7=\"+\"),OR(AND(תוכנה_ב=CLC_Sequence_Viewer,'טבלת נתונים ב'!T7=\"+\"),OR(AND(תוכנה_ב=MEGA_5x,'טבלת נתונים ב'!U7=\"+\"),OR(AND(תוכנה_ב=Chimera,'טבלת נתונים ב'!V7=\"+\"),OR(AND(תוכנה_ב=MultiLab,'טבלת נתונים ב'!W7=\"+\"),OR(AND(תוכנה_ב=Turbo_C,'טבלת נתונים ב'!X7=\"+\"),OR(AND(תוכנה_ב=Chrome,'טבלת נתונים ב'!Y7=\"+\"),OR(AND(תוכנה_ב=CodeBlocks,'טבלת נתונים ב'!Z7=\"+\"),OR(AND(תוכנה_ב=PASCO_Capstoe,'טבלת נתונים ב'!AA7=\"+\")))))))))))))))))))))))))))","v":false}]
[null,null,null,null,null,null,null,null,null,null,null,null,null,null,null,null,"Photoshop CS3","lib2-1-5",{"$f":"OR(AND(תוכנה_ב=Office_Microsoft,'טבלת נתונים ב'!B8=\"+\"),OR(AND(תוכנה_ב=Spss_17b,'טבלת נתונים ב'!C8=\"+\"),OR(AND(תוכנה_ב=Babylon_b,'טבלת נתונים ב'!D8=\"+\"),OR(AND(תוכנה_ב=Eclipse_Java_b,'טבלת נתונים ב'!E8=\"+\"),OR(AND(תוכנה_ב=Photoshop_CS3b,'טבלת נתונים ב'!F8=\"+\"),OR(AND(תוכנה_ב=Flash_b,'טבלת נתונים ב'!G8=\"+\"),OR(AND(תוכנה_ב=Nero9_b,'טבלת נתונים ב'!H8=\"+\"),OR(AND(תוכנה_ב=Tree_Viewb,'טבלת נתונים ב'!I8=\"+\"),OR(AND(תוכנה_ב=Audacity,'טבלת נתונים ב'!J8=\"+\"),OR(AND(תוכנה_ב=Gene_Runner,'טבלת נתונים ב'!K8=\"+\"),OR(AND(תוכנה_ב=Natural_Reader,'טבלת נתונים ב'!L8= \"+\"),OR(AND(תוכנה_ב=VLC,'טבלת נתונים ב'!M8=\"+\"),OR(AND(תוכנה_ב=Google_Earth,'טבלת נתונים ב'!N8=\"+\"),OR(AND(תוכנה_ב=Firefox,'טבלת נתונים ב'!O8=\"+\"),OR(AND(תוכנה_ב=Game_Maker,'טבלת נתונים ב'!P8=\"+\"),OR(AND(תוכנה_ב=Greenfoot,'טבלת נתונים ב'!Q8=\"+\"),OR(AND(תוכנה_ב=GeoGebra,'טבלת נתונים ב'!R8=\"+\"),OR(AND(תוכנה_ב=ArcG.I.S,'טבלת נתונים ב'!S8=\"+\"),OR(AND(תוכנה_ב=CLC_Sequence_Viewer,'טבלת נתונים ב'!T8=\"+\"),OR(AND(תוכנה_ב=MEGA_5x,'טבלת נתונים ב'!U8=\"+\"),OR(AND(תוכנה_ב=Chimera,'טבלת נתונים ב'!V8=\"+\"),OR(AND(תוכנה_ב=MultiLab,'טבלת נתונים ב'!W8=\"+\"),OR(AND(תוכנה_ב=Turbo_C,'טבלת נתונים ב'!X8=\"+\"),OR(AND(תוכנה_ב=Chrome,'טבלת נתונים ב'!Y8=\"+\"),OR(AND(תוכנה_ב=CodeBlocks,'טבלת נתונים ב'!Z8=\"+\"),OR(AND(תוכנה_ב=PASCO_Capstoe,'טבלת נתונים ב'!AA8=\"+\")))))))))))))))))))))))))))","v":false}]
[null,"lib2-3-1","lib2-3-2","lib2-3-3","lib2-3-4","lib2-3-5","lib2-3-6","lib2-3-7","lib2-3-8","שולחן","שולחן",null,null,null,null,null,"Flash C3 prof","lib2-1-6",{"$f":"OR(AND(תוכנה_ב=Office_Microsoft,'טבלת נתונים ב'!B9=\"+\"),OR(AND(תוכנה_ב=Spss_17b,'טבלת נתונים ב'!C9=\"+\"),OR(AND(תוכנה_ב=Babylon_b,'טבלת נתונים ב'!D9=\"+\"),OR(AND(תוכנה_ב=Eclipse_Java_b,'טבלת נתונים ב'!E9=\"+\"),OR(AND(תוכנה_ב=Photoshop_CS3b,'טבלת נתונים ב'!F9=\"+\"),OR(AND(תוכנה_ב=Flash_b,'טבלת נתונים ב'!G9=\"+\"),OR(AND(תוכנה_ב=Nero9_b,'טבלת נתונים ב'!H9=\"+\"),OR(AND(תוכנה_ב=Tree_Viewb,'טבלת נתונים ב'!I9=\"+\"),OR(AND(תוכנה_ב=Audacity,'טבלת נתונים ב'!J9=\"+\"),OR(AND(תוכנה_ב=Gene_Runner,'טבלת נתונים ב'!K9=\"+\"),OR(AND(תוכנה_ב=Natural_Reader,'טבלת נתונים ב'!L9= \"+\"),OR(AND(תוכנה_ב=VLC,'טבלת נתונים ב'!M9=\"+\"),OR(AND(תוכנה_ב=Google_Earth,'טבלת נתונים ב'!N9=\"+\"),OR(AND(תוכנה_ב=Firefox,'טבלת נתונים ב'!O9=\"+\"),OR(AND(תוכנה_ב=Game_Maker,'טבלת נתונים ב'!P9=\"+\"),OR(AND(תוכנה_ב=Greenfoot,'טבלת נתונים ב'!Q9=\"+\"),OR(AND(תוכנה_ב=GeoGebra,'טבלת נתונים ב'!R9=\"+\"),OR(AND(תוכנה_ב=ArcG.I.S,'טבלת נתונים ב'!S9=\"+\"),OR(AND(תוכנה_ב=CLC_Sequence_Viewer,'טבלת נתונים ב'!T9=\"+\"),OR(AND(תוכנה_ב=MEGA_5x,'טבלת נתונים ב'!U9=\"+\"),OR(AND(תוכנה_ב=Chimera,'טבלת נתונים ב'!V9=\"+\"),OR(AND(תוכנה_ב=MultiLab,'טבלת נתונים ב'!W9=\"+\"),OR(AND(תוכנה_ב=Turbo_C,'טבלת נתונים ב'!X9=\"+\"),OR(AND(תוכנה_ב=Chrome,'טבלת נתונים ב'!Y9=\"+\"),OR(AND(תוכנה_ב=PASCO_Capstoe,'טבלת נתונים ב'!AA9=\"+\"))))))))))))))))))))))))))","v":false}]
[null,null,null,null,null,null,null,null,null,null,null,null,null,null,null,null,"Nero9","lib2-1-7",{"$f":"OR(AND(תוכנה_ב=Office_Microsoft,'טבלת נתונים ב'!B10=\"+\"),OR(AND(תוכנה_ב=Spss_17b,'טבלת נתונים ב'!C10=\"+\"),OR(AND(תוכנה_ב=Babylon_b,'טבלת נתונים ב'!D10=\"+\"),OR(AND(תוכנה_ב=Eclipse_Java_b,'טבלת נתונים ב'!E10=\"+\"),OR(AND(תוכנה_ב=Photoshop_CS3b,'טבלת נתונים ב'!F10=\"+\"),OR(AND(תוכנה_ב=Flash_b,'טבלת נתונים ב'!G10=\"+\"),OR(AND(תוכנה_ב=Nero9_b,'טבלת נתונים ב'!H10=\"+\"),OR(AND(תוכנה_ב=Tree_Viewb,'טבלת נתונים ב'!I10=\"+\"),OR(AND(תוכנה_ב=Audacity,'טבלת נתונים ב'!J10=\"+\"),OR(AND(תוכנה_ב=Gene_Runner,'טבלת נתונים ב'!K10=\"+\"),OR(AND(תוכנה_ב=Natural_Reader,'טבלת נתונים ב'!L10= \"+\"),OR(AND(תוכנה_ב=VLC,'טבלת נתונים ב'!M10=\"+\"),OR(AND(תוכנה_ב=Google_Earth,'טבלת נתונים ב'!N10=\"+\"),OR(AND(תוכנה_ב=Firefox,'טבלת נתונים ב'!O10=\"+\"),OR(AND(תוכנה_ב=Game_Maker,'טבלת נתונים ב'!P10=\"+\"),OR(AND(תוכנה_ב=Greenfoot,'טבלת נתונים ב'!Q10=\"+\"),OR(AND(תוכנה_ב=GeoGebra,'טבלת נתונים ב'!R10=\"+\"),OR(AND(תוכנה_ב=ArcG.I.S,'טבלת נתונים ב'!S10=\"+\"),OR(AND(תוכנה_ב=CLC_Sequence_Viewer,'טבלת נתונים ב'!T10=\"+\"),OR(AND(תוכנה_ב=MEGA_5x,'טבלת נתונים ב'!U10=\"+\"),OR(AND(תוכנה_ב=Chimera,'טבלת נתונים ב'!V10=\"+\"),OR(AND(תוכנה_ב=MultiLab,'טבלת נתונים ב'!W10=\"+\"),OR(AND(תוכנה_ב=Turbo_C,'טבלת נתונים ב'!X10=\"+\"),OR(AND(תוכנה_ב=Chrome,'טבלת נתונים ב'!Y10=\"+\"),OR(AND(תוכנה_ב=CodeBlocks,'טבלת נתונים ב'!Z10=\"+\"),OR(AND(תוכנה_ב=PASCO_Capstoe,'טבלת נתונים ב'!AA10=\"+\")))))))))))))))))))))))))))","v":false}]
[null,"lib2-4-1","lib2-4-2","lib2-4-3","lib2-4-4","lib2-4-5","lib2-4-6","lib2-4-7","lib2-4-8","שולחן","שולחן",null,null,null,null,null,"Tree View","lib2-1-8",{"$f":"OR(AND(תוכנה_ב=Office_Microsoft,'טבלת נתונים ב'!B11=\"+\"),OR(AND(תוכנה_ב=Spss_17b,'טבלת נתונים ב'!C11=\"+\"),OR(AND(תוכנה_ב=Babylon_b,'טבלת נתונים ב'!D11=\"+\"),OR(AND(תוכנה_ב=Eclipse_Java_b,'טבלת נתונים ב'!E11=\"+\"),OR(AND(תוכנה_ב=Photoshop_CS3b,'טבלת נתונים ב'!F11=\"+\"),OR(AND(תוכנה_ב=Flash_b,'טבלת נתונים ב'!G11=\"+\"),OR(AND(תוכנה_ב=Nero9_b,'טבלת נתונים ב'!H11=\"+\"),OR(AND(תוכנה_ב=Tree_Viewb,'טבלת נתונים ב'!I11=\"+\"),OR(AND(תוכנה_ב=Audacity,'טבלת נתונים ב'!J11=\"+\"),OR(AND(תוכנה_ב=Gene_Runner,'טבלת נתונים ב'!K11=\"+\"),OR(AND(תוכנה_ב=Natural_Reader,'טבלת נתונים ב'!L11= \"+\"),OR(AND(תוכנה_ב=VLC,'טבלת נתונים ב'!M11=\"+\"),OR(AND(תוכנה_ב=Google_Earth,'טבלת נתונים ב'!N11=\"+\"),OR(AND(תוכנה_ב=Firefox,'טבלת נתונים ב'!O11=\"+\"),OR(AND(תוכנה_ב=Game_Maker,'טבלת נתונים ב'!P11=\"+\"),OR(AND(תוכנה_ב=Greenfoot,'טבלת נתונים ב'!Q11=\"+\"),OR(AND(תוכנה_ב=GeoGebra,'טבלת נתונים ב'!R11=\"+\"),OR(AND(תוכנה_ב=ArcG.I.S,'טבלת נתונים ב'!S11=\"+\"),OR(AND(תוכנה_ב=CLC_Sequence_Viewer,'טבלת נתונים ב'!T11=\"+\"),OR(AND(תוכנה_ב=MEGA_5x,'טבלת נתונים ב'!U11=\"+\"),OR(AND(תוכנה_ב=Chimera,'טבלת נתונים ב'!V11=\"+\"),OR(AND(תוכנה_ב=MultiLab,'טבלת נתונים ב'!W11=\"+\"),OR(AND(תוכנה_ב=Turbo_C,'טבלת נתונים ב'!X11=\"+\"),OR(AND(תוכנה_ב=Chrome,'טבלת נתונים ב'!Y11=\"+\"),OR(AND(תוכנה_ב=CodeBlocks,'טבלת נתונים ב'!Z11=\"+\"),OR(AND(תוכנה_ב=PASCO_Capstoe,'טבלת נתונים ב'!AA11=\"+\")))))))))))))))))))))))))))","v":false}]
[null,null,null,null,null,null,null,null,null,null,null,null,null,null,null,null,"Audacity","lib2-2-1",{"$f":"OR(AND(תוכנה_ב=Office_Microsoft,'טבלת נתונים ב'!B12=\"+\"),OR(AND(תוכנה_ב=Spss_17b,'טבלת נתונים ב'!C12=\"+\"),OR(AND(תוכנה_ב=Babylon_b,'טבלת נתונים ב'!D12=\"+\"),OR(AND(תוכנה_ב=Eclipse_Java_b,'טבלת נתונים ב'!E12=\"+\"),OR(AND(תוכנה_ב=Photoshop_CS3b,'טבלת נתונים ב'!F12=\"+\"),OR(AND(תוכנה_ב=Flash_b,'טבלת נתונים ב'!G12=\"+\"),OR(AND(תוכנה_ב=Nero9_b,'טבלת נתונים ב'!H12=\"+\"),OR(AND(תוכנה_ב=Tree_Viewb,'טבלת נתונים ב'!I12=\"+\"),OR(AND(תוכנה_ב=Audacity,'טבלת נתונים ב'!J12=\"+\"),OR(AND(תוכנה_ב=Gene_Runner,'טבלת נתונים ב'!K12=\"+\"),OR(AND(תוכנה_ב=Natural_Reader,'טבלת נתונים ב'!L12= \"+\"),OR(AND(תוכנה_ב=VLC,'טבלת נתונים ב'!M12=\"+\"),OR(AND(תוכנה_ב=Google_Earth,'טבלת נתונים ב'!N12=\"+\"),OR(AND(תוכנה_ב=Firefox,'טבלת נתונים ב'!O12=\"+\"),OR(AND(תוכנה_ב=Game_Maker,'טבלת נתונים ב'!P12=\"+\"),OR(AND(תוכנה_ב=Greenfoot,'טבלת נתונים ב'!Q12=\"+\"),OR(AND(תוכנה_ב=GeoGebra,'טבלת נתונים ב'!R12=\"+\"),OR(AND(תוכנה_ב=ArcG.I.S,'טבלת נתונים ב'!S12=\"+\"),OR(AND(תוכנה_ב=CLC_Sequence_Viewer,'טבלת נתונים ב'!T12=\"+\"),OR(AND(תוכנה_ב=MEGA_5x,'טבלת נתונים ב'!U12=\"+\"),OR(AND(תוכנה_ב=Chimera,'טבלת נתונים ב'!V12=\"+\"),OR(AND(תוכנה_ב=MultiLab,'טבלת נתונים ב'!W12=\"+\"),OR(AND(תוכנה_ב=Turbo_C,'טבלת נתונים ב'!X12=\"+\"),OR(AND(תוכנה_ב=Chrome,'טבלת נתונים ב'!Y12=\"+\"),OR(AND(תוכנה_ב=CodeBlocks,'טבלת נתונים ב'!Z12=\"+\"),OR(AND(תוכנה_ב=PASCO_Capstoe,'טבלת נתונים ב'!AA11=\"+\")))))))))))))))))))))))))))","v":false}]
[null,"lib2-5-1","lib2-5-2","lib2-5-3","lib2-5-4","lib2-5-5","lib2-5-6","lib2-5-7","lib2-5-8","שולחן","שולחן",null,null,null,null,null,"Gene Runner","lib2-2-2",{"$f":"OR(AND(תוכנה_ב=Office_Microsoft,'טבלת נתונים ב'!B13=\"+\"),OR(AND(תוכנה_ב=Spss_17b,'טבלת נתונים ב'!C13=\"+\"),OR(AND(תוכנה_ב=Babylon_b,'טבלת נתונים ב'!D13=\"+\"),OR(AND(תוכנה_ב=Eclipse_Java_b,'טבלת נתונים ב'!E13=\"+\"),OR(AND(תוכנה_ב=Photoshop_CS3b,'טבלת נתונים ב'!F13=\"+\"),OR(AND(תוכנה_ב=Flash_b,'טבלת נתונים ב'!G13=\"+\"),OR(AND(תוכנה_ב=Nero9_b,'טבלת נתונים ב'!H13=\"+\"),OR(AND(תוכנה_ב=Tree_Viewb,'טבלת נתונים ב'!I13=\"+\"),OR(AND(תוכנה_ב=Audacity,'טבלת נתונים ב'!J13=\"+\"),OR(AND(תוכנה_ב=Gene_Runner,'טבלת נתונים ב'!K13=\"+\"),OR(AND(תוכנה_ב=Natural_Reader,'טבלת נתונים ב'!L13= \"+\"),OR(AND(תוכנה_ב=VLC,'טבלת נתונים ב'!M13=\"+\"),OR(AND(תוכנה_ב=Google_Earth,'טבלת נתונים ב'!N13=\"+\"),OR(AND(תוכנה_ב=Firefox,'טבלת נתונים ב'!O13=\"+\"),OR(AND(תוכנה_ב=Game_Maker,'טבלת נתונים ב'!P13=\"+\"),OR(AND(תוכנה_ב=Greenfoot,'טבלת נתונים ב'!Q13=\"+\"),OR(AND(תוכנה_ב=GeoGebra,'טבלת נתונים ב'!R13=\"+\"),OR(AND(תוכנה_ב=ArcG.I.S,'טבלת נתונים ב'!S13=\"+\"),OR(AND(תוכנה_ב=CLC_Sequence_Viewer,'טבלת נתונים ב'!T13=\"+\"),OR(AND(תוכנה_ב=MEGA_5x,'טבלת נתונים ב'!U13=\"+\"),OR(AND(תוכנה_ב=Chimera,'טבלת נתונים ב'!V13=\"+\"),OR(AND(תוכנה_ב=MultiLab,'טבלת נתונים ב'!W13=\"+\"),OR(AND(תוכנה_ב=Turbo_C,'טבלת נתונים ב'!X13=\"+\"),OR(AND(תוכנה_ב=Chrome,'טבלת נתונים ב'!Y13=\"+\"),OR(AND(תוכנה_ב=CodeBlocks,'טבלת נתונים ב'!Z13=\"+\"),OR(AND(תוכנה_ב=PASCO_Capstoe,'טבלת נתונים ב'!AA13=\"+\")))))))))))))))))))))))))))","v":false}]
[null,null,null,null,null,null,null,null,null,null,null,null,null,null,null,null,"Natural Reader","lib2-2-3",{"$f":"OR(AND(תוכנה_ב=Office_Microsoft,'טבלת נתונים ב'!B14=\"+\"),OR(AND(תוכנה_ב=Spss_17b,'טבלת נתונים ב'!C14=\"+\"),OR(AND(תוכנה_ב=Babylon_b,'טבלת נתונים ב'!D14=\"+\"),OR(AND(תוכנה_ב=Eclipse_Java_b,'טבלת נתונים ב'!E14=\"+\"),OR(AND(תוכנה_ב=Photoshop_CS3b,'טבלת נתונים ב'!F14=\"+\"),OR(AND(תוכנה_ב=Flash_b,'טבלת נתונים ב'!G14=\"+\"),OR(AND(תוכנה_ב=Nero9_b,'טבלת נתונים ב'!H14=\"+\"),OR(AND(תוכנה_ב=Tree_Viewb,'טבלת נתונים ב'!I14=\"+\"),OR(AND(תוכנה_ב=Audacity,'טבלת נתונים ב'!J14=\"+\"),OR(AND(תוכנה_ב=Gene_Runner,'טבלת נתונים ב'!K14=\"+\"),OR(AND(תוכנה_ב=Natural_Reader,'טבלת נתונים ב'!L14= \"+\"),OR(AND(תוכנה_ב=VLC,'טבלת נתונים ב'!M14=\"+\"),OR(AND(תוכנה_ב=Google_Earth,'טבלת נתונים ב'!N14=\"+\"),OR(AND(תוכנה_ב=Firefox,'טבלת נתונים ב'!O14=\"+\"),OR(AND(תוכנה_ב=Game_Maker,'טבלת נתונים ב'!P14=\"+\"),OR(AND(תוכנה_ב=Greenfoot,'טבלת נתונים ב'!Q14=\"+\"),OR(AND(תוכנה_ב=GeoGebra,'טבלת נתונים ב'!R14=\"+\"),OR(AND(תוכנה_ב=ArcG.I.S,'טבלת נתונים ב'!S14=\"+\"),OR(AND(תוכנה_ב=CLC_Sequence_Viewer,'טבלת נתונים ב'!T14=\"+\"),OR(AND(תוכנה_ב=MEGA_5x,'טבלת נתונים ב'!U14=\"+\"),OR(AND(תוכנה_ב=Chimera,'טבלת נתונים ב'!V14=\"+\"),OR(AND(תוכנה_ב=MultiLab,'טבלת נתונים ב'!W14=\"+\"),OR(AND(תוכנה_ב=Turbo_C,'טבלת נתונים ב'!X14=\"+\"),OR(AND(תוכנה_ב=Chrome,'טבלת נתונים ב'!Y14=\"+\"),OR(AND(תוכנה_ב=PASCO_Capstoe,'טבלת נתונים ב'!AA14=\"+\"))))))))))))))))))))))))))","v":false}]
[null,"lib2-6-1","lib2-6-2","lib2-6-3","lib2-6-4","lib2-6-5","lib2-6-6","שולחן","lib2-6-8","שולחן","שולחן",null,null,null,null,null,"VLC 2.4.2","lib2-2-4",{"$f":"OR(AND(תוכנה_ב=Office_Microsoft,'טבלת נתונים ב'!B15=\"+\"),OR(AND(תוכנה_ב=Spss_17b,'טבלת נתונים ב'!C15=\"+\"),OR(AND(תוכנה_ב=Babylon_b,'טבלת נתונים ב'!D15=\"+\"),OR(AND(תוכנה_ב=Eclipse_Java_b,'טבלת נתונים ב'!E15=\"+\"),OR(AND(תוכנה_ב=Photoshop_CS3b,'טבלת נתונים ב'!F15=\"+\"),OR(AND(תוכנה_ב=Flash_b,'טבלת נתונים ב'!G15=\"+\"),OR(AND(תוכנה_ב=Nero9_b,'טבלת נתונים ב'!H15=\"+\"),OR(AND(תוכנה_ב=Tree_Viewb,'טבלת נתונים ב'!I15=\"+\"),OR(AND(תוכנה_ב=Audacity,'טבלת נתונים ב'!J15=\"+\"),OR(AND(תוכנה_ב=Gene_Runner,'טבלת נתונים ב'!K15=\"+\"),OR(AND(תוכנה_ב=Natural_Reader,'טבלת נתונים ב'!L15= \"+\"),OR(AND(תוכנה_ב=VLC,'טבלת נתונים ב'!M15=\"+\"),OR(AND(תוכנה_ב=Google_Earth,'טבלת נתונים ב'!N15=\"+\"),OR(AND(תוכנה_ב=Firefox,'טבלת נתונים ב'!O15=\"+\"),OR(AND(תוכנה_ב=Game_Maker,'טבלת נתונים ב'!P15=\"+\"),OR(AND(תוכנה_ב=Greenfoot,'טבלת נתונים ב'!Q15=\"+\"),OR(AND(תוכנה_ב=GeoGebra,'טבלת נתונים ב'!R15=\"+\"),OR(AND(תוכנה_ב=ArcG.I.S,'טבלת נתונים ב'!S15=\"+\"),OR(AND(תוכנה_ב=CLC_Sequence_Viewer,'טבלת נתונים ב'!T15=\"+\"),OR(AND(תוכנה_ב=MEGA_5x,'טבלת נתונים ב'!U15=\"+\"),OR(AND(תוכנה_ב=Chimera,'טבלת נתונים ב'!V15=\"+\"),OR(AND(תוכנה_ב=MultiLab,'טבלת נתונים ב'!W15=\"+\"),OR(AND(תוכנה_ב=Turbo_C,'טבלת נתונים ב'!X15=\"+\"),OR(AND(תוכנה_ב=Chrome,'טבלת נתונים ב'!Y15=\"+\"),OR(AND(תוכנה_ב=CodeBlocks,'טבלת נתונים ב'!Z15=\"+\"),OR(AND(תוכנה_ב=PASCO_Capstoe,'טבלת נתונים ב'!AA15=\"+\")))))))))))))))))))))))))))","v":false}]
[null,null,null,null,null,null,null,null,null,null,null,null,null,null,null,null,"Google Earth","lib2-2-5",{"$f":"OR(AND(תוכנה_ב=Office_Microsoft,'טבלת נתונים ב'!B16=\"+\"),OR(AND(תוכנה_ב=Spss_17b,'טבלת נתונים ב'!C16=\"+\"),OR(AND(תוכנה_ב=Babylon_b,'טבלת נתונים ב'!D16=\"+\"),OR(AND(תוכנה_ב=Eclipse_Java_b,'טבלת נתונים ב'!E16=\"+\"),OR(AND(תוכנה_ב=Photoshop_CS3b,'טבלת נתונים ב'!F16=\"+\"),OR(AND(תוכנה_ב=Flash_b,'טבלת נתונים ב'!G16=\"+\"),OR(AND(תוכנה_ב=Nero9_b,'טבלת נתונים ב'!H16=\"+\"),OR(AND(תוכנה_ב=Tree_Viewb,'טבלת נתונים ב'!I16=\"+\"),OR(AND(תוכנה_ב=Audacity,'טבלת נתונים ב'!J16=\"+\"),OR(AND(תוכנה_ב=Gene_Runner,'טבלת נתונים ב'!K16=\"+\"),OR(AND(תוכנה_ב=Natural_Reader,'טבלת נתונים ב'!L16= \"+\"),OR(AND(תוכנה_ב=VLC,'טבלת נתונים ב'!M16=\"+\"),OR(AND(תוכנה_ב=Google_Earth,'טבלת נתונים ב'!N16=\"+\"),OR(AND(תוכנה_ב=Firefox,'טבלת נתונים ב'!O16=\"+\"),OR(AND(תוכנה_ב=Game_Maker,'טבלת נתונים ב'!P16=\"+\"),OR(AND(תוכנה_ב=Greenfoot,'טבלת נתונים ב'!Q16=\"+\"),OR(AND(תוכנה_ב=GeoGebra,'טבלת נתונים ב'!R16=\"+\"),OR(AND(תוכנה_ב=ArcG.I.S,'טבלת נתונים ב'!S16=\"+\"),OR(AND(תוכנה_ב=CLC_Sequence_Viewer,'טבלת נתונים ב'!T16=\"+\"),OR(AND(תוכנה_ב=MEGA_5x,'טבלת נתונים ב'!U16=\"+\"),OR(AND(תוכנה_ב=Chimera,'טבלת נתונים ב'!V16=\"+\"),OR(AND(תוכנה_ב=MultiLab,'טבלת נתונים ב'!W16=\"+\"),OR(AND(תוכנה_ב=Turbo_C,'טבלת נתונים ב'!X16=\"+\"),OR(AND(תוכנה_ב=Chrome,'טבלת נתונים ב'!Y16=\"+\"),OR(AND(תוכנה_ב=CodeBlocks,'טבלת נתונים ב'!Z16=\"+\"),OR(AND(תוכנה_ב=PASCO_Capstoe,'טבלת נתונים ב'!AA16=\"+\")))))))))))))))))))))))))))","v":false}]
[null,"lib2-7-1","lib2-7-2","lib2-7-3","שולחן","שולחן","lib2-7-6","שולחן","lib2-7-8",null,null,null,null,null,null,null,"Firefox","lib2-2-6",{"$f":"OR(AND(תוכנה_ב=Office_Microsoft,'טבלת נתונים ב'!B17=\"+\"),OR(AND(תוכנה_ב=Spss_17b,'טבלת נתונים ב'!C17=\"+\"),OR(AND(תוכנה_ב=Babylon_b,'טבלת נתונים ב'!D17=\"+\"),OR(AND(תוכנה_ב=Eclipse_Java_b,'טבלת נתונים ב'!E17=\"+\"),OR(AND(תוכנה_ב=Photoshop_CS3b,'טבלת נתונים ב'!F17=\"+\"),OR(AND(תוכנה_ב=Flash_b,'טבלת נתונים ב'!G17=\"+\"),OR(AND(תוכנה_ב=Nero9_b,'טבלת נתונים ב'!H17=\"+\"),OR(AND(תוכנה_ב=Tree_Viewb,'טבלת נתונים ב'!I17=\"+\"),OR(AND(תוכנה_ב=Audacity,'טבלת נתונים ב'!J17=\"+\"),OR(AND(תוכנה_ב=Gene_Runner,'טבלת נתונים ב'!K17=\"+\"),OR(AND(תוכנה_ב=Natural_Reader,'טבלת נתונים ב'!L17= \"+\"),OR(AND(תוכנה_ב=VLC,'טבלת נתונים ב'!M17=\"+\"),OR(AND(תוכנה_ב=Google_Earth,'טבלת נתונים ב'!N17=\"+\"),OR(AND(תוכנה_ב=Firefox,'טבלת נתונים ב'!O17=\"+\"),OR(AND(תוכנה_ב=Game_Maker,'טבלת נתונים ב'!P17=\"+\"),OR(AND(תוכנה_ב=Greenfoot,'טבלת נתונים ב'!Q17=\"+\"),OR(AND(תוכנה_ב=GeoGebra,'טבלת נתונים ב'!R17=\"+\"),OR(AND(תוכנה_ב=ArcG.I.S,'טבלת נתונים ב'!S17=\"+\"),OR(AND(תוכנה_ב=CLC_Sequence_Viewer,'טבלת נתונים ב'!T17=\"+\"),OR(AND(תוכנה_ב=MEGA_5x,'טבלת נתונים ב'!U17=\"+\"),OR(AND(תוכנה_ב=Chimera,'טבלת נתונים ב'!V17=\"+\"),OR(AND(תוכנה_ב=MultiLab,'טבלת נתונים ב'!W17=\"+\"),OR(AND(תוכנה_ב=Turbo_C,'טבלת נתונים ב'!X17=\"+\"),OR(AND(תוכנה_ב=Chrome,'טבלת נתונים ב'!Y17=\"+\"),OR(AND(תוכנה_ב=CodeBlocks,'טבלת נתונים ב'!Z17=\"+\"),OR(AND(תוכנה_ב=PASCO_Capstoe,'טבלת נתונים ב'!AA17=\"+\")))))))))))))))))))))))))))","v":false}]
[null,null,null,null,null,null,null,null,null,null,null,null,null,null,null,null,"Game Maker","lib2-2-7",{"$f":"OR(AND(תוכנה_ב=Office_Microsoft,'טבלת נתונים ב'!B18=\"+\"),OR(AND(תוכנה_ב=Spss_17b,'טבלת נתונים ב'!C18=\"+\"),OR(AND(תוכנה_ב=Babylon_b,'טבלת נתונים ב'!D18=\"+\"),OR(AND(תוכנה_ב=Eclipse_Java_b,'טבלת נתונים ב'!E18=\"+\"),OR(AND(תוכנה_ב=Photoshop_CS3b,'טבלת נתונים ב'!F18=\"+\"),OR(AND(תוכנה_ב=Flash_b,'טבלת נתונים ב'!G18=\"+\"),OR(AND(תוכנה_ב=Nero9_b,'טבלת נתונים ב'!H18=\"+\"),OR(AND(תוכנה_ב=Tree_Viewb,'טבלת נתונים ב'!I18=\"+\"),OR(AND(תוכנה_ב=Audacity,'טבלת נתונים ב'!J18=\"+\"),OR(AND(תוכנה_ב=Gene_Runner,'טבלת נתונים ב'!K18=\"+\"),OR(AND(תוכנה_ב=Natural_Reader,'טבלת נתונים ב'!L18= \"+\"),OR(AND(תוכנה_ב=VLC,'טבלת נתונים ב'!M18=\"+\"),OR(AND(תוכנה_ב=Google_Earth,'טבלת נתונים ב'!N18=\"+\"),OR(AND(תוכנה_ב=Firefox,'טבלת נתונים ב'!O18=\"+\"),OR(AND(תוכנה_ב=Game_Maker,'טבלת נתונים ב'!P18=\"+\"),OR(AND(תוכנה_ב=Greenfoot,'טבלת נתונים ב'!Q18=\"+\"),OR(AND(תוכנה_ב=GeoGebra,'טבלת נתונים ב'!R18=\"+\"),OR(AND(תוכנה_ב=ArcG.I.S,'טבלת נתונים ב'!S18=\"+\"),OR(AND(תוכנה_ב=CLC_Sequence_Viewer,'טבלת נתונים ב'!T18=\"+\"),OR(AND(תוכנה_ב=MEGA_5x,'טבלת נתונים ב'!U18=\"+\"),OR(AND(תוכנה_ב=Chimera,'טבלת נתונים ב'!V18=\"+\"),OR(AND(תוכנה_ב=MultiLab,'טבלת נתונים ב'!W18=\"+\"),OR(AND(תוכנה_ב=Turbo_C,'טבלת נתונים ב'!X18=\"+\"),OR(AND(תוכנה_ב=Chrome,'טבלת נתונים ב'!Y18=\"+\"),OR(AND(תוכנה_ב=CodeBlocks,'טבלת נתונים ב'!Z18=\"+\"),OR(AND(תוכנה_ב=PASCO_Capstoe,'טבלת נתונים ב'!AA17=\"+\")))))))))))))))))))))))))))","v":false}]
[null,"lib2-8-1","lib2-8-2","lib2-8-3","שולחן","שולחן","lib2-8-6","שולחן","lib2-8-8",null,null,null,null,null,null,null,"Greenfoot","lib2-2-8",{"$f":"OR(AND(תוכנה_ב=Office_Microsoft,'טבלת נתונים ב'!B19=\"+\"),OR(AND(תוכנה_ב=Spss_17b,'טבלת נתונים ב'!C19=\"+\"),OR(AND(תוכנה_ב=Babylon_b,'טבלת נתונים ב'!D19=\"+\"),OR(AND(תוכנה_ב=Eclipse_Java_b,'טבלת נתונים ב'!E19=\"+\"),OR(AND(תוכנה_ב=Photoshop_CS3b,'טבלת נתונים ב'!F19=\"+\"),OR(AND(תוכנה_ב=Flash_b,'טבלת נתונים ב'!G19=\"+\"),OR(AND(תוכנה_ב=Nero9_b,'טבלת נתונים ב'!H19=\"+\"),OR(AND(תוכנה_ב=Tree_Viewb,'טבלת נתונים ב'!I19=\"+\"),OR(AND(תוכנה_ב=Audacity,'טבלת נתונים ב'!J19=\"+\"),OR(AND(תוכנה_ב=Gene_Runner,'טבלת נתונים ב'!K19=\"+\"),OR(AND(תוכנה_ב=Natural_Reader,'טבלת נתונים ב'!L19= \"+\"),OR(AND(תוכנה_ב=VLC,'טבלת נתונים ב'!M19=\"+\"),OR(AND(תוכנה_ב=Google_Earth,'טבלת נתונים ב'!N19=\"+\"),OR(AND(תוכנה_ב=Firefox,'טבלת נתונים ב'!O19=\"+\"),OR(AND(תוכנה_ב=Game_Maker,'טבלת נתונים ב'!P19=\"+\"),OR(AND(תוכנה_ב=Greenfoot,'טבלת נתונים ב'!Q19=\"+\"),OR(AND(תוכנה_ב=GeoGebra,'טבלת נתונים ב'!R19=\"+\"),OR(AND(תוכנה_ב=ArcG.I.S,'טבלת נתונים ב'!S19=\"+\"),OR(AND(תוכנה_ב=CLC_Sequence_Viewer,'טבלת נתונים ב'!T19=\"+\"),OR(AND(תוכנה_ב=MEGA_5x,'טבלת נתונים ב'!U19=\"+\"),OR(AND(תוכנה_ב=Chimera,'טבלת נתונים ב'!V19=\"+\"),OR(AND(תוכנה_ב=MultiLab,'טבלת נתונים ב'!W19=\"+\"),OR(AND(תוכנה_ב=Turbo_C,'טבלת נתונים ב'!X19=\"+\"),OR(AND(תוכנה_ב=Chrome,'טבלת נתונים ב'!Y19=\"+\"),OR(AND(תוכנה_ב=CodeBlocks,'טבלת נתונים ב'!Z19=\"+\"),OR(AND(תוכנה_ב=PASCO_Capstoe,'טבלת נתונים ב'!AA19=\"+\")))))))))))))))))))))))))))","v":false}]
[null,null,null,null,null,null,null,null,null,null,null,null,null,null,null,null,"GeoGebra","lib2-3-1",{"$f":"OR(AND(תוכנה_ב=Office_Microsoft,'טבלת נתונים ב'!B20=\"+\"),OR(AND(תוכנה_ב=Spss_17b,'טבלת נתונים ב'!C20=\"+\"),OR(AND(תוכנה_ב=Babylon_b,'טבלת נתונים ב'!D20=\"+\"),OR(AND(תוכנה_ב=Eclipse_Java_b,'טבלת נתונים ב'!E20=\"+\"),OR(AND(תוכנה_ב=Photoshop_CS3b,'טבלת נתונים ב'!F20=\"+\"),OR(AND(תוכנה_ב=Flash_b,'טבלת נתונים ב'!G20=\"+\"),OR(AND(תוכנה_ב=Nero9_b,'טבלת נתונים ב'!H20=\"+\"),OR(AND(תוכנה_ב=Tree_Viewb,'טבלת נתונים ב'!I20=\"+\"),OR(AND(תוכנה_ב=Audacity,'טבלת נתונים ב'!J20=\"+\"),OR(AND(תוכנה_ב=Gene_Runner,'טבלת נתונים ב'!K20=\"+\"),OR(AND(תוכנה_ב=Natural_Reader,'טבלת נתונים ב'!L20= \"+\"),OR(AND(תוכנה_ב=VLC,'טבלת נתונים ב'!M20=\"+\"),OR(AND(תוכנה_ב=Google_Earth,'טבלת נתונים ב'!N20=\"+\"),OR(AND(תוכנה_ב=Firefox,'טבלת נתונים ב'!O20=\"+\"),OR(AND(תוכנה_ב=Game_Maker,'טבלת נתונים ב'!P20=\"+\"),OR(AND(תוכנה_ב=Greenfoot,'טבלת נתונים ב'!Q20=\"+\"),OR(AND(תוכנה_ב=GeoGebra,'טבלת נתונים ב'!R20=\"+\"),OR(AND(תוכנה_ב=ArcG.I.S,'טבלת נתונים ב'!S20=\"+\"),OR(AND(תוכנה_ב=CLC_Sequence_Viewer,'טבלת נתונים ב'!T20=\"+\"),OR(AND(תוכנה_ב=MEGA_5x,'טבלת נתונים ב'!U20=\"+\"),OR(AND(תוכנה_ב=Chimera,'טבלת נתונים ב'!V20=\"+\"),OR(AND(תוכנה_ב=MultiLab,'טבלת נתונים ב'!W20=\"+\"),OR(AND(תוכנה_ב=Turbo_C,'טבלת נתונים ב'!X20=\"+\"),OR(AND(תוכנה_ב=Chrome,'טבלת נתונים ב'!Y20=\"+\"),OR(AND(תוכנה_ב=CodeBlocks,'טבלת נתונים ב'!Z20=\"+\"),OR(AND(תוכנה_ב=PASCO_Capstoe,'טבלת נתונים ב'!AA20=\"+\")))))))))))))))))))))))))))","v":false}]
[null,null,null,null,null,"שולחן","שולחן","שולחן",null,null,null,null,null,null,null,null,"ArcG.I.S","lib2-3-2",{"$f":"OR(AND(תוכנה_ב=Office_Microsoft,'טבלת נתונים ב'!B21=\"+\"),OR(AND(תוכנה_ב=Spss_17b,'טבלת נתונים ב'!C21=\"+\"),OR(AND(תוכנה_ב=Babylon_b,'טבלת נתונים ב'!D21=\"+\"),OR(AND(תוכנה_ב=Eclipse_Java_b,'טבלת נתונים ב'!E21=\"+\"),OR(AND(תוכנה_ב=Photoshop_CS3b,'טבלת נתונים ב'!F21=\"+\"),OR(AND(תוכנה_ב=Flash_b,'טבלת נתונים ב'!G21=\"+\"),OR(AND(תוכנה_ב=Nero9_b,'טבלת נתונים ב'!H21=\"+\"),OR(AND(תוכנה_ב=Tree_Viewb,'טבלת נתונים ב'!I21=\"+\"),OR(AND(תוכנה_ב=Audacity,'טבלת נתונים ב'!J21=\"+\"),OR(AND(תוכנה_ב=Gene_Runner,'טבלת נתונים ב'!K21=\"+\"),OR(AND(תוכנה_ב=Natural_Reader,'טבלת נתונים ב'!L21= \"+\"),OR(AND(תוכנה_ב=VLC,'טבלת נתונים ב'!M21=\"+\"),OR(AND(תוכנה_ב=Google_Earth,'טבלת נתונים ב'!N21=\"+\"),OR(AND(תוכנה_ב=Firefox,'טבלת נתונים ב'!O21=\"+\"),OR(AND(תוכנה_ב=Game_Maker,'טבלת נתונים ב'!P21=\"+\"),OR(AND(תוכנה_ב=Greenfoot,'טבלת נתונים ב'!Q21=\"+\"),OR(AND(תוכנה_ב=GeoGebra,'טבלת נתונים ב'!R21=\"+\"),OR(AND(תוכנה_ב=ArcG.I.S,'טבלת נתונים ב'!S21=\"+\"),OR(AND(תוכנה_ב=CLC_Sequence_Viewer,'טבלת נתונים ב'!T21=\"+\"),OR(AND(תוכנה_ב=MEGA_5x,'טבלת נתונים ב'!U21=\"+\"),OR(AND(תוכנה_ב=Chimera,'טבלת נתונים ב'!V21=\"+\"),OR(AND(תוכנה_ב=MultiLab,'טבלת נתונים ב'!W21=\"+\"),OR(AND(תוכנה_ב=Turbo_C,'טבלת נתונים ב'!X21=\"+\"),OR(AND(תוכנה_ב=Chrome,'טבלת נתונים ב'!Y21=\"+\"),OR(AND(תוכנה_ב=CodeBlocks,'טבלת נתונים ב'!Z21=\"+\"),OR(AND(תוכנה_ב=PASCO_Capstoe,'טבלת נתונים ב'!AA21=\"+\")))))))))))))))))))))))))))","v":false}]
[null,null,null,null,null,null,null,null,null,null,null,null,null,null,null,null,"CLC Sequence Viewer","lib2-3-3",{"$f":"OR(AND(תוכנה_ב=Office_Microsoft,'טבלת נתונים ב'!B22=\"+\"),OR(AND(תוכנה_ב=Spss_17b,'טבלת נתונים ב'!C22=\"+\"),OR(AND(תוכנה_ב=Babylon_b,'טבלת נתונים ב'!D22=\"+\"),OR(AND(תוכנה_ב=Eclipse_Java_b,'טבלת נתונים ב'!E22=\"+\"),OR(AND(תוכנה_ב=Photoshop_CS3b,'טבלת נתונים ב'!F22=\"+\"),OR(AND(תוכנה_ב=Flash_b,'טבלת נתונים ב'!G22=\"+\"),OR(AND(תוכנה_ב=Nero9_b,'טבלת נתונים ב'!H22=\"+\"),OR(AND(תוכנה_ב=Tree_Viewb,'טבלת נתונים ב'!I22=\"+\"),OR(AND(תוכנה_ב=Audacity,'טבלת נתונים ב'!J22=\"+\"),OR(AND(תוכנה_ב=Gene_Runner,'טבלת נתונים ב'!K22=\"+\"),OR(AND(תוכנה_ב=Natural_Reader,'טבלת נתונים ב'!L22= \"+\"),OR(AND(תוכנה_ב=VLC,'טבלת נתונים ב'!M22=\"+\"),OR(AND(תוכנה_ב=Google_Earth,'טבלת נתונים ב'!N22=\"+\"),OR(AND(תוכנה_ב=Firefox,'טבלת נתונים ב'!O22=\"+\"),OR(AND(תוכנה_ב=Game_Maker,'טבלת נתונים ב'!P22=\"+\"),OR(AND(תוכנה_ב=Greenfoot,'טבלת נתונים ב'!Q22=\"+\"),OR(AND(תוכנה_ב=GeoGebra,'טבלת נתונים ב'!R22=\"+\"),OR(AND(תוכנה_ב=ArcG.I.S,'טבלת נתונים ב'!S22=\"+\"),OR(AND(תוכנה_ב=CLC_Sequence_Viewer,'טבלת נתונים ב'!T22=\"+\"),OR(AND(תוכנה_ב=MEGA_5x,'טבלת נתונים ב'!U22=\"+\"),OR(AND(תוכנה_ב=Chimera,'טבלת נתונים ב'!V22=\"+\"),OR(AND(תוכנה_ב=MultiLab,'טבלת נתונים ב'!W22=\"+\"),OR(AND(תוכנה_ב=Turbo_C,'טבלת נתונים ב'!X22=\"+\"),OR(AND(תוכנה_ב=Chrome,'טבלת נתונים ב'!Y22=\"+\"),OR(AND(תוכנה_ב=CodeBlocks,'טבלת נתונים ב'!Z22=\"+\"),OR(AND(תוכנה_ב=PASCO_Capstoe,'טבלת נתונים ב'!AA22=\"+\")))))))))))))))))))))))))))","v":false}]
[null,null,null,null,null,"שולחן","שולחן","שולחן",null,null,null,null,null,null,null,null,"MEGA 5.1","lib2-3-4",{"$f":"OR(AND(תוכנה_ב=Office_Microsoft,'טבלת נתונים ב'!B23=\"+\"),OR(AND(תוכנה_ב=Spss_17b,'טבלת נתונים ב'!C23=\"+\"),OR(AND(תוכנה_ב=Babylon_b,'טבלת נתונים ב'!D23=\"+\"),OR(AND(תוכנה_ב=Eclipse_Java_b,'טבלת נתונים ב'!E23=\"+\"),OR(AND(תוכנה_ב=Photoshop_CS3b,'טבלת נתונים ב'!F23=\"+\"),OR(AND(תוכנה_ב=Flash_b,'טבלת נתונים ב'!G23=\"+\"),OR(AND(תוכנה_ב=Nero9_b,'טבלת נתונים ב'!H23=\"+\"),OR(AND(תוכנה_ב=Tree_Viewb,'טבלת נתונים ב'!I23=\"+\"),OR(AND(תוכנה_ב=Audacity,'טבלת נתונים ב'!J23=\"+\"),OR(AND(תוכנה_ב=Gene_Runner,'טבלת נתונים ב'!K23=\"+\"),OR(AND(תוכנה_ב=Natural_Reader,'טבלת נתונים ב'!L23= \"+\"),OR(AND(תוכנה_ב=VLC,'טבלת נתונים ב'!M23=\"+\"),OR(AND(תוכנה_ב=Google_Earth,'טבלת נתונים ב'!N23=\"+\"),OR(AND(תוכנה_ב=Firefox,'טבלת נתונים ב'!O23=\"+\"),OR(AND(תוכנה_ב=Game_Maker,'טבלת נתונים ב'!P23=\"+\"),OR(AND(תוכנה_ב=Greenfoot,'טבלת נתונים ב'!Q23=\"+\"),OR(AND(תוכנה_ב=GeoGebra,'טבלת נתונים ב'!R23=\"+\"),OR(AND(תוכנה_ב=ArcG.I.S,'טבלת נתונים ב'!S23=\"+\"),OR(AND(תוכנה_ב=CLC_Sequence_Viewer,'טבלת נתונים ב'!T23=\"+\"),OR(AND(תוכנה_ב=MEGA_5x,'טבלת נתונים ב'!U23=\"+\"),OR(AND(תוכנה_ב=Chimera,'טבלת נתונים ב'!V23=\"+\"),OR(AND(תוכנה_ב=MultiLab,'טבלת נתונים ב'!W23=\"+\"),OR(AND(תוכנה_ב=Turbo_C,'טבלת נתונים ב'!X23=\"+\"),OR(AND(תוכנה_ב=Chrome,'טבלת נתונים ב'!Y23=\"+\"),OR(AND(תוכנה_ב=CodeBlocks,'טבלת נתונים ב'!Z23=\"+\"),OR(AND(תוכנה_ב=PASCO_Capstoe,'טבלת נתונים ב'!AA23=\"+\")))))))))))))))))))))))))))","v":false}]
[null,null,null,null,null," ",null,null,null,null,null,null,null,null,null,null,"Chimera","lib2-3-5",{"$f":"OR(AND(תוכנה_ב=Office_Microsoft,'טבלת נתונים ב'!B24=\"+\"),OR(AND(תוכנה_ב=Spss_17b,'טבלת נתונים ב'!C24=\"+\"),OR(AND(תוכנה_ב=Babylon_b,'טבלת נתונים ב'!D24=\"+\"),OR(AND(תוכנה_ב=Eclipse_Java_b,'טבלת נתונים ב'!E24=\"+\"),OR(AND(תוכנה_ב=Photoshop_CS3b,'טבלת נתונים ב'!F24=\"+\"),OR(AND(תוכנה_ב=Flash_b,'טבלת נתונים ב'!G24=\"+\"),OR(AND(תוכנה_ב=Nero9_b,'טבלת נתונים ב'!H24=\"+\"),OR(AND(תוכנה_ב=Tree_Viewb,'טבלת נתונים ב'!I24=\"+\"),OR(AND(תוכנה_ב=Audacity,'טבלת נתונים ב'!J24=\"+\"),OR(AND(תוכנה_ב=Gene_Runner,'טבלת נתונים ב'!K24=\"+\"),OR(AND(תוכנה_ב=Natural_Reader,'טבלת נתונים ב'!L24= \"+\"),OR(AND(תוכנה_ב=VLC,'טבלת נתונים ב'!M24=\"+\"),OR(AND(תוכנה_ב=Google_Earth,'טבלת נתונים ב'!N24=\"+\"),OR(AND(תוכנה_ב=Firefox,'טבלת נתונים ב'!O24=\"+\"),OR(AND(תוכנה_ב=Game_Maker,'טבלת נתונים ב'!P24=\"+\"),OR(AND(תוכנה_ב=Greenfoot,'טבלת נתונים ב'!Q24=\"+\"),OR(AND(תוכנה_ב=GeoGebra,'טבלת נתונים ב'!R24=\"+\"),OR(AND(תוכנה_ב=ArcG.I.S,'טבלת נתונים ב'!S24=\"+\"),OR(AND(תוכנה_ב=CLC_Sequence_Viewer,'טבלת נתונים ב'!T24=\"+\"),OR(AND(תוכנה_ב=MEGA_5x,'טבלת נתונים ב'!U24=\"+\"),OR(AND(תוכנה_ב=Chimera,'טבלת נתונים ב'!V24=\"+\"),OR(AND(תוכנה_ב=MultiLab,'טבלת נתונים ב'!W24=\"+\"),OR(AND(תוכנה_ב=Turbo_C,'טבלת נתונים ב'!X24=\"+\"),OR(AND(תוכנה_ב=Chrome,'טבלת נתונים ב'!Y24=\"+\"),OR(AND(תוכנה_ב=CodeBlocks,'טבלת נתונים ב'!Z24=\"+\"),OR(AND(תוכנה_ב=PASCO_Capstoe,'טבלת נתונים ב'!AA24=\"+\")))))))))))))))))))))))))))","v":false}]
["אגף דרומי","וידאו צפיה","lib2-11-2+סורק",null,null,null,null,null,null,null,null,null,null,null,null,null,"MultiLab","lib2-3-6",{"$f":"OR(AND(תוכנה_ב=Office_Microsoft,'טבלת נתונים ב'!B25=\"+\"),OR(AND(תוכנה_ב=Spss_17b,'טבלת נתונים ב'!C25=\"+\"),OR(AND(תוכנה_ב=Babylon_b,'טבלת נתונים ב'!D25=\"+\"),OR(AND(תוכנה_ב=Eclipse_Java_b,'טבלת נתונים ב'!E25=\"+\"),OR(AND(תוכנה_ב=Photoshop_CS3b,'טבלת נתונים ב'!F25=\"+\"),OR(AND(תוכנה_ב=Flash_b,'טבלת נתונים ב'!G25=\"+\"),OR(AND(תוכנה_ב=Nero9_b,'טבלת נתונים ב'!H25=\"+\"),OR(AND(תוכנה_ב=Tree_Viewb,'טבלת נתונים ב'!I25=\"+\"),OR(AND(תוכנה_ב=Audacity,'טבלת נתונים ב'!J25=\"+\"),OR(AND(תוכנה_ב=Gene_Runner,'טבלת נתונים ב'!K25=\"+\"),OR(AND(תוכנה_ב=Natural_Reader,'טבלת נתונים ב'!L25= \"+\"),OR(AND(תוכנה_ב=VLC,'טבלת נתונים ב'!M25=\"+\"),OR(AND(תוכנה_ב=Google_Earth,'טבלת נתונים ב'!N25=\"+\"),OR(AND(תוכנה_ב=Firefox,'טבלת נתונים ב'!O25=\"+\"),OR(AND(תוכנה_ב=Game_Maker,'טבלת נתונים ב'!P25=\"+\"),OR(AND(תוכנה_ב=Greenfoot,'טבלת נתונים ב'!Q25=\"+\"),OR(AND(תוכנה_ב=GeoGebra,'טבלת נתונים ב'!R25=\"+\"),OR(AND(תוכנה_ב=ArcG.I.S,'טבלת נתונים ב'!S25=\"+\"),OR(AND(תוכנה_ב=CLC_Sequence_Viewer,'טבלת נתונים ב'!T25=\"+\"),OR(AND(תוכנה_ב=MEGA_5x,'טבלת נתונים ב'!U25=\"+\"),OR(AND(תוכנה_ב=Chimera,'טבלת נתונים ב'!V25=\"+\"),OR(AND(תוכנה_ב=MultiLab,'טבלת נתונים ב'!W25=\"+\"),OR(AND(תוכנה_ב=Turbo_C,'טבלת נתונים ב'!X25=\"+\"),OR(AND(תוכנה_ב=Chrome,'טבלת נתונים ב'!Y25=\"+\"),OR(AND(תוכנה_ב=CodeBlocks,'טבלת נתונים ב'!Z25=\"+\"),OR(AND(תוכנה_ב=PASCO_Capstoe,'טבלת נתונים ב'!AA25=\"+\")))))))))))))))))))))))))))","v":false}]
[null,null,null,null,null,"מוקד שירות",null,null,null,null,null,null,null,null,null,null,"Turbo C (TC)","lib2-3-7",{"$f":"OR(AND(תוכנה_ב=Office_Microsoft,'טבלת נתונים ב'!B26=\"+\"),OR(AND(תוכנה_ב=Spss_17b,'טבלת נתונים ב'!C26=\"+\"),OR(AND(תוכנה_ב=Babylon_b,'טבלת נתונים ב'!D26=\"+\"),OR(AND(תוכנה_ב=Eclipse_Java_b,'טבלת נתונים ב'!E26=\"+\"),OR(AND(תוכנה_ב=Photoshop_CS3b,'טבלת נתונים ב'!F26=\"+\"),OR(AND(תוכנה_ב=Flash_b,'טבלת נתונים ב'!G26=\"+\"),OR(AND(תוכנה_ב=Nero9_b,'טבלת נתונים ב'!H26=\"+\"),OR(AND(תוכנה_ב=Tree_Viewb,'טבלת נתונים ב'!I26=\"+\"),OR(AND(תוכנה_ב=Audacity,'טבלת נתונים ב'!J26=\"+\"),OR(AND(תוכנה_ב=Gene_Runner,'טבלת נתונים ב'!K26=\"+\"),OR(AND(תוכנה_ב=Natural_Reader,'טבלת נתונים ב'!L26= \"+\"),OR(AND(תוכנה_ב=VLC,'טבלת נתונים ב'!M26=\"+\"),OR(AND(תוכנה_ב=Google_Earth,'טבלת נתונים ב'!N26=\"+\"),OR(AND(תוכנה_ב=Firefox,'טבלת נתונים ב'!O26=\"+\"),OR(AND(תוכנה_ב=Game_Maker,'טבלת נתונים ב'!P26=\"+\"),OR(AND(תוכנה_ב=Greenfoot,'טבלת נתונים ב'!Q26=\"+\"),OR(AND(תוכנה_ב=GeoGebra,'טבלת נתונים ב'!R26=\"+\"),OR(AND(תוכנה_ב=ArcG.I.S,'טבלת נתונים ב'!S26=\"+\"),OR(AND(תוכנה_ב=CLC_Sequence_Viewer,'טבלת נתונים ב'!T26=\"+\"),OR(AND(תוכנה_ב=MEGA_5x,'טבלת נתונים ב'!U26=\"+\"),OR(AND(תוכנה_ב=Chimera,'טבלת נתונים ב'!V26=\"+\"),OR(AND(תוכנה_ב=MultiLab,'טבלת נתונים ב'!W26=\"+\"),OR(AND(תוכנה_ב=Turbo_C,'טבלת נתונים ב'!X26=\"+\"),OR(AND(תוכנה_ב=Chrome,'טבלת נתונים ב'!Y26=\"+\"),OR(AND(תוכנה_ב=CodeBlocks,'טבלת נתונים ב'!Z26=\"+\"),OR(AND(תוכנה_ב=PASCO_Capstoe,'טבלת נתונים ב'!AA26=\"+\")))))))))))))))))))))))))))","v":false}]
[null,"מחשב צוות","lib2-12-2+סורק",null,null,null,null,null,null,null,null,null,null,null,null,null,"Google Chrome","lib2-3-8",{"$f":"OR(AND(תוכנה_ב=Office_Microsoft,'טבלת נתונים ב'!B27=\"+\"),OR(AND(תוכנה_ב=Spss_17b,'טבלת נתונים ב'!C27=\"+\"),OR(AND(תוכנה_ב=Babylon_b,'טבלת נתונים ב'!D27=\"+\"),OR(AND(תוכנה_ב=Eclipse_Java_b,'טבלת נתונים ב'!E27=\"+\"),OR(AND(תוכנה_ב=Photoshop_CS3b,'טבלת נתונים ב'!F27=\"+\"),OR(AND(תוכנה_ב=Flash_b,'טבלת נתונים ב'!G27=\"+\"),OR(AND(תוכנה_ב=Nero9_b,'טבלת נתונים ב'!H27=\"+\"),OR(AND(תוכנה_ב=Tree_Viewb,'טבלת נתונים ב'!I27=\"+\"),OR(AND(תוכנה_ב=Audacity,'טבלת נתונים ב'!J27=\"+\"),OR(AND(תוכנה_ב=Gene_Runner,'טבלת נתונים ב'!K27=\"+\"),OR(AND(תוכנה_ב=Natural_Reader,'טבלת נתונים ב'!L27= \"+\"),OR(AND(תוכנה_ב=VLC,'טבלת נתונים ב'!M27=\"+\"),OR(AND(תוכנה_ב=Google_Earth,'טבלת נתונים ב'!N27=\"+\"),OR(AND(תוכנה_ב=Firefox,'טבלת נתונים ב'!O27=\"+\"),OR(AND(תוכנה_ב=Game_Maker,'טבלת נתונים ב'!P27=\"+\"),OR(AND(תוכנה_ב=Greenfoot,'טבלת נתונים ב'!Q27=\"+\"),OR(AND(תוכנה_ב=GeoGebra,'טבלת נתונים ב'!R27=\"+\"),OR(AND(תוכנה_ב=ArcG.I.S,'טבלת נתונים ב'!S27=\"+\"),OR(AND(תוכנה_ב=CLC_Sequence_Viewer,'טבלת נתונים ב'!T27=\"+\"),OR(AND(תוכנה_ב=MEGA_5x,'טבלת נתונים ב'!U27=\"+\"),OR(AND(תוכנה_ב=Chimera,'טבלת נתונים ב'!V27=\"+\"),OR(AND(תוכנה_ב=MultiLab,'טבלת נתונים ב'!W27=\"+\"),OR(AND(תוכנה_ב=Turbo_C,'טבלת נתונים ב'!X27=\"+\"),OR(AND(תוכנה_ב=Chrome,'טבלת נתונים ב'!Y27=\"+\"),OR(AND(תוכנה_ב=CodeBlocks,'טבלת נתונים ב'!Z27=\"+\"),OR(AND(תוכנה_ב=PASCO_Capstoe,'טבלת נתונים ב'!AA27=\"+\")))))))))))))))))))))))))))","v":false}]
[null,null,null,null,null,null,null,null,null,"הסבר קצר",null,null,null,null,null,null,"CodeBlocks","lib2-4-1",{"$f":"OR(AND(תוכנה_ב=Office_Microsoft,'טבלת נתונים ב'!B28=\"+\"),OR(AND(תוכנה_ב=Spss_17b,'טבלת נתונים ב'!C28=\"+\"),OR(AND(תוכנה_ב=Babylon_b,'טבלת נתונים ב'!D28=\"+\"),OR(AND(תוכנה_ב=Eclipse_Java_b,'טבלת נתונים ב'!E28=\"+\"),OR(AND(תוכנה_ב=Photoshop_CS3b,'טבלת נתונים ב'!F28=\"+\"),OR(AND(תוכנה_ב=Flash_b,'טבלת נתונים ב'!G28=\"+\"),OR(AND(תוכנה_ב=Nero9_b,'טבלת נתונים ב'!H28=\"+\"),OR(AND(תוכנה_ב=Tree_Viewb,'טבלת נתונים ב'!I28=\"+\"),OR(AND(תוכנה_ב=Audacity,'טבלת נתונים ב'!J28=\"+\"),OR(AND(תוכנה_ב=Gene_Runner,'טבלת נתונים ב'!K28=\"+\"),OR(AND(תוכנה_ב=Natural_Reader,'טבלת נתונים ב'!L28= \"+\"),OR(AND(תוכנה_ב=VLC,'טבלת נתונים ב'!M28=\"+\"),OR(AND(תוכנה_ב=Google_Earth,'טבלת נתונים ב'!N28=\"+\"),OR(AND(תוכנה_ב=Firefox,'טבלת נתונים ב'!O28=\"+\"),OR(AND(תוכנה_ב=Game_Maker,'טבלת נתונים ב'!P28=\"+\"),OR(AND(תוכנה_ב=Greenfoot,'טבלת נתונים ב'!Q28=\"+\"),OR(AND(תוכנה_ב=GeoGebra,'טבלת נתונים ב'!R28=\"+\"),OR(AND(תוכנה_ב=ArcG.I.S,'טבלת נתונים ב'!S28=\"+\"),OR(AND(תוכנה_ב=CLC_Sequence_Viewer,'טבלת נתונים ב'!T28=\"+\"),OR(AND(תוכנה_ב=MEGA_5x,'טבלת נתונים ב'!U28=\"+\"),OR(AND(תוכנה_ב=Chimera,'טבלת נתונים ב'!V28=\"+\"),OR(AND(תוכנה_ב=MultiLab,'טבלת נתונים ב'!W28=\"+\"),OR(AND(תוכנה_ב=Turbo_C,'טבלת נתונים ב'!X28=\"+\"),OR(AND(תוכנה_ב=Chrome,'טבלת נתונים ב'!Y28=\"+\"),OR(AND(תוכנה_ב=CodeBlocks,'טבלת נתונים ב'!Z28=\"+\"),OR(AND(תוכנה_ב=PASCO_Capstoe,'טבלת נתונים ב'!AA28=\"+\")))))))))))))))))))))))))))","v":false}]
[null,"שולחן","lib2-13-2",null,null,null,"התוכנה המבוקשת נמצאת במחשב",null,null,{"$f":"INDEX(T31:T57,P3)","v":"תוכנה לאיסוף, ניתוח והצגת נתונים בפיסיקה ומעבדות הנדסה."},null,null,null,null,null,null,"PASCO Capstone","lib2-4-2",{"$f":"OR(AND(תוכנה_ב=Office_Microsoft,'טבלת נתונים ב'!B29=\"+\"),OR(AND(תוכנה_ב=Spss_17b,'טבלת נתונים ב'!C29=\"+\"),OR(AND(תוכנה_ב=Babylon_b,'טבלת נתונים ב'!D29=\"+\"),OR(AND(תוכנה_ב=Eclipse_Java_b,'טבלת נתונים ב'!E29=\"+\"),OR(AND(תוכנה_ב=Photoshop_CS3b,'טבלת נתונים ב'!F29=\"+\"),OR(AND(תוכנה_ב=Flash_b,'טבלת נתונים ב'!G29=\"+\"),OR(AND(תוכנה_ב=Nero9_b,'טבלת נתונים ב'!H29=\"+\"),OR(AND(תוכנה_ב=Tree_Viewb,'טבלת נתונים ב'!I29=\"+\"),OR(AND(תוכנה_ב=Audacity,'טבלת נתונים ב'!J29=\"+\"),OR(AND(תוכנה_ב=Gene_Runner,'טבלת נתונים ב'!K29=\"+\"),OR(AND(תוכנה_ב=Natural_Reader,'טבלת נתונים ב'!L29= \"+\"),OR(AND(תוכנה_ב=VLC,'טבלת נתונים ב'!M29=\"+\"),OR(AND(תוכנה_ב=Google_Earth,'טבלת נתונים ב'!N29=\"+\"),OR(AND(תוכנה_ב=Firefox,'טבלת נתונים ב'!O29=\"+\"),OR(AND(תוכנה_ב=Game_Maker,'טבלת נתונים ב'!P29=\"+\"),OR(AND(תוכנה_ב=Greenfoot,'טבלת נתונים ב'!Q29=\"+\"),OR(AND(תוכנה_ב=GeoGebra,'טבלת נתונים ב'!R29=\"+\"),OR(AND(תוכנה_ב=ArcG.I.S,'טבלת נתונים ב'!S29=\"+\"),OR(AND(תוכנה_ב=CLC_Sequence_Viewer,'טבלת נתונים ב'!T29=\"+\"),OR(AND(תוכנה_ב=MEGA_5x,'טבלת נתונים ב'!U29=\"+\"),OR(AND(תוכנה_ב=Chimera,'טבלת נתונים ב'!V29=\"+\"),OR(AND(תוכנה_ב=MultiLab,'טבלת נתונים ב'!W29=\"+\"),OR(AND(תוכנה_ב=Turbo_C,'טבלת נתונים ב'!X29=\"+\"),OR(AND(תוכנה_ב=Chrome,'טבלת נתונים ב'!Y29=\"+\"),OR(AND(תוכנה_ב=CodeBlocks,'טבלת נתונים ב'!Z29=\"+\"),OR(AND(תוכנה_ב=PASCO_Capstoe,'טבלת נתונים ב'!AA29=\"+\")))))))))))))))))))))))))))","v":false}]
[null,null,null,null,null,null,null,null,null,null,null,null,null,null,null,null,null,"lib2-4-3",{"$f":"OR(AND(תוכנה_ב=Office_Microsoft,'טבלת נתונים ב'!B30=\"+\"),OR(AND(תוכנה_ב=Spss_17b,'טבלת נתונים ב'!C30=\"+\"),OR(AND(תוכנה_ב=Babylon_b,'טבלת נתונים ב'!D30=\"+\"),OR(AND(תוכנה_ב=Eclipse_Java_b,'טבלת נתונים ב'!E30=\"+\"),OR(AND(תוכנה_ב=Photoshop_CS3b,'טבלת נתונים ב'!F30=\"+\"),OR(AND(תוכנה_ב=Flash_b,'טבלת נתונים ב'!G30=\"+\"),OR(AND(תוכנה_ב=Nero9_b,'טבלת נתונים ב'!H30=\"+\"),OR(AND(תוכנה_ב=Tree_Viewb,'טבלת נתונים ב'!I30=\"+\"),OR(AND(תוכנה_ב=Audacity,'טבלת נתונים ב'!J30=\"+\"),OR(AND(תוכנה_ב=Gene_Runner,'טבלת נתונים ב'!K30=\"+\"),OR(AND(תוכנה_ב=Natural_Reader,'טבלת נתונים ב'!L30= \"+\"),OR(AND(תוכנה_ב=VLC,'טבלת נתונים ב'!M30=\"+\"),OR(AND(תוכנה_ב=Google_Earth,'טבלת נתונים ב'!N30=\"+\"),OR(AND(תוכנה_ב=Firefox,'טבלת נתונים ב'!O30=\"+\"),OR(AND(תוכנה_ב=Game_Maker,'טבלת נתונים ב'!P30=\"+\"),OR(AND(תוכנה_ב=Greenfoot,'טבלת נתונים ב'!Q30=\"+\"),OR(AND(תוכנה_ב=GeoGebra,'טבלת נתונים ב'!R30=\"+\"),OR(AND(תוכנה_ב=ArcG.I.S,'טבלת נתונים ב'!S30=\"+\"),OR(AND(תוכנה_ב=CLC_Sequence_Viewer,'טבלת נתונים ב'!T30=\"+\"),OR(AND(תוכנה_ב=MEGA_5x,'טבלת נתונים ב'!U30=\"+\"),OR(AND(תוכנה_ב=Chimera,'טבלת נתונים ב'!V30=\"+\"),OR(AND(תוכנה_ב=MultiLab,'טבלת נתונים ב'!W30=\"+\"),OR(AND(תוכנה_ב=Turbo_C,'טבלת נתונים ב'!X30=\"+\"),OR(AND(תוכנה_ב=Chrome,'טבלת נתונים ב'!Y30=\"+\"),OR(AND(תוכנה_ב=CodeBlocks,'טבלת נתונים ב'!Z30=\"+\"),OR(AND(תוכנה_ב=PASCO_Capstoe,'טבלת נתונים ב'!AA30=\"+\")))))))))))))))))))))))))))","v":false}]
[null,"lib2-14-1","lib2-14-2",null,null,null,"התוכנה המבוקשת אינה נמצאת במחשב",null,null,null,null,null,null,null,null,null,null,"lib2-4-4",{"$f":"OR(AND(תוכנה_ב=Office_Microsoft,'טבלת נתונים ב'!B31=\"+\"),OR(AND(תוכנה_ב=Spss_17b,'טבלת נתונים ב'!C31=\"+\"),OR(AND(תוכנה_ב=Babylon_b,'טבלת נתונים ב'!D31=\"+\"),OR(AND(תוכנה_ב=Eclipse_Java_b,'טבלת נתונים ב'!E31=\"+\"),OR(AND(תוכנה_ב=Photoshop_CS3b,'טבלת נתונים ב'!F31=\"+\"),OR(AND(תוכנה_ב=Flash_b,'טבלת נתונים ב'!G31=\"+\"),OR(AND(תוכנה_ב=Nero9_b,'טבלת נתונים ב'!H31=\"+\"),OR(AND(תוכנה_ב=Tree_Viewb,'טבלת נתונים ב'!I31=\"+\"),OR(AND(תוכנה_ב=Audacity,'טבלת נתונים ב'!J31=\"+\"),OR(AND(תוכנה_ב=Gene_Runner,'טבלת נתונים ב'!K31=\"+\"),OR(AND(תוכנה_ב=Natural_Reader,'טבלת נתונים ב'!L31= \"+\"),OR(AND(תוכנה_ב=VLC,'טבלת נתונים ב'!M31=\"+\"),OR(AND(תוכנה_ב=Google_Earth,'טבלת נתונים ב'!N31=\"+\"),OR(AND(תוכנה_ב=Firefox,'טבלת נתונים ב'!O31=\"+\"),OR(AND(תוכנה_ב=Game_Maker,'טבלת נתונים ב'!P31=\"+\"),OR(AND(תוכנה_ב=Greenfoot,'טבלת נתונים ב'!Q31=\"+\"),OR(AND(תוכנה_ב=GeoGebra,'טבלת נתונים ב'!R31=\"+\"),OR(AND(תוכנה_ב=ArcG.I.S,'טבלת נתונים ב'!S31=\"+\"),OR(AND(תוכנה_ב=CLC_Sequence_Viewer,'טבלת נתונים ב'!T31=\"+\"),OR(AND(תוכנה_ב=MEGA_5x,'טבלת נתונים ב'!U31=\"+\"),OR(AND(תוכנה_ב=Chimera,'טבלת נתונים ב'!V31=\"+\"),OR(AND(תוכנה_ב=MultiLab,'טבלת נתונים ב'!W31=\"+\"),OR(AND(תוכנה_ב=Turbo_C,'טבלת נתונים ב'!X31=\"+\"),OR(AND(תוכנה_ב=Chrome,'טבלת נתונים ב'!Y31=\"+\"),OR(AND(תוכנה_ב=CodeBlocks,'טבלת נתונים ב'!Z31=\"+\"),OR(AND(תוכנה_ב=PASCO_Capstoe,'טבלת נתונים ב'!AA31=\"+\")))))))))))))))))))))))))))","v":false}]
[null,null,null,null,null,null,null,null,null,null,null,null,null,null,null,null,null,"lib2-4-5",{"$f":"OR(AND(תוכנה_ב=Office_Microsoft,'טבלת נתונים ב'!B32=\"+\"),OR(AND(תוכנה_ב=Spss_17b,'טבלת נתונים ב'!C32=\"+\"),OR(AND(תוכנה_ב=Babylon_b,'טבלת נתונים ב'!D32=\"+\"),OR(AND(תוכנה_ב=Eclipse_Java_b,'טבלת נתונים ב'!E32=\"+\"),OR(AND(תוכנה_ב=Photoshop_CS3b,'טבלת נתונים ב'!F32=\"+\"),OR(AND(תוכנה_ב=Flash_b,'טבלת נתונים ב'!G32=\"+\"),OR(AND(תוכנה_ב=Nero9_b,'טבלת נתונים ב'!H32=\"+\"),OR(AND(תוכנה_ב=Tree_Viewb,'טבלת נתונים ב'!I32=\"+\"),OR(AND(תוכנה_ב=Audacity,'טבלת נתונים ב'!J32=\"+\"),OR(AND(תוכנה_ב=Gene_Runner,'טבלת נתונים ב'!K32=\"+\"),OR(AND(תוכנה_ב=Natural_Reader,'טבלת נתונים ב'!L32= \"+\"),OR(AND(תוכנה_ב=VLC,'טבלת נתונים ב'!M32=\"+\"),OR(AND(תוכנה_ב=Google_Earth,'טבלת נתונים ב'!N32=\"+\"),OR(AND(תוכנה_ב=Firefox,'טבלת נתונים ב'!O32=\"+\"),OR(AND(תוכנה_ב=Game_Maker,'טבלת נתונים ב'!P32=\"+\"),OR(AND(תוכנה_ב=Greenfoot,'טבלת נתונים ב'!Q32=\"+\"),OR(AND(תוכנה_ב=GeoGebra,'טבלת נתונים ב'!R32=\"+\"),OR(AND(תוכנה_ב=ArcG.I.S,'טבלת נתונים ב'!S32=\"+\"),OR(AND(תוכנה_ב=CLC_Sequence_Viewer,'טבלת נתונים ב'!T32=\"+\"),OR(AND(תוכנה_ב=MEGA_5x,'טבלת נתונים ב'!U32=\"+\"),OR(AND(תוכנה_ב=Chimera,'טבלת נתונים ב'!V32=\"+\"),OR(AND(תוכנה_ב=MultiLab,'טבלת נתונים ב'!W32=\"+\"),OR(AND(תוכנה_ב=Turbo_C,'טבלת נתונים ב'!X32=\"+\"),OR(AND(תוכנה_ב=Chrome,'טבלת נתונים ב'!Y32=\"+\"),OR(AND(תוכנה_ב=CodeBlocks,'טבלת נתונים ב'!Z32=\"+\"),OR(AND(תוכנה_ב=PASCO_Capstoe,'טבלת נתונים ב'!AA32=\"+\")))))))))))))))))))))))))))","v":false},"קב' תוכנות למשרד הממוחשב כגון: Word ; PowerPoint; Excel..ועוד"]
[null,"lib2-15-1","lib2-15-2",null,null,null,null,null,null,null,null,null,null,null,null,null,null,"lib2-4-6",{"$f":"OR(AND(תוכנה_ב=Office_Microsoft,'טבלת נתונים ב'!B33=\"+\"),OR(AND(תוכנה_ב=Spss_17b,'טבלת נתונים ב'!C33=\"+\"),OR(AND(תוכנה_ב=Babylon_b,'טבלת נתונים ב'!D33=\"+\"),OR(AND(תוכנה_ב=Eclipse_Java_b,'טבלת נתונים ב'!E33=\"+\"),OR(AND(תוכנה_ב=Photoshop_CS3b,'טבלת נתונים ב'!F33=\"+\"),OR(AND(תוכנה_ב=Flash_b,'טבלת נתונים ב'!G33=\"+\"),OR(AND(תוכנה_ב=Nero9_b,'טבלת נתונים ב'!H33=\"+\"),OR(AND(תוכנה_ב=Tree_Viewb,'טבלת נתונים ב'!I33=\"+\"),OR(AND(תוכנה_ב=Audacity,'טבלת נתונים ב'!J33=\"+\"),OR(AND(תוכנה_ב=Gene_Runner,'טבלת נתונים ב'!K33=\"+\"),OR(AND(תוכנה_ב=Natural_Reader,'טבלת נתונים ב'!L33= \"+\"),OR(AND(תוכנה_ב=VLC,'טבלת נתונים ב'!M33=\"+\"),OR(AND(תוכנה_ב=Google_Earth,'טבלת נתונים ב'!N33=\"+\"),OR(AND(תוכנה_ב=Firefox,'טבלת נתונים ב'!O33=\"+\"),OR(AND(תוכנה_ב=Game_Maker,'טבלת נתונים ב'!P33=\"+\"),OR(AND(תוכנה_ב=Greenfoot,'טבלת נתונים ב'!Q33=\"+\"),OR(AND(תוכנה_ב=GeoGebra,'טבלת נתונים ב'!R33=\"+\"),OR(AND(תוכנה_ב=ArcG.I.S,'טבלת נתונים ב'!S33=\"+\"),OR(AND(תוכנה_ב=CLC_Sequence_Viewer,'טבלת נתונים ב'!T33=\"+\"),OR(AND(תוכנה_ב=MEGA_5x,'טבלת נתונים ב'!U33=\"+\"),OR(AND(תוכנה_ב=Chimera,'טבלת נתונים ב'!V33=\"+\"),OR(AND(תוכנה_ב=MultiLab,'טבלת נתונים ב'!W33=\"+\"),OR(AND(תוכנה_ב=Turbo_C,'טבלת נתונים ב'!X33=\"+\"),OR(AND(תוכנה_ב=Chrome,'טבלת נתונים ב'!Y33=\"+\"),OR(AND(תוכנה_ב=CodeBlocks,'טבלת נתונים ב'!Z33=\"+\"),OR(AND(תוכנה_ב=PASCO_Capstoe,'טבלת נתונים ב'!AA33=\"+\")))))))))))))))))))))))))))","v":false},"עיבוד סטטיסטי של נתונים"]
[null,null,null,null,null,null,null,null,null,null,null,null,null,null,null,null,null,"lib2-4-7",{"$f":"OR(AND(תוכנה_ב=Office_Microsoft,'טבלת נתונים ב'!B34=\"+\"),OR(AND(תוכנה_ב=Spss_17b,'טבלת נתונים ב'!C34=\"+\"),OR(AND(תוכנה_ב=Babylon_b,'טבלת נתונים ב'!D34=\"+\"),OR(AND(תוכנה_ב=Eclipse_Java_b,'טבלת נתונים ב'!E34=\"+\"),OR(AND(תוכנה_ב=Photoshop_CS3b,'טבלת נתונים ב'!F34=\"+\"),OR(AND(תוכנה_ב=Flash_b,'טבלת נתונים ב'!G34=\"+\"),OR(AND(תוכנה_ב=Nero9_b,'טבלת נתונים ב'!H34=\"+\"),OR(AND(תוכנה_ב=Tree_Viewb,'טבלת נתונים ב'!I34=\"+\"),OR(AND(תוכנה_ב=Audacity,'טבלת נתונים ב'!J34=\"+\"),OR(AND(תוכנה_ב=Gene_Runner,'טבלת נתונים ב'!K34=\"+\"),OR(AND(תוכנה_ב=Natural_Reader,'טבלת נתונים ב'!L34= \"+\"),OR(AND(תוכנה_ב=VLC,'טבלת נתונים ב'!M34=\"+\"),OR(AND(תוכנה_ב=Google_Earth,'טבלת נתונים ב'!N34=\"+\"),OR(AND(תוכנה_ב=Firefox,'טבלת נתונים ב'!O34=\"+\"),OR(AND(תוכנה_ב=Game_Maker,'טבלת נתונים ב'!P34=\"+\"),OR(AND(תוכנה_ב=Greenfoot,'טבלת נתונים ב'!Q34=\"+\"),OR(AND(תוכנה_ב=GeoGebra,'טבלת נתונים ב'!R34=\"+\"),OR(AND(תוכנה_ב=ArcG.I.S,'טבלת נתונים ב'!S34=\"+\"),OR(AND(תוכנה_ב=CLC_Sequence_Viewer,'טבלת נתונים ב'!T34=\"+\"),OR(AND(תוכנה_ב=MEGA_5x,'טבלת נתונים ב'!U34=\"+\"),OR(AND(תוכנה_ב=Chimera,'טבלת נתונים ב'!V34=\"+\"),OR(AND(תוכנה_ב=MultiLab,'טבלת נתונים ב'!W34=\"+\"),OR(AND(תוכנה_ב=Turbo_C,'טבלת נתונים ב'!X34=\"+\"),OR(AND(תוכנה_ב=Chrome,'טבלת נתונים ב'!Y34=\"+\"),OR(AND(תוכנה_ב=CodeBlocks,'טבלת נתונים ב'!Z34=\"+\"),OR(AND(תוכנה_ב=PASCO_Capstoe,'טבלת נתונים ב'!AA34=\"+\")))))))))))))))))))))))))))","v":false},"תרגום מילים ומשפטים"]
[null,"lib2-16-1","lib2-16-2",null,null,null,null,null,null,null,null,null,null,null,null,null,null,"lib2-4-8",{"$f":"OR(AND(תוכנה_ב=Office_Microsoft,'טבלת נתונים ב'!B35=\"+\"),OR(AND(תוכנה_ב=Spss_17b,'טבלת נתונים ב'!C35=\"+\"),OR(AND(תוכנה_ב=Babylon_b,'טבלת נתונים ב'!D35=\"+\"),OR(AND(תוכנה_ב=Eclipse_Java_b,'טבלת נתונים ב'!E35=\"+\"),OR(AND(תוכנה_ב=Photoshop_CS3b,'טבלת נתונים ב'!F35=\"+\"),OR(AND(תוכנה_ב=Flash_b,'טבלת נתונים ב'!G35=\"+\"),OR(AND(תוכנה_ב=Nero9_b,'טבלת נתונים ב'!H35=\"+\"),OR(AND(תוכנה_ב=Tree_Viewb,'טבלת נתונים ב'!I35=\"+\"),OR(AND(תוכנה_ב=Audacity,'טבלת נתונים ב'!J35=\"+\"),OR(AND(תוכנה_ב=Gene_Runner,'טבלת נתונים ב'!K35=\"+\"),OR(AND(תוכנה_ב=Natural_Reader,'טבלת נתונים ב'!L35= \"+\"),OR(AND(תוכנה_ב=VLC,'טבלת נתונים ב'!M35=\"+\"),OR(AND(תוכנה_ב=Google_Earth,'טבלת נתונים ב'!N35=\"+\"),OR(AND(תוכנה_ב=Firefox,'טבלת נתונים ב'!O35=\"+\"),OR(AND(תוכנה_ב=Game_Maker,'טבלת נתונים ב'!P35=\"+\"),OR(AND(תוכנה_ב=Greenfoot,'טבלת נתונים ב'!Q35=\"+\"),OR(AND(תוכנה_ב=GeoGebra,'טבלת נתונים ב'!R35=\"+\"),OR(AND(תוכנה_ב=ArcG.I.S,'טבלת נתונים ב'!S35=\"+\"),OR(AND(תוכנה_ב=CLC_Sequence_Viewer,'טבלת נתונים ב'!T35=\"+\"),OR(AND(תוכנה_ב=MEGA_5x,'טבלת נתונים ב'!U35=\"+\"),OR(AND(תוכנה_ב=Chimera,'טבלת נתונים ב'!V35=\"+\"),OR(AND(תוכנה_ב=MultiLab,'טבלת נתונים ב'!W35=\"+\"),OR(AND(תוכנה_ב=Turbo_C,'טבלת נתונים ב'!X35=\"+\"),OR(AND(תוכנה_ב=Chrome,'טבלת נתונים ב'!Y35=\"+\"),OR(AND(תוכנה_ב=CodeBlocks,'טבלת נתונים ב'!Z35=\"+\"),OR(AND(תוכנה_ב=PASCO_Capstoe,'טבלת נתונים ב'!AA35=\"+\")))))))))))))))))))))))))))","v":false},"עורך גראפי בשפת Java לדפדפני אינטרנט"]
[null,null,null,null,null,null,null,null,null,null,null,null,null,null,null,null,null,"lib2-5-1",{"$f":"OR(AND(תוכנה_ב=Office_Microsoft,'טבלת נתונים ב'!B36=\"+\"),OR(AND(תוכנה_ב=Spss_17b,'טבלת נתונים ב'!C36=\"+\"),OR(AND(תוכנה_ב=Babylon_b,'טבלת נתונים ב'!D36=\"+\"),OR(AND(תוכנה_ב=Eclipse_Java_b,'טבלת נתונים ב'!E36=\"+\"),OR(AND(תוכנה_ב=Photoshop_CS3b,'טבלת נתונים ב'!F36=\"+\"),OR(AND(תוכנה_ב=Flash_b,'טבלת נתונים ב'!G36=\"+\"),OR(AND(תוכנה_ב=Nero9_b,'טבלת נתונים ב'!H36=\"+\"),OR(AND(תוכנה_ב=Tree_Viewb,'טבלת נתונים ב'!I36=\"+\"),OR(AND(תוכנה_ב=Audacity,'טבלת נתונים ב'!J36=\"+\"),OR(AND(תוכנה_ב=Gene_Runner,'טבלת נתונים ב'!K36=\"+\"),OR(AND(תוכנה_ב=Natural_Reader,'טבלת נתונים ב'!L36= \"+\"),OR(AND(תוכנה_ב=VLC,'טבלת נתונים ב'!M36=\"+\"),OR(AND(תוכנה_ב=Google_Earth,'טבלת נתונים ב'!N36=\"+\"),OR(AND(תוכנה_ב=Firefox,'טבלת נתונים ב'!O36=\"+\"),OR(AND(תוכנה_ב=Game_Maker,'טבלת נתונים ב'!P36=\"+\"),OR(AND(תוכנה_ב=Greenfoot,'טבלת נתונים ב'!Q36=\"+\"),OR(AND(תוכנה_ב=GeoGebra,'טבלת נתונים ב'!R36=\"+\"),OR(AND(תוכנה_ב=ArcG.I.S,'טבלת נתונים ב'!S36=\"+\"),OR(AND(תוכנה_ב=CLC_Sequence_Viewer,'טבלת נתונים ב'!T36=\"+\"),OR(AND(תוכנה_ב=MEGA_5x,'טבלת נתונים ב'!U36=\"+\"),OR(AND(תוכנה_ב=Chimera,'טבלת נתונים ב'!V36=\"+\"),OR(AND(תוכנה_ב=MultiLab,'טבלת נתונים ב'!W36=\"+\"),OR(AND(תוכנה_ב=Turbo_C,'טבלת נתונים ב'!X36=\"+\"),OR(AND(תוכנה_ב=Chrome,'טבלת נתונים ב'!Y36=\"+\"),OR(AND(תוכנה_ב=CodeBlocks,'טבלת נתונים ב'!Z36=\"+\"),OR(AND(תוכנה_ב=PASCO_Capstoe,'טבלת נתונים ב'!AA36=\"+\")))))))))))))))))))))))))))","v":false},"עיבוד מקצועי של תמונות וגרפיקה"]
[null,"lib2-17-1","lib2-17-2",null,null,null,null,null,null,null,null,null,null,null,null,null,null,"lib2-5-2",{"$f":"OR(AND(תוכנה_ב=Office_Microsoft,'טבלת נתונים ב'!B37=\"+\"),OR(AND(תוכנה_ב=Spss_17b,'טבלת נתונים ב'!C37=\"+\"),OR(AND(תוכנה_ב=Babylon_b,'טבלת נתונים ב'!D37=\"+\"),OR(AND(תוכנה_ב=Eclipse_Java_b,'טבלת נתונים ב'!E37=\"+\"),OR(AND(תוכנה_ב=Photoshop_CS3b,'טבלת נתונים ב'!F37=\"+\"),OR(AND(תוכנה_ב=Flash_b,'טבלת נתונים ב'!G37=\"+\"),OR(AND(תוכנה_ב=Nero9_b,'טבלת נתונים ב'!H37=\"+\"),OR(AND(תוכנה_ב=Tree_Viewb,'טבלת נתונים ב'!I37=\"+\"),OR(AND(תוכנה_ב=Audacity,'טבלת נתונים ב'!J37=\"+\"),OR(AND(תוכנה_ב=Gene_Runner,'טבלת נתונים ב'!K37=\"+\"),OR(AND(תוכנה_ב=Natural_Reader,'טבלת נתונים ב'!L37= \"+\"),OR(AND(תוכנה_ב=VLC,'טבלת נתונים ב'!M37=\"+\"),OR(AND(תוכנה_ב=Google_Earth,'טבלת נתונים ב'!N37=\"+\"),OR(AND(תוכנה_ב=Firefox,'טבלת נתונים ב'!O37=\"+\"),OR(AND(תוכנה_ב=Game_Maker,'טבלת נתונים ב'!P37=\"+\"),OR(AND(תוכנה_ב=Greenfoot,'טבלת נתונים ב'!Q37=\"+\"),OR(AND(תוכנה_ב=GeoGebra,'טבלת נתונים ב'!R37=\"+\"),OR(AND(תוכנה_ב=ArcG.I.S,'טבלת נתונים ב'!S37=\"+\"),OR(AND(תוכנה_ב=CLC_Sequence_Viewer,'טבלת נתונים ב'!T37=\"+\"),OR(AND(תוכנה_ב=MEGA_5x,'טבלת נתונים ב'!U37=\"+\"),OR(AND(תוכנה_ב=Chimera,'טבלת נתונים ב'!V37=\"+\"),OR(AND(תוכנה_ב=MultiLab,'טבלת נתונים ב'!W37=\"+\"),OR(AND(תוכנה_ב=Turbo_C,'טבלת נתונים ב'!X37=\"+\"),OR(AND(תוכנה_ב=Chrome,'טבלת נתונים ב'!Y37=\"+\"),OR(AND(תוכנה_ב=CodeBlocks,'טבלת נתונים ב'!Z37=\"+\"),OR(AND(תוכנה_ב=PASCO_Capstoe,'טבלת נתונים ב'!AA37=\"+\")))))))))))))))))))))))))))","v":false},"עריכת אנימציה בפורמט flash"]
[null,null,null,null,null,null,null,null,null,null,null,null,null,null,null,null,null,"lib2-5-3",{"$f":"OR(AND(תוכנה_ב=Office_Microsoft,'טבלת נתונים ב'!B38=\"+\"),OR(AND(תוכנה_ב=Spss_17b,'טבלת נתונים ב'!C38=\"+\"),OR(AND(תוכנה_ב=Babylon_b,'טבלת נתונים ב'!D38=\"+\"),OR(AND(תוכנה_ב=Eclipse_Java_b,'טבלת נתונים ב'!E38=\"+\"),OR(AND(תוכנה_ב=Photoshop_CS3b,'טבלת נתונים ב'!F38=\"+\"),OR(AND(תוכנה_ב=Flash_b,'טבלת נתונים ב'!G38=\"+\"),OR(AND(תוכנה_ב=Nero9_b,'טבלת נתונים ב'!H38=\"+\"),OR(AND(תוכנה_ב=Tree_Viewb,'טבלת נתונים ב'!I38=\"+\"),OR(AND(תוכנה_ב=Audacity,'טבלת נתונים ב'!J38=\"+\"),OR(AND(תוכנה_ב=Gene_Runner,'טבלת נתונים ב'!K38=\"+\"),OR(AND(תוכנה_ב=Natural_Reader,'טבלת נתונים ב'!L38= \"+\"),OR(AND(תוכנה_ב=VLC,'טבלת נתונים ב'!M38=\"+\"),OR(AND(תוכנה_ב=Google_Earth,'טבלת נתונים ב'!N38=\"+\"),OR(AND(תוכנה_ב=Firefox,'טבלת נתונים ב'!O38=\"+\"),OR(AND(תוכנה_ב=Game_Maker,'טבלת נתונים ב'!P38=\"+\"),OR(AND(תוכנה_ב=Greenfoot,'טבלת נתונים ב'!Q38=\"+\"),OR(AND(תוכנה_ב=GeoGebra,'טבלת נתונים ב'!R38=\"+\"),OR(AND(תוכנה_ב=ArcG.I.S,'טבלת נתונים ב'!S38=\"+\"),OR(AND(תוכנה_ב=CLC_Sequence_Viewer,'טבלת נתונים ב'!T38=\"+\"),OR(AND(תוכנה_ב=MEGA_5x,'טבלת נתונים ב'!U38=\"+\"),OR(AND(תוכנה_ב=Chimera,'טבלת נתונים ב'!V38=\"+\"),OR(AND(תוכנה_ב=MultiLab,'טבלת נתונים ב'!W38=\"+\"),OR(AND(תוכנה_ב=Turbo_C,'טבלת נתונים ב'!X38=\"+\"),OR(AND(תוכנה_ב=Chrome,'טבלת נתונים ב'!Y38=\"+\"),OR(AND(תוכנה_ב=CodeBlocks,'טבלת נתונים ב'!Z38=\"+\"),OR(AND(תוכנה_ב=PASCO_Capstoe,'טבלת נתונים ב'!AA38=\"+\")))))))))))))))))))))))))))","v":false},"צריבת נתונים בסיסיים והעתקה של תקליטורי CD ו-DVD "]
[null,"lib2-18-1","lib2-18-2",null,null,null,null,null,null,null,null,null,null,null,null,null,null,"lib2-5-4",{"$f":"OR(AND(תוכנה_ב=Office_Microsoft,'טבלת נתונים ב'!B39=\"+\"),OR(AND(תוכנה_ב=Spss_17b,'טבלת נתונים ב'!C39=\"+\"),OR(AND(תוכנה_ב=Babylon_b,'טבלת נתונים ב'!D39=\"+\"),OR(AND(תוכנה_ב=Eclipse_Java_b,'טבלת נתונים ב'!E39=\"+\"),OR(AND(תוכנה_ב=Photoshop_CS3b,'טבלת נתונים ב'!F39=\"+\"),OR(AND(תוכנה_ב=Flash_b,'טבלת נתונים ב'!G39=\"+\"),OR(AND(תוכנה_ב=Nero9_b,'טבלת נתונים ב'!H39=\"+\"),OR(AND(תוכנה_ב=Tree_Viewb,'טבלת נתונים ב'!I39=\"+\"),OR(AND(תוכנה_ב=Audacity,'טבלת נתונים ב'!J39=\"+\"),OR(AND(תוכנה_ב=Gene_Runner,'טבלת נתונים ב'!K39=\"+\"),OR(AND(תוכנה_ב=Natural_Reader,'טבלת נתונים ב'!L39= \"+\"),OR(AND(תוכנה_ב=VLC,'טבלת נתונים ב'!M39=\"+\"),OR(AND(תוכנה_ב=Google_Earth,'טבלת נתונים ב'!N39=\"+\"),OR(AND(תוכנה_ב=Firefox,'טבלת נתונים ב'!O39=\"+\"),OR(AND(תוכנה_ב=Game_Maker,'טבלת נתונים ב'!P39=\"+\"),OR(AND(תוכנה_ב=Greenfoot,'טבלת נתונים ב'!Q39=\"+\"),OR(AND(תוכנה_ב=GeoGebra,'טבלת נתונים ב'!R39=\"+\"),OR(AND(תוכנה_ב=ArcG.I.S,'טבלת נתונים ב'!S39=\"+\"),OR(AND(תוכנה_ב=CLC_Sequence_Viewer,'טבלת נתונים ב'!T39=\"+\"),OR(AND(תוכנה_ב=MEGA_5x,'טבלת נתונים ב'!U39=\"+\"),OR(AND(תוכנה_ב=Chimera,'טבלת נתונים ב'!V39=\"+\"),OR(AND(תוכנה_ב=MultiLab,'טבלת נתונים ב'!W39=\"+\"),OR(AND(תוכנה_ב=Turbo_C,'טבלת נתונים ב'!X39=\"+\"),OR(AND(תוכנה_ב=Chrome,'טבלת נתונים ב'!Y39=\"+\"),OR(AND(תוכנה_ב=CodeBlocks,'טבלת נתונים ב'!Z39=\"+\"),OR(AND(תוכנה_ב=PASCO_Capstoe,'טבלת נתונים ב'!AA39=\"+\")))))))))))))))))))))))))))","v":false},"כלי לשרטוט תרשים של הירארכיות במבנה לוגי של עץ"]
[null,null,null,null,null,null,null,null,null,null,null,null,null,null,null,null,null,"lib2-5-5",{"$f":"OR(AND(תוכנה_ב=Office_Microsoft,'טבלת נתונים ב'!B40=\"+\"),OR(AND(תוכנה_ב=Spss_17b,'טבלת נתונים ב'!C40=\"+\"),OR(AND(תוכנה_ב=Babylon_b,'טבלת נתונים ב'!D40=\"+\"),OR(AND(תוכנה_ב=Eclipse_Java_b,'טבלת נתונים ב'!E40=\"+\"),OR(AND(תוכנה_ב=Photoshop_CS3b,'טבלת נתונים ב'!F40=\"+\"),OR(AND(תוכנה_ב=Flash_b,'טבלת נתונים ב'!G40=\"+\"),OR(AND(תוכנה_ב=Nero9_b,'טבלת נתונים ב'!H40=\"+\"),OR(AND(תוכנה_ב=Tree_Viewb,'טבלת נתונים ב'!I40=\"+\"),OR(AND(תוכנה_ב=Audacity,'טבלת נתונים ב'!J40=\"+\"),OR(AND(תוכנה_ב=Gene_Runner,'טבלת נתונים ב'!K40=\"+\"),OR(AND(תוכנה_ב=Natural_Reader,'טבלת נתונים ב'!L40= \"+\"),OR(AND(תוכנה_ב=VLC,'טבלת נתונים ב'!M40=\"+\"),OR(AND(תוכנה_ב=Google_Earth,'טבלת נתונים ב'!N40=\"+\"),OR(AND(תוכנה_ב=Firefox,'טבלת נתונים ב'!O40=\"+\"),OR(AND(תוכנה_ב=Game_Maker,'טבלת נתונים ב'!P40=\"+\"),OR(AND(תוכנה_ב=Greenfoot,'טבלת נתונים ב'!Q40=\"+\"),OR(AND(תוכנה_ב=GeoGebra,'טבלת נתונים ב'!R40=\"+\"),OR(AND(תוכנה_ב=ArcG.I.S,'טבלת נתונים ב'!S40=\"+\"),OR(AND(תוכנה_ב=CLC_Sequence_Viewer,'טבלת נתונים ב'!T40=\"+\"),OR(AND(תוכנה_ב=MEGA_5x,'טבלת נתונים ב'!U40=\"+\"),OR(AND(תוכנה_ב=Chimera,'טבלת נתונים ב'!V40=\"+\"),OR(AND(תוכנה_ב=MultiLab,'טבלת נתונים ב'!W40=\"+\"),OR(AND(תוכנה_ב=Turbo_C,'טבלת נתונים ב'!X40=\"+\"),OR(AND(תוכנה_ב=Chrome,'טבלת נתונים ב'!Y40=\"+\"),OR(AND(תוכנה_ב=CodeBlocks,'טבלת נתונים ב'!Z40=\"+\"),OR(AND(תוכנה_ב=PASCO_Capstoe,'טבלת נתונים ב'!AA40=\"+\")))))))))))))))))))))))))))","v":false},"תוכנה להקלטת קול ועריכת קול ומוסיקה במספר ערוצים"]
[null,"lib2-19-1","lib2-19-2",null,null,null,null,null,null,null,null,null,null,null,null,null,null,"lib2-5-6",{"$f":"OR(AND(תוכנה_ב=Office_Microsoft,'טבלת נתונים ב'!B41=\"+\"),OR(AND(תוכנה_ב=Spss_17b,'טבלת נתונים ב'!C41=\"+\"),OR(AND(תוכנה_ב=Babylon_b,'טבלת נתונים ב'!D41=\"+\"),OR(AND(תוכנה_ב=Eclipse_Java_b,'טבלת נתונים ב'!E41=\"+\"),OR(AND(תוכנה_ב=Photoshop_CS3b,'טבלת נתונים ב'!F41=\"+\"),OR(AND(תוכנה_ב=Flash_b,'טבלת נתונים ב'!G41=\"+\"),OR(AND(תוכנה_ב=Nero9_b,'טבלת נתונים ב'!H41=\"+\"),OR(AND(תוכנה_ב=Tree_Viewb,'טבלת נתונים ב'!I41=\"+\"),OR(AND(תוכנה_ב=Audacity,'טבלת נתונים ב'!J41=\"+\"),OR(AND(תוכנה_ב=Gene_Runner,'טבלת נתונים ב'!K41=\"+\"),OR(AND(תוכנה_ב=Natural_Reader,'טבלת נתונים ב'!L41= \"+\"),OR(AND(תוכנה_ב=VLC,'טבלת נתונים ב'!M41=\"+\"),OR(AND(תוכנה_ב=Google_Earth,'טבלת נתונים ב'!N41=\"+\"),OR(AND(תוכנה_ב=Firefox,'טבלת נתונים ב'!O41=\"+\"),OR(AND(תוכנה_ב=Game_Maker,'טבלת נתונים ב'!P41=\"+\"),OR(AND(תוכנה_ב=Greenfoot,'טבלת נתונים ב'!Q41=\"+\"),OR(AND(תוכנה_ב=GeoGebra,'טבלת נתונים ב'!R41=\"+\"),OR(AND(תוכנה_ב=ArcG.I.S,'טבלת נתונים ב'!S41=\"+\"),OR(AND(תוכנה_ב=CLC_Sequence_Viewer,'טבלת נתונים ב'!T41=\"+\"),OR(AND(תוכנה_ב=MEGA_5x,'טבלת נתונים ב'!U41=\"+\"),OR(AND(תוכנה_ב=Chimera,'טבלת נתונים ב'!V41=\"+\"),OR(AND(תוכנה_ב=MultiLab,'טבלת נתונים ב'!W41=\"+\"),OR(AND(תוכנה_ב=Turbo_C,'טבלת נתונים ב'!X41=\"+\"),OR(AND(תוכנה_ב=Chrome,'טבלת נתונים ב'!Y41=\"+\"),OR(AND(תוכנה_ב=CodeBlocks,'טבלת נתונים ב'!Z41=\"+\"),OR(AND(תוכנה_ב=PASCO_Capstoe,'טבלת נתונים ב'!AA41=\"+\")))))))))))))))))))))))))))","v":false},"כלי ניתוח לרצף חומצות אמינו,\nמיועד לשימוש במעבדה. מנתח תדירות קודים ומודולים שונים אחרים."]
[null,null,null,null,null,null,null,null,null,null,null,null,null,null,null,null,null,"lib2-5-7",{"$f":"OR(AND(תוכנה_ב=Office_Microsoft,'טבלת נתונים ב'!B42=\"+\"),OR(AND(תוכנה_ב=Spss_17b,'טבלת נתונים ב'!C42=\"+\"),OR(AND(תוכנה_ב=Babylon_b,'טבלת נתונים ב'!D42=\"+\"),OR(AND(תוכנה_ב=Eclipse_Java_b,'טבלת נתונים ב'!E42=\"+\"),OR(AND(תוכנה_ב=Photoshop_CS3b,'טבלת נתונים ב'!F42=\"+\"),OR(AND(תוכנה_ב=Flash_b,'טבלת נתונים ב'!G42=\"+\"),OR(AND(תוכנה_ב=Nero9_b,'טבלת נתונים ב'!H42=\"+\"),OR(AND(תוכנה_ב=Tree_Viewb,'טבלת נתונים ב'!I42=\"+\"),OR(AND(תוכנה_ב=Audacity,'טבלת נתונים ב'!J42=\"+\"),OR(AND(תוכנה_ב=Gene_Runner,'טבלת נתונים ב'!K42=\"+\"),OR(AND(תוכנה_ב=Natural_Reader,'טבלת נתונים ב'!L42= \"+\"),OR(AND(תוכנה_ב=VLC,'טבלת נתונים ב'!M42=\"+\"),OR(AND(תוכנה_ב=Google_Earth,'טבלת נתונים ב'!N42=\"+\"),OR(AND(תוכנה_ב=Firefox,'טבלת נתונים ב'!O42=\"+\"),OR(AND(תוכנה_ב=Game_Maker,'טבלת נתונים ב'!P42=\"+\"),OR(AND(תוכנה_ב=Greenfoot,'טבלת נתונים ב'!Q42=\"+\"),OR(AND(תוכנה_ב=GeoGebra,'טבלת נתונים ב'!R42=\"+\"),OR(AND(תוכנה_ב=ArcG.I.S,'טבלת נתונים ב'!S42=\"+\"),OR(AND(תוכנה_ב=CLC_Sequence_Viewer,'טבלת נתונים ב'!T42=\"+\"),OR(AND(תוכנה_ב=MEGA_5x,'טבלת נתונים ב'!U42=\"+\"),OR(AND(תוכנה_ב=Chimera,'טבלת נתונים ב'!V42=\"+\"),OR(AND(תוכנה_ב=MultiLab,'טבלת נתונים ב'!W42=\"+\"),OR(AND(תוכנה_ב=Turbo_C,'טבלת נתונים ב'!X42=\"+\"),OR(AND(תוכנה_ב=Chrome,'טבלת נתונים ב'!Y42=\"+\"),OR(AND(תוכנה_ב=CodeBlocks,'טבלת נתונים ב'!Z42=\"+\"),OR(AND(תוכנה_ב=PASCO_Capstoe,'טבלת נתונים ב'!AA42=\"+\")))))))))))))))))))))))))))","v":false},"המרת טקסט אנגלית לדיבור בקול טבעי.\nממיר טקסט ל קבצי  אודיו-MP3, או WAV"]
[null,"lib2-20-1","lib2-20-2",null,null,null,null,null,null,null,null,null,null,null,null,null,null,"lib2-5-8",{"$f":"OR(AND(תוכנה_ב=Office_Microsoft,'טבלת נתונים ב'!B43=\"+\"),OR(AND(תוכנה_ב=Spss_17b,'טבלת נתונים ב'!C43=\"+\"),OR(AND(תוכנה_ב=Babylon_b,'טבלת נתונים ב'!D43=\"+\"),OR(AND(תוכנה_ב=Eclipse_Java_b,'טבלת נתונים ב'!E43=\"+\"),OR(AND(תוכנה_ב=Photoshop_CS3b,'טבלת נתונים ב'!F43=\"+\"),OR(AND(תוכנה_ב=Flash_b,'טבלת נתונים ב'!G43=\"+\"),OR(AND(תוכנה_ב=Nero9_b,'טבלת נתונים ב'!H43=\"+\"),OR(AND(תוכנה_ב=Tree_Viewb,'טבלת נתונים ב'!I43=\"+\"),OR(AND(תוכנה_ב=Audacity,'טבלת נתונים ב'!J43=\"+\"),OR(AND(תוכנה_ב=Gene_Runner,'טבלת נתונים ב'!K43=\"+\"),OR(AND(תוכנה_ב=Natural_Reader,'טבלת נתונים ב'!L43= \"+\"),OR(AND(תוכנה_ב=VLC,'טבלת נתונים ב'!M43=\"+\"),OR(AND(תוכנה_ב=Google_Earth,'טבלת נתונים ב'!N43=\"+\"),OR(AND(תוכנה_ב=Firefox,'טבלת נתונים ב'!O43=\"+\"),OR(AND(תוכנה_ב=Game_Maker,'טבלת נתונים ב'!P43=\"+\"),OR(AND(תוכנה_ב=Greenfoot,'טבלת נתונים ב'!Q43=\"+\"),OR(AND(תוכנה_ב=GeoGebra,'טבלת נתונים ב'!R43=\"+\"),OR(AND(תוכנה_ב=ArcG.I.S,'טבלת נתונים ב'!S43=\"+\"),OR(AND(תוכנה_ב=CLC_Sequence_Viewer,'טבלת נתונים ב'!T43=\"+\"),OR(AND(תוכנה_ב=MEGA_5x,'טבלת נתונים ב'!U43=\"+\"),OR(AND(תוכנה_ב=Chimera,'טבלת נתונים ב'!V43=\"+\"),OR(AND(תוכנה_ב=MultiLab,'טבלת נתונים ב'!W43=\"+\"),OR(AND(תוכנה_ב=Turbo_C,'טבלת נתונים ב'!X43=\"+\"),OR(AND(תוכנה_ב=Chrome,'טבלת נתונים ב'!Y43=\"+\"),OR(AND(תוכנה_ב=CodeBlocks,'טבלת נתונים ב'!Z43=\"+\"),OR(AND(תוכנה_ב=PASCO_Capstoe,'טבלת נתונים ב'!AA43=\"+\")))))))))))))))))))))))))))","v":false},"הצגת תקליטורי סרטים מכל הסוגים "]
[null,null,null,null,null,null,null,null,null,null,null,null,null,null,null,null,null,"lib2-6-1",{"$f":"OR(AND(תוכנה_ב=Office_Microsoft,'טבלת נתונים ב'!B44=\"+\"),OR(AND(תוכנה_ב=Spss_17b,'טבלת נתונים ב'!C44=\"+\"),OR(AND(תוכנה_ב=Babylon_b,'טבלת נתונים ב'!D44=\"+\"),OR(AND(תוכנה_ב=Eclipse_Java_b,'טבלת נתונים ב'!E44=\"+\"),OR(AND(תוכנה_ב=Photoshop_CS3b,'טבלת נתונים ב'!F44=\"+\"),OR(AND(תוכנה_ב=Flash_b,'טבלת נתונים ב'!G44=\"+\"),OR(AND(תוכנה_ב=Nero9_b,'טבלת נתונים ב'!H44=\"+\"),OR(AND(תוכנה_ב=Tree_Viewb,'טבלת נתונים ב'!I44=\"+\"),OR(AND(תוכנה_ב=Audacity,'טבלת נתונים ב'!J44=\"+\"),OR(AND(תוכנה_ב=Gene_Runner,'טבלת נתונים ב'!K44=\"+\"),OR(AND(תוכנה_ב=Natural_Reader,'טבלת נתונים ב'!L44= \"+\"),OR(AND(תוכנה_ב=VLC,'טבלת נתונים ב'!M44=\"+\"),OR(AND(תוכנה_ב=Google_Earth,'טבלת נתונים ב'!N44=\"+\"),OR(AND(תוכנה_ב=Firefox,'טבלת נתונים ב'!O44=\"+\"),OR(AND(תוכנה_ב=Game_Maker,'טבלת נתונים ב'!P44=\"+\"),OR(AND(תוכנה_ב=Greenfoot,'טבלת נתונים ב'!Q44=\"+\"),OR(AND(תוכנה_ב=GeoGebra,'טבלת נתונים ב'!R44=\"+\"),OR(AND(תוכנה_ב=ArcG.I.S,'טבלת נתונים ב'!S44=\"+\"),OR(AND(תוכנה_ב=CLC_Sequence_Viewer,'טבלת נתונים ב'!T44=\"+\"),OR(AND(תוכנה_ב=MEGA_5x,'טבלת נתונים ב'!U44=\"+\"),OR(AND(תוכנה_ב=Chimera,'טבלת נתונים ב'!V44=\"+\"),OR(AND(תוכנה_ב=MultiLab,'טבלת נתונים ב'!W44=\"+\"),OR(AND(תוכנה_ב=Turbo_C,'טבלת נתונים ב'!X44=\"+\"),OR(AND(תוכנה_ב=Chrome,'טבלת נתונים ב'!Y44=\"+\"),OR(AND(תוכנה_ב=CodeBlocks,'טבלת נתונים ב'!Z44=\"+\"),OR(AND(תוכנה_ב=PASCO_Capstoe,'טבלת נתונים ב'!AA44=\"+\")))))))))))))))))))))))))))","v":false},"מציג תמונות לוויין, מפות, פני קרקע, מבנים 3D, נקיקי אוקיינוסים וכיו\"ב, בזויות ורזולוציות שונות."]
[null,"lib2-21-1","lib2-21-2",null,null,null,null,null,null,null,null,null,null,null,null,null,null,"lib2-6-2",{"$f":"OR(AND(תוכנה_ב=Office_Microsoft,'טבלת נתונים ב'!B45=\"+\"),OR(AND(תוכנה_ב=Spss_17b,'טבלת נתונים ב'!C45=\"+\"),OR(AND(תוכנה_ב=Babylon_b,'טבלת נתונים ב'!D45=\"+\"),OR(AND(תוכנה_ב=Eclipse_Java_b,'טבלת נתונים ב'!E45=\"+\"),OR(AND(תוכנה_ב=Photoshop_CS3b,'טבלת נתונים ב'!F45=\"+\"),OR(AND(תוכנה_ב=Flash_b,'טבלת נתונים ב'!G45=\"+\"),OR(AND(תוכנה_ב=Nero9_b,'טבלת נתונים ב'!H45=\"+\"),OR(AND(תוכנה_ב=Tree_Viewb,'טבלת נתונים ב'!I45=\"+\"),OR(AND(תוכנה_ב=Audacity,'טבלת נתונים ב'!J45=\"+\"),OR(AND(תוכנה_ב=Gene_Runner,'טבלת נתונים ב'!K45=\"+\"),OR(AND(תוכנה_ב=Natural_Reader,'טבלת נתונים ב'!L45= \"+\"),OR(AND(תוכנה_ב=VLC,'טבלת נתונים ב'!M45=\"+\"),OR(AND(תוכנה_ב=Google_Earth,'טבלת נתונים ב'!N45=\"+\"),OR(AND(תוכנה_ב=Firefox,'טבלת נתונים ב'!O45=\"+\"),OR(AND(תוכנה_ב=Game_Maker,'טבלת נתונים ב'!P45=\"+\"),OR(AND(תוכנה_ב=Greenfoot,'טבלת נתונים ב'!Q45=\"+\"),OR(AND(תוכנה_ב=GeoGebra,'טבלת נתונים ב'!R45=\"+\"),OR(AND(תוכנה_ב=ArcG.I.S,'טבלת נתונים ב'!S45=\"+\"),OR(AND(תוכנה_ב=CLC_Sequence_Viewer,'טבלת נתונים ב'!T45=\"+\"),OR(AND(תוכנה_ב=MEGA_5x,'טבלת נתונים ב'!U45=\"+\"),OR(AND(תוכנה_ב=Chimera,'טבלת נתונים ב'!V45=\"+\"),OR(AND(תוכנה_ב=MultiLab,'טבלת נתונים ב'!W45=\"+\"),OR(AND(תוכנה_ב=Turbo_C,'טבלת נתונים ב'!X45=\"+\"),OR(AND(תוכנה_ב=Chrome,'טבלת נתונים ב'!Y45=\"+\"),OR(AND(תוכנה_ב=CodeBlocks,'טבלת נתונים ב'!Z45=\"+\"),OR(AND(תוכנה_ב=PASCO_Capstoe,'טבלת נתונים ב'!AA45=\"+\")))))))))))))))))))))))))))","v":false},"דפדפן אינטרנט (בקוד פתוח).  דומה לאקספלורר"]
[null,null,null,null,null,null,null,null,null,null,null,null,null,null,null,null,null,"lib2-6-3",{"$f":"OR(AND(תוכנה_ב=Office_Microsoft,'טבלת נתונים ב'!B46=\"+\"),OR(AND(תוכנה_ב=Spss_17b,'טבלת נתונים ב'!C46=\"+\"),OR(AND(תוכנה_ב=Babylon_b,'טבלת נתונים ב'!D46=\"+\"),OR(AND(תוכנה_ב=Eclipse_Java_b,'טבלת נתונים ב'!E46=\"+\"),OR(AND(תוכנה_ב=Photoshop_CS3b,'טבלת נתונים ב'!F46=\"+\"),OR(AND(תוכנה_ב=Flash_b,'טבלת נתונים ב'!G46=\"+\"),OR(AND(תוכנה_ב=Nero9_b,'טבלת נתונים ב'!H46=\"+\"),OR(AND(תוכנה_ב=Tree_Viewb,'טבלת נתונים ב'!I46=\"+\"),OR(AND(תוכנה_ב=Audacity,'טבלת נתונים ב'!J46=\"+\"),OR(AND(תוכנה_ב=Gene_Runner,'טבלת נתונים ב'!K46=\"+\"),OR(AND(תוכנה_ב=Natural_Reader,'טבלת נתונים ב'!L46= \"+\"),OR(AND(תוכנה_ב=VLC,'טבלת נתונים ב'!M46=\"+\"),OR(AND(תוכנה_ב=Google_Earth,'טבלת נתונים ב'!N46=\"+\"),OR(AND(תוכנה_ב=Firefox,'טבלת נתונים ב'!O46=\"+\"),OR(AND(תוכנה_ב=Game_Maker,'טבלת נתונים ב'!P46=\"+\"),OR(AND(תוכנה_ב=Greenfoot,'טבלת נתונים ב'!Q46=\"+\"),OR(AND(תוכנה_ב=GeoGebra,'טבלת נתונים ב'!R46=\"+\"),OR(AND(תוכנה_ב=ArcG.I.S,'טבלת נתונים ב'!S46=\"+\"),OR(AND(תוכנה_ב=CLC_Sequence_Viewer,'טבלת נתונים ב'!T46=\"+\"),OR(AND(תוכנה_ב=MEGA_5x,'טבלת נתונים ב'!U46=\"+\"),OR(AND(תוכנה_ב=Chimera,'טבלת נתונים ב'!V46=\"+\"),OR(AND(תוכנה_ב=MultiLab,'טבלת נתונים ב'!W46=\"+\"),OR(AND(תוכנה_ב=Turbo_C,'טבלת נתונים ב'!X46=\"+\"),OR(AND(תוכנה_ב=Chrome,'טבלת נתונים ב'!Y46=\"+\"),OR(AND(תוכנה_ב=CodeBlocks,'טבלת נתונים ב'!Z46=\"+\"),OR(AND(תוכנה_ב=PASCO_Capstoe,'טבלת נתונים ב'!AA46=\"+\")))))))))))))))))))))))))))","v":false},"יצירת משחקי מחשב באנימציה"]
[null,"lib2-22-1","lib2-22-2",null,null,null,null,null,null,null,null,null,null,null,null,null,null,"lib2-6-4",{"$f":"OR(AND(תוכנה_ב=Office_Microsoft,'טבלת נתונים ב'!B47=\"+\"),OR(AND(תוכנה_ב=Spss_17b,'טבלת נתונים ב'!C47=\"+\"),OR(AND(תוכנה_ב=Babylon_b,'טבלת נתונים ב'!D47=\"+\"),OR(AND(תוכנה_ב=Eclipse_Java_b,'טבלת נתונים ב'!E47=\"+\"),OR(AND(תוכנה_ב=Photoshop_CS3b,'טבלת נתונים ב'!F47=\"+\"),OR(AND(תוכנה_ב=Flash_b,'טבלת נתונים ב'!G47=\"+\"),OR(AND(תוכנה_ב=Nero9_b,'טבלת נתונים ב'!H47=\"+\"),OR(AND(תוכנה_ב=Tree_Viewb,'טבלת נתונים ב'!I47=\"+\"),OR(AND(תוכנה_ב=Audacity,'טבלת נתונים ב'!J47=\"+\"),OR(AND(תוכנה_ב=Gene_Runner,'טבלת נתונים ב'!K47=\"+\"),OR(AND(תוכנה_ב=Natural_Reader,'טבלת נתונים ב'!L47= \"+\"),OR(AND(תוכנה_ב=VLC,'טבלת נתונים ב'!M47=\"+\"),OR(AND(תוכנה_ב=Google_Earth,'טבלת נתונים ב'!N47=\"+\"),OR(AND(תוכנה_ב=Firefox,'טבלת נתונים ב'!O47=\"+\"),OR(AND(תוכנה_ב=Game_Maker,'טבלת נתונים ב'!P47=\"+\"),OR(AND(תוכנה_ב=Greenfoot,'טבלת נתונים ב'!Q47=\"+\"),OR(AND(תוכנה_ב=GeoGebra,'טבלת נתונים ב'!R47=\"+\"),OR(AND(תוכנה_ב=ArcG.I.S,'טבלת נתונים ב'!S47=\"+\"),OR(AND(תוכנה_ב=CLC_Sequence_Viewer,'טבלת נתונים ב'!T47=\"+\"),OR(AND(תוכנה_ב=MEGA_5x,'טבלת נתונים ב'!U47=\"+\"),OR(AND(תוכנה_ב=Chimera,'טבלת נתונים ב'!V47=\"+\"),OR(AND(תוכנה_ב=MultiLab,'טבלת נתונים ב'!W47=\"+\"),OR(AND(תוכנה_ב=Turbo_C,'טבלת נתונים ב'!X47=\"+\"),OR(AND(תוכנה_ב=Chrome,'טבלת נתונים ב'!Y47=\"+\"),OR(AND(תוכנה_ב=CodeBlocks,'טבלת נתונים ב'!Z47=\"+\"),OR(AND(תוכנה_ב=PASCO_Capstoe,'טבלת נתונים ב'!AA47=\"+\")))))))))))))))))))))))))))","v":false},"יישום Java אינטראקטיבי למטרות חינוכיות. מאפשר פיתוח סימולציות ומשחקים אינטראקטיביים."]
[null,null,null,null,null,null,null,null,null,null,null,null,null,null,null,null,null,"lib2-6-5",{"$f":"OR(AND(תוכנה_ב=Office_Microsoft,'טבלת נתונים ב'!B48=\"+\"),OR(AND(תוכנה_ב=Spss_17b,'טבלת נתונים ב'!C48=\"+\"),OR(AND(תוכנה_ב=Babylon_b,'טבלת נתונים ב'!D48=\"+\"),OR(AND(תוכנה_ב=Eclipse_Java_b,'טבלת נתונים ב'!E48=\"+\"),OR(AND(תוכנה_ב=Photoshop_CS3b,'טבלת נתונים ב'!F48=\"+\"),OR(AND(תוכנה_ב=Flash_b,'טבלת נתונים ב'!G48=\"+\"),OR(AND(תוכנה_ב=Nero9_b,'טבלת נתונים ב'!H48=\"+\"),OR(AND(תוכנה_ב=Tree_Viewb,'טבלת נתונים ב'!I48=\"+\"),OR(AND(תוכנה_ב=Audacity,'טבלת נתונים ב'!J48=\"+\"),OR(AND(תוכנה_ב=Gene_Runner,'טבלת נתונים ב'!K48=\"+\"),OR(AND(תוכנה_ב=Natural_Reader,'טבלת נתונים ב'!L48= \"+\"),OR(AND(תוכנה_ב=VLC,'טבלת נתונים ב'!M48=\"+\"),OR(AND(תוכנה_ב=Google_Earth,'טבלת נתונים ב'!N48=\"+\"),OR(AND(תוכנה_ב=Firefox,'טבלת נתונים ב'!O48=\"+\"),OR(AND(תוכנה_ב=Game_Maker,'טבלת נתונים ב'!P48=\"+\"),OR(AND(תוכנה_ב=Greenfoot,'טבלת נתונים ב'!Q48=\"+\"),OR(AND(תוכנה_ב=GeoGebra,'טבלת נתונים ב'!R48=\"+\"),OR(AND(תוכנה_ב=ArcG.I.S,'טבלת נתונים ב'!S48=\"+\"),OR(AND(תוכנה_ב=CLC_Sequence_Viewer,'טבלת נתונים ב'!T48=\"+\"),OR(AND(תוכנה_ב=MEGA_5x,'טבלת נתונים ב'!U48=\"+\"),OR(AND(תוכנה_ב=Chimera,'טבלת נתונים ב'!V48=\"+\"),OR(AND(תוכנה_ב=MultiLab,'טבלת נתונים ב'!W48=\"+\"),OR(AND(תוכנה_ב=Turbo_C,'טבלת נתונים ב'!X48=\"+\"),OR(AND(תוכנה_ב=Chrome,'טבלת נתונים ב'!Y48=\"+\"),OR(AND(תוכנה_ב=CodeBlocks,'טבלת נתונים ב'!Z48=\"+\"),OR(AND(תוכנה_ב=PASCO_Capstoe,'טבלת נתונים ב'!AA48=\"+\")))))))))))))))))))))))))))","v":false}," תוכנה למתמטיקה דינמית לכל רמות הלמידה. היא משלבת גאומטריה, אלגברה, גליונות אלקטרוניים, שרטוט, סטטיסטיקה וחשבון דיפרנציאלי בחבילה אחת. באתר ניתן למצוא ולשתף משאבים ללמידה אינטראקטיבית, הוראה והערכה."]
[null,null,null,null,null,null,null,null,null,null,null,null,null,null,null,null,null,"lib2-6-6",{"$f":"OR(AND(תוכנה_ב=Office_Microsoft,'טבלת נתונים ב'!B49=\"+\"),OR(AND(תוכנה_ב=Spss_17b,'טבלת נתונים ב'!C49=\"+\"),OR(AND(תוכנה_ב=Babylon_b,'טבלת נתונים ב'!D49=\"+\"),OR(AND(תוכנה_ב=Eclipse_Java_b,'טבלת נתונים ב'!E49=\"+\"),OR(AND(תוכנה_ב=Photoshop_CS3b,'טבלת נתונים ב'!F49=\"+\"),OR(AND(תוכנה_ב=Flash_b,'טבלת נתונים ב'!G49=\"+\"),OR(AND(תוכנה_ב=Nero9_b,'טבלת נתונים ב'!H49=\"+\"),OR(AND(תוכנה_ב=Tree_Viewb,'טבלת נתונים ב'!I49=\"+\"),OR(AND(תוכנה_ב=Audacity,'טבלת נתונים ב'!J49=\"+\"),OR(AND(תוכנה_ב=Gene_Runner,'טבלת נתונים ב'!K49=\"+\"),OR(AND(תוכנה_ב=Natural_Reader,'טבלת נתונים ב'!L49= \"+\"),OR(AND(תוכנה_ב=VLC,'טבלת נתונים ב'!M49=\"+\"),OR(AND(תוכנה_ב=Google_Earth,'טבלת נתונים ב'!N49=\"+\"),OR(AND(תוכנה_ב=Firefox,'טבלת נתונים ב'!O49=\"+\"),OR(AND(תוכנה_ב=Game_Maker,'טבלת נתונים ב'!P49=\"+\"),OR(AND(תוכנה_ב=Greenfoot,'טבלת נתונים ב'!Q49=\"+\"),OR(AND(תוכנה_ב=GeoGebra,'טבלת נתונים ב'!R49=\"+\"),OR(AND(תוכנה_ב=ArcG.I.S,'טבלת נתונים ב'!S49=\"+\"),OR(AND(תוכנה_ב=CLC_Sequence_Viewer,'טבלת נתונים ב'!T49=\"+\"),OR(AND(תוכנה_ב=MEGA_5x,'טבלת נתונים ב'!U49=\"+\"),OR(AND(תוכנה_ב=Chimera,'טבלת נתונים ב'!V49=\"+\"),OR(AND(תוכנה_ב=MultiLab,'טבלת נתונים ב'!W49=\"+\"),OR(AND(תוכנה_ב=Turbo_C,'טבלת נתונים ב'!X49=\"+\"),OR(AND(תוכנה_ב=Chrome,'טבלת נתונים ב'!Y49=\"+\"),OR(AND(תוכנה_ב=CodeBlocks,'טבלת נתונים ב'!Z49=\"+\"),OR(AND(תוכנה_ב=PASCO_Capstoe,'טבלת נתונים ב'!AA49=\"+\")))))))))))))))))))))))))))","v":false},"מערכת תכנון וניהול מפות על פי כללי מדע הגיאוגרפיה."]
[null,null,null,null,null,null,null,null,null,null,null,null,null,null,null,null,null,"lib2-6-8",{"$f":"OR(AND(תוכנה_ב=Office_Microsoft,'טבלת נתונים ב'!B50=\"+\"),OR(AND(תוכנה_ב=Spss_17b,'טבלת נתונים ב'!C50=\"+\"),OR(AND(תוכנה_ב=Babylon_b,'טבלת נתונים ב'!D50=\"+\"),OR(AND(תוכנה_ב=Eclipse_Java_b,'טבלת נתונים ב'!E50=\"+\"),OR(AND(תוכנה_ב=Photoshop_CS3b,'טבלת נתונים ב'!F50=\"+\"),OR(AND(תוכנה_ב=Flash_b,'טבלת נתונים ב'!G50=\"+\"),OR(AND(תוכנה_ב=Nero9_b,'טבלת נתונים ב'!H50=\"+\"),OR(AND(תוכנה_ב=Tree_Viewb,'טבלת נתונים ב'!I50=\"+\"),OR(AND(תוכנה_ב=Audacity,'טבלת נתונים ב'!J50=\"+\"),OR(AND(תוכנה_ב=Gene_Runner,'טבלת נתונים ב'!K50=\"+\"),OR(AND(תוכנה_ב=Natural_Reader,'טבלת נתונים ב'!L50= \"+\"),OR(AND(תוכנה_ב=VLC,'טבלת נתונים ב'!M50=\"+\"),OR(AND(תוכנה_ב=Google_Earth,'טבלת נתונים ב'!N50=\"+\"),OR(AND(תוכנה_ב=Firefox,'טבלת נתונים ב'!O50=\"+\"),OR(AND(תוכנה_ב=Game_Maker,'טבלת נתונים ב'!P50=\"+\"),OR(AND(תוכנה_ב=Greenfoot,'טבלת נתונים ב'!Q50=\"+\"),OR(AND(תוכנה_ב=GeoGebra,'טבלת נתונים ב'!R50=\"+\"),OR(AND(תוכנה_ב=ArcG.I.S,'טבלת נתונים ב'!S50=\"+\"),OR(AND(תוכנה_ב=CLC_Sequence_Viewer,'טבלת נתונים ב'!T50=\"+\"),OR(AND(תוכנה_ב=MEGA_5x,'טבלת נתונים ב'!U50=\"+\"),OR(AND(תוכנה_ב=Chimera,'טבלת נתונים ב'!V50=\"+\"),OR(AND(תוכנה_ב=MultiLab,'טבלת נתונים ב'!W50=\"+\"),OR(AND(תוכנה_ב=Turbo_C,'טבלת נתונים ב'!X50=\"+\"),OR(AND(תוכנה_ב=Chrome,'טבלת נתונים ב'!Y50=\"+\"),OR(AND(תוכנה_ב=CodeBlocks,'טבלת נתונים ב'!Z50=\"+\"),OR(AND(תוכנה_ב=PASCO_Capstoe,'טבלת נתונים ב'!AA50=\"+\")))))))))))))))))))))))))))","v":false},"קבלת נתונים ביו-אינפורמטיביים ממאגרי נתונים מדעיים. ניהול הנתונים כגון רצפי חלבונים או חומר גנטי באופן גרפי "]
[null,null,null,null,null,null,null,null,null,null,null,null,null,null,null,null,null,"lib2-7-1",{"$f":"OR(AND(תוכנה_ב=Office_Microsoft,'טבלת נתונים ב'!B51=\"+\"),OR(AND(תוכנה_ב=Spss_17b,'טבלת נתונים ב'!C51=\"+\"),OR(AND(תוכנה_ב=Babylon_b,'טבלת נתונים ב'!D51=\"+\"),OR(AND(תוכנה_ב=Eclipse_Java_b,'טבלת נתונים ב'!E51=\"+\"),OR(AND(תוכנה_ב=Photoshop_CS3b,'טבלת נתונים ב'!F51=\"+\"),OR(AND(תוכנה_ב=Flash_b,'טבלת נתונים ב'!G51=\"+\"),OR(AND(תוכנה_ב=Nero9_b,'טבלת נתונים ב'!H51=\"+\"),OR(AND(תוכנה_ב=Tree_Viewb,'טבלת נתונים ב'!I51=\"+\"),OR(AND(תוכנה_ב=Audacity,'טבלת נתונים ב'!J51=\"+\"),OR(AND(תוכנה_ב=Gene_Runner,'טבלת נתונים ב'!K51=\"+\"),OR(AND(תוכנה_ב=Natural_Reader,'טבלת נתונים ב'!L51= \"+\"),OR(AND(תוכנה_ב=VLC,'טבלת נתונים ב'!M51=\"+\"),OR(AND(תוכנה_ב=Google_Earth,'טבלת נתונים ב'!N51=\"+\"),OR(AND(תוכנה_ב=Firefox,'טבלת נתונים ב'!O51=\"+\"),OR(AND(תוכנה_ב=Game_Maker,'טבלת נתונים ב'!P51=\"+\"),OR(AND(תוכנה_ב=Greenfoot,'טבלת נתונים ב'!Q51=\"+\"),OR(AND(תוכנה_ב=GeoGebra,'טבלת נתונים ב'!R51=\"+\"),OR(AND(תוכנה_ב=ArcG.I.S,'טבלת נתונים ב'!S51=\"+\"),OR(AND(תוכנה_ב=CLC_Sequence_Viewer,'טבלת נתונים ב'!T51=\"+\"),OR(AND(תוכנה_ב=MEGA_5x,'טבלת נתונים ב'!U51=\"+\"),OR(AND(תוכנה_ב=Chimera,'טבלת נתונים ב'!V51=\"+\"),OR(AND(תוכנה_ב=MultiLab,'טבלת נתונים ב'!W51=\"+\"),OR(AND(תוכנה_ב=Turbo_C,'טבלת נתונים ב'!X51=\"+\"),OR(AND(תוכנה_ב=Chrome,'טבלת נתונים ב'!Y51=\"+\"),OR(AND(תוכנה_ב=CodeBlocks,'טבלת נתונים ב'!Z51=\"+\"),OR(AND(תוכנה_ב=PASCO_Capstoe,'טבלת נתונים ב'!AA51=\"+\")))))))))))))))))))))))))))","v":false},"כלי משולב לניהול נתונים של רצפי חלבונים וחומצות גרעין מבוסס מסדי- נתונים אינטרנטיים, השוואה ל\"רצפי אבות\", ובדיקת השערות אבולוציוניות."]
[null,null,null,null,null,null,null,null,null,null,null,null,null,null,null,null,null,"lib2-7-2",{"$f":"OR(AND(תוכנה_ב=Office_Microsoft,'טבלת נתונים ב'!B52=\"+\"),OR(AND(תוכנה_ב=Spss_17b,'טבלת נתונים ב'!C52=\"+\"),OR(AND(תוכנה_ב=Babylon_b,'טבלת נתונים ב'!D52=\"+\"),OR(AND(תוכנה_ב=Eclipse_Java_b,'טבלת נתונים ב'!E52=\"+\"),OR(AND(תוכנה_ב=Photoshop_CS3b,'טבלת נתונים ב'!F52=\"+\"),OR(AND(תוכנה_ב=Flash_b,'טבלת נתונים ב'!G52=\"+\"),OR(AND(תוכנה_ב=Nero9_b,'טבלת נתונים ב'!H52=\"+\"),OR(AND(תוכנה_ב=Tree_Viewb,'טבלת נתונים ב'!I52=\"+\"),OR(AND(תוכנה_ב=Audacity,'טבלת נתונים ב'!J52=\"+\"),OR(AND(תוכנה_ב=Gene_Runner,'טבלת נתונים ב'!K52=\"+\"),OR(AND(תוכנה_ב=Natural_Reader,'טבלת נתונים ב'!L52= \"+\"),OR(AND(תוכנה_ב=VLC,'טבלת נתונים ב'!M52=\"+\"),OR(AND(תוכנה_ב=Google_Earth,'טבלת נתונים ב'!N52=\"+\"),OR(AND(תוכנה_ב=Firefox,'טבלת נתונים ב'!O52=\"+\"),OR(AND(תוכנה_ב=Game_Maker,'טבלת נתונים ב'!P52=\"+\"),OR(AND(תוכנה_ב=Greenfoot,'טבלת נתונים ב'!Q52=\"+\"),OR(AND(תוכנה_ב=GeoGebra,'טבלת נתונים ב'!R52=\"+\"),OR(AND(תוכנה_ב=ArcG.I.S,'טבלת נתונים ב'!S52=\"+\"),OR(AND(תוכנה_ב=CLC_Sequence_Viewer,'טבלת נתונים ב'!T52=\"+\"),OR(AND(תוכנה_ב=MEGA_5x,'טבלת נתונים ב'!U52=\"+\"),OR(AND(תוכנה_ב=Chimera,'טבלת נתונים ב'!V52=\"+\"),OR(AND(תוכנה_ב=MultiLab,'טבלת נתונים ב'!W52=\"+\"),OR(AND(תוכנה_ב=Turbo_C,'טבלת נתונים ב'!X52=\"+\"),OR(AND(תוכנה_ב=Chrome,'טבלת נתונים ב'!Y52=\"+\"),OR(AND(תוכנה_ב=CodeBlocks,'טבלת נתונים ב'!Z52=\"+\"),OR(AND(תוכנה_ב=PASCO_Capstoe,'טבלת נתונים ב'!AA52=\"+\")))))))))))))))))))))))))))","v":false},"הדמיה אינטראקטיבית של מבנה מולקולארי ונתונים קשורים"]
[null,null,null,null,null,null,null,null,null,null,null,null,null,null,null,null,null,"lib2-7-3",{"$f":"OR(AND(תוכנה_ב=Office_Microsoft,'טבלת נתונים ב'!B53=\"+\"),OR(AND(תוכנה_ב=Spss_17b,'טבלת נתונים ב'!C53=\"+\"),OR(AND(תוכנה_ב=Babylon_b,'טבלת נתונים ב'!D53=\"+\"),OR(AND(תוכנה_ב=Eclipse_Java_b,'טבלת נתונים ב'!E53=\"+\"),OR(AND(תוכנה_ב=Photoshop_CS3b,'טבלת נתונים ב'!F53=\"+\"),OR(AND(תוכנה_ב=Flash_b,'טבלת נתונים ב'!G53=\"+\"),OR(AND(תוכנה_ב=Nero9_b,'טבלת נתונים ב'!H53=\"+\"),OR(AND(תוכנה_ב=Tree_Viewb,'טבלת נתונים ב'!I53=\"+\"),OR(AND(תוכנה_ב=Audacity,'טבלת נתונים ב'!J53=\"+\"),OR(AND(תוכנה_ב=Gene_Runner,'טבלת נתונים ב'!K53=\"+\"),OR(AND(תוכנה_ב=Natural_Reader,'טבלת נתונים ב'!L53= \"+\"),OR(AND(תוכנה_ב=VLC,'טבלת נתונים ב'!M53=\"+\"),OR(AND(תוכנה_ב=Google_Earth,'טבלת נתונים ב'!N53=\"+\"),OR(AND(תוכנה_ב=Firefox,'טבלת נתונים ב'!O53=\"+\"),OR(AND(תוכנה_ב=Game_Maker,'טבלת נתונים ב'!P53=\"+\"),OR(AND(תוכנה_ב=Greenfoot,'טבלת נתונים ב'!Q53=\"+\"),OR(AND(תוכנה_ב=GeoGebra,'טבלת נתונים ב'!R53=\"+\"),OR(AND(תוכנה_ב=ArcG.I.S,'טבלת נתונים ב'!S53=\"+\"),OR(AND(תוכנה_ב=CLC_Sequence_Viewer,'טבלת נתונים ב'!T53=\"+\"),OR(AND(תוכנה_ב=MEGA_5x,'טבלת נתונים ב'!U53=\"+\"),OR(AND(תוכנה_ב=Chimera,'טבלת נתונים ב'!V53=\"+\"),OR(AND(תוכנה_ב=MultiLab,'טבלת נתונים ב'!W53=\"+\"),OR(AND(תוכנה_ב=Turbo_C,'טבלת נתונים ב'!X53=\"+\"),OR(AND(תוכנה_ב=Chrome,'טבלת נתונים ב'!Y53=\"+\"),OR(AND(תוכנה_ב=CodeBlocks,'טבלת נתונים ב'!Z53=\"+\"),OR(AND(תוכנה_ב=PASCO_Capstoe,'טבלת נתונים ב'!AA53=\"+\")))))))))))))))))))))))))))","v":false},"עיבוד נתונים בצורה גרפית של נתוני חיישנים שונים כגון: טמפ', לחות, קרינה רדיואקטיבית, עוצמת אור וכיו\"ב."]
[null,null,null,null,null,null,null,null,null,null,null,null,null,null,null,null,null,"lib2-7-6",{"$f":"OR(AND(תוכנה_ב=Office_Microsoft,'טבלת נתונים ב'!B54=\"+\"),OR(AND(תוכנה_ב=Spss_17b,'טבלת נתונים ב'!C54=\"+\"),OR(AND(תוכנה_ב=Babylon_b,'טבלת נתונים ב'!D54=\"+\"),OR(AND(תוכנה_ב=Eclipse_Java_b,'טבלת נתונים ב'!E54=\"+\"),OR(AND(תוכנה_ב=Photoshop_CS3b,'טבלת נתונים ב'!F54=\"+\"),OR(AND(תוכנה_ב=Flash_b,'טבלת נתונים ב'!G54=\"+\"),OR(AND(תוכנה_ב=Nero9_b,'טבלת נתונים ב'!H54=\"+\"),OR(AND(תוכנה_ב=Tree_Viewb,'טבלת נתונים ב'!I54=\"+\"),OR(AND(תוכנה_ב=Audacity,'טבלת נתונים ב'!J54=\"+\"),OR(AND(תוכנה_ב=Gene_Runner,'טבלת נתונים ב'!K54=\"+\"),OR(AND(תוכנה_ב=Natural_Reader,'טבלת נתונים ב'!L54= \"+\"),OR(AND(תוכנה_ב=VLC,'טבלת נתונים ב'!M54=\"+\"),OR(AND(תוכנה_ב=Google_Earth,'טבלת נתונים ב'!N54=\"+\"),OR(AND(תוכנה_ב=Firefox,'טבלת נתונים ב'!O54=\"+\"),OR(AND(תוכנה_ב=Game_Maker,'טבלת נתונים ב'!P54=\"+\"),OR(AND(תוכנה_ב=Greenfoot,'טבלת נתונים ב'!Q54=\"+\"),OR(AND(תוכנה_ב=GeoGebra,'טבלת נתונים ב'!R54=\"+\"),OR(AND(תוכנה_ב=ArcG.I.S,'טבלת נתונים ב'!S54=\"+\"),OR(AND(תוכנה_ב=CLC_Sequence_Viewer,'טבלת נתונים ב'!T54=\"+\"),OR(AND(תוכנה_ב=MEGA_5x,'טבלת נתונים ב'!U54=\"+\"),OR(AND(תוכנה_ב=Chimera,'טבלת נתונים ב'!V54=\"+\"),OR(AND(תוכנה_ב=MultiLab,'טבלת נתונים ב'!W54=\"+\"),OR(AND(תוכנה_ב=Turbo_C,'טבלת נתונים ב'!X54=\"+\"),OR(AND(תוכנה_ב=Chrome,'טבלת נתונים ב'!Y54=\"+\"),OR(AND(תוכנה_ב=CodeBlocks,'טבלת נתונים ב'!Z54=\"+\"),OR(AND(תוכנה_ב=PASCO_Capstoe,'טבלת נתונים ב'!AA54=\"+\")))))))))))))))))))))))))))","v":false},"תכנה מבוססת DOS לתכנות בשפת ++C"]
[null,null,null,null,null,null,null,null,null,null,null,null,null,null,null,null,null,"lib2-7-8",{"$f":"OR(AND(תוכנה_ב=Office_Microsoft,'טבלת נתונים ב'!B55=\"+\"),OR(AND(תוכנה_ב=Spss_17b,'טבלת נתונים ב'!C55=\"+\"),OR(AND(תוכנה_ב=Babylon_b,'טבלת נתונים ב'!D55=\"+\"),OR(AND(תוכנה_ב=Eclipse_Java_b,'טבלת נתונים ב'!E55=\"+\"),OR(AND(תוכנה_ב=Photoshop_CS3b,'טבלת נתונים ב'!F55=\"+\"),OR(AND(תוכנה_ב=Flash_b,'טבלת נתונים ב'!G55=\"+\"),OR(AND(תוכנה_ב=Nero9_b,'טבלת נתונים ב'!H55=\"+\"),OR(AND(תוכנה_ב=Tree_Viewb,'טבלת נתונים ב'!I55=\"+\"),OR(AND(תוכנה_ב=Audacity,'טבלת נתונים ב'!J55=\"+\"),OR(AND(תוכנה_ב=Gene_Runner,'טבלת נתונים ב'!K55=\"+\"),OR(AND(תוכנה_ב=Natural_Reader,'טבלת נתונים ב'!L55= \"+\"),OR(AND(תוכנה_ב=VLC,'טבלת נתונים ב'!M55=\"+\"),OR(AND(תוכנה_ב=Google_Earth,'טבלת נתונים ב'!N55=\"+\"),OR(AND(תוכנה_ב=Firefox,'טבלת נתונים ב'!O55=\"+\"),OR(AND(תוכנה_ב=Game_Maker,'טבלת נתונים ב'!P55=\"+\"),OR(AND(תוכנה_ב=Greenfoot,'טבלת נתונים ב'!Q55=\"+\"),OR(AND(תוכנה_ב=GeoGebra,'טבלת נתונים ב'!R55=\"+\"),OR(AND(תוכנה_ב=ArcG.I.S,'טבלת נתונים ב'!S55=\"+\"),OR(AND(תוכנה_ב=CLC_Sequence_Viewer,'טבלת נתונים ב'!T55=\"+\"),OR(AND(תוכנה_ב=MEGA_5x,'טבלת נתונים ב'!U55=\"+\"),OR(AND(תוכנה_ב=Chimera,'טבלת נתונים ב'!V55=\"+\"),OR(AND(תוכנה_ב=MultiLab,'טבלת נתונים ב'!W55=\"+\"),OR(AND(תוכנה_ב=Turbo_C,'טבלת נתונים ב'!X55=\"+\"),OR(AND(תוכנה_ב=Chrome,'טבלת נתונים ב'!Y55=\"+\"),OR(AND(תוכנה_ב=CodeBlocks,'טבלת נתונים ב'!Z55=\"+\"),OR(AND(תוכנה_ב=PASCO_Capstoe,'טבלת נתונים ב'!AA55=\"+\")))))))))))))))))))))))))))","v":false},"דפדפן אינטרנט של חברת גוגל "]
[null,null,null,null,null,null,null,null,null,null,null,null,null,null,null,null,null,"lib2-8-1",{"$f":"OR(AND(תוכנה_ב=Office_Microsoft,'טבלת נתונים ב'!B56=\"+\"),OR(AND(תוכנה_ב=Spss_17b,'טבלת נתונים ב'!C56=\"+\"),OR(AND(תוכנה_ב=Babylon_b,'טבלת נתונים ב'!D56=\"+\"),OR(AND(תוכנה_ב=Eclipse_Java_b,'טבלת נתונים ב'!E56=\"+\"),OR(AND(תוכנה_ב=Photoshop_CS3b,'טבלת נתונים ב'!F56=\"+\"),OR(AND(תוכנה_ב=Flash_b,'טבלת נתונים ב'!G56=\"+\"),OR(AND(תוכנה_ב=Nero9_b,'טבלת נתונים ב'!H56=\"+\"),OR(AND(תוכנה_ב=Tree_Viewb,'טבלת נתונים ב'!I56=\"+\"),OR(AND(תוכנה_ב=Audacity,'טבלת נתונים ב'!J56=\"+\"),OR(AND(תוכנה_ב=Gene_Runner,'טבלת נתונים ב'!K56=\"+\"),OR(AND(תוכנה_ב=Natural_Reader,'טבלת נתונים ב'!L56= \"+\"),OR(AND(תוכנה_ב=VLC,'טבלת נתונים ב'!M56=\"+\"),OR(AND(תוכנה_ב=Google_Earth,'טבלת נתונים ב'!N56=\"+\"),OR(AND(תוכנה_ב=Firefox,'טבלת נתונים ב'!O56=\"+\"),OR(AND(תוכנה_ב=Game_Maker,'טבלת נתונים ב'!P56=\"+\"),OR(AND(תוכנה_ב=Greenfoot,'טבלת נתונים ב'!Q56=\"+\"),OR(AND(תוכנה_ב=GeoGebra,'טבלת נתונים ב'!R56=\"+\"),OR(AND(תוכנה_ב=ArcG.I.S,'טבלת נתונים ב'!S56=\"+\"),OR(AND(תוכנה_ב=CLC_Sequence_Viewer,'טבלת נתונים ב'!T56=\"+\"),OR(AND(תוכנה_ב=MEGA_5x,'טבלת נתונים ב'!U56=\"+\"),OR(AND(תוכנה_ב=Chimera,'טבלת נתונים ב'!V56=\"+\"),OR(AND(תוכנה_ב=MultiLab,'טבלת נתונים ב'!W56=\"+\"),OR(AND(תוכנה_ב=Turbo_C,'טבלת נתונים ב'!X56=\"+\"),OR(AND(תוכנה_ב=Chrome,'טבלת נתונים ב'!Y56=\"+\"),OR(AND(תוכנה_ב=CodeBlocks,'טבלת נתונים ב'!Z56=\"+\"),OR(AND(תוכנה_ב=PASCO_Capstoe,'טבלת נתונים ב'!AA56=\"+\")))))))))))))))))))))))))))","v":false},"סביבת פיתוח משולבת (I.D.E) בקוד פתוח,לכתיבת אפליקציות וסקריפטים, התומכת במהדרים מרובים כמו: GCC, Clang ו- ++Visual C. פותחה בשפת ++C באמצעות wxWidgets (ספריית כלים גרפיים)  כערכת-(Graphical User Interfaces), למשתמשיה. "]
[null,null,null,null,null,null,null,null,null,null,null,null,null,null,null,null,null,"lib2-8-2",{"$f":"OR(AND(תוכנה_ב=Office_Microsoft,'טבלת נתונים ב'!B57=\"+\"),OR(AND(תוכנה_ב=Spss_17b,'טבלת נתונים ב'!C57=\"+\"),OR(AND(תוכנה_ב=Babylon_b,'טבלת נתונים ב'!D57=\"+\"),OR(AND(תוכנה_ב=Eclipse_Java_b,'טבלת נתונים ב'!E57=\"+\"),OR(AND(תוכנה_ב=Photoshop_CS3b,'טבלת נתונים ב'!F57=\"+\"),OR(AND(תוכנה_ב=Flash_b,'טבלת נתונים ב'!G57=\"+\"),OR(AND(תוכנה_ב=Nero9_b,'טבלת נתונים ב'!H57=\"+\"),OR(AND(תוכנה_ב=Tree_Viewb,'טבלת נתונים ב'!I57=\"+\"),OR(AND(תוכנה_ב=Audacity,'טבלת נתונים ב'!J57=\"+\"),OR(AND(תוכנה_ב=Gene_Runner,'טבלת נתונים ב'!K57=\"+\"),OR(AND(תוכנה_ב=Natural_Reader,'טבלת נתונים ב'!L57= \"+\"),OR(AND(תוכנה_ב=VLC,'טבלת נתונים ב'!M57=\"+\"),OR(AND(תוכנה_ב=Google_Earth,'טבלת נתונים ב'!N57=\"+\"),OR(AND(תוכנה_ב=Firefox,'טבלת נתונים ב'!O57=\"+\"),OR(AND(תוכנה_ב=Game_Maker,'טבלת נתונים ב'!P57=\"+\"),OR(AND(תוכנה_ב=Greenfoot,'טבלת נתונים ב'!Q57=\"+\"),OR(AND(תוכנה_ב=GeoGebra,'טבלת נתונים ב'!R57=\"+\"),OR(AND(תוכנה_ב=ArcG.I.S,'טבלת נתונים ב'!S57=\"+\"),OR(AND(תוכנה_ב=CLC_Sequence_Viewer,'טבלת נתונים ב'!T57=\"+\"),OR(AND(תוכנה_ב=MEGA_5x,'טבלת נתונים ב'!U57=\"+\"),OR(AND(תוכנה_ב=Chimera,'טבלת נתונים ב'!V57=\"+\"),OR(AND(תוכנה_ב=MultiLab,'טבלת נתונים ב'!W57=\"+\"),OR(AND(תוכנה_ב=Turbo_C,'טבלת נתונים ב'!X57=\"+\"),OR(AND(תוכנה_ב=Chrome,'טבלת נתונים ב'!Y57=\"+\"),OR(AND(תוכנה_ב=CodeBlocks,'טבלת נתונים ב'!Z57=\"+\"),OR(AND(תוכנה_ב=PASCO_Capstoe,'טבלת נתונים ב'!AA57=\"+\")))))))))))))))))))))))))))","v":false},"תוכנה לאיסוף, ניתוח והצגת נתונים בפיסיקה ומעבדות הנדסה."]
[null,null,null,null,null,null,null,null,null,null,null,null,null,null,null,null,null,"lib2-8-3",{"$f":"OR(AND(תוכנה_ב=Office_Microsoft,'טבלת נתונים ב'!B58=\"+\"),OR(AND(תוכנה_ב=Spss_17b,'טבלת נתונים ב'!C58=\"+\"),OR(AND(תוכנה_ב=Babylon_b,'טבלת נתונים ב'!D58=\"+\"),OR(AND(תוכנה_ב=Eclipse_Java_b,'טבלת נתונים ב'!E58=\"+\"),OR(AND(תוכנה_ב=Photoshop_CS3b,'טבלת נתונים ב'!F58=\"+\"),OR(AND(תוכנה_ב=Flash_b,'טבלת נתונים ב'!G58=\"+\"),OR(AND(תוכנה_ב=Nero9_b,'טבלת נתונים ב'!H58=\"+\"),OR(AND(תוכנה_ב=Tree_Viewb,'טבלת נתונים ב'!I58=\"+\"),OR(AND(תוכנה_ב=Audacity,'טבלת נתונים ב'!J58=\"+\"),OR(AND(תוכנה_ב=Gene_Runner,'טבלת נתונים ב'!K58=\"+\"),OR(AND(תוכנה_ב=Natural_Reader,'טבלת נתונים ב'!L58= \"+\"),OR(AND(תוכנה_ב=VLC,'טבלת נתונים ב'!M58=\"+\"),OR(AND(תוכנה_ב=Google_Earth,'טבלת נתונים ב'!N58=\"+\"),OR(AND(תוכנה_ב=Firefox,'טבלת נתונים ב'!O58=\"+\"),OR(AND(תוכנה_ב=Game_Maker,'טבלת נתונים ב'!P58=\"+\"),OR(AND(תוכנה_ב=Greenfoot,'טבלת נתונים ב'!Q58=\"+\"),OR(AND(תוכנה_ב=GeoGebra,'טבלת נתונים ב'!R58=\"+\"),OR(AND(תוכנה_ב=ArcG.I.S,'טבלת נתונים ב'!S58=\"+\"),OR(AND(תוכנה_ב=CLC_Sequence_Viewer,'טבלת נתונים ב'!T58=\"+\"),OR(AND(תוכנה_ב=MEGA_5x,'טבלת נתונים ב'!U58=\"+\"),OR(AND(תוכנה_ב=Chimera,'טבלת נתונים ב'!V58=\"+\"),OR(AND(תוכנה_ב=MultiLab,'טבלת נתונים ב'!W58=\"+\"),OR(AND(תוכנה_ב=Turbo_C,'טבלת נתונים ב'!X58=\"+\"),OR(AND(תוכנה_ב=Chrome,'טבלת נתונים ב'!Y58=\"+\"),OR(AND(תוכנה_ב=CodeBlocks,'טבלת נתונים ב'!Z58=\"+\"),OR(AND(תוכנה_ב=PASCO_Capstoe,'טבלת נתונים ב'!AA58=\"+\")))))))))))))))))))))))))))","v":false}]
[null,null,null,null,null,null,null,null,null,null,null,null,null,null,null,null,null,"lib2-8-6",{"$f":"OR(AND(תוכנה_ב=Office_Microsoft,'טבלת נתונים ב'!B59=\"+\"),OR(AND(תוכנה_ב=Spss_17b,'טבלת נתונים ב'!C59=\"+\"),OR(AND(תוכנה_ב=Babylon_b,'טבלת נתונים ב'!D59=\"+\"),OR(AND(תוכנה_ב=Eclipse_Java_b,'טבלת נתונים ב'!E59=\"+\"),OR(AND(תוכנה_ב=Photoshop_CS3b,'טבלת נתונים ב'!F59=\"+\"),OR(AND(תוכנה_ב=Flash_b,'טבלת נתונים ב'!G59=\"+\"),OR(AND(תוכנה_ב=Nero9_b,'טבלת נתונים ב'!H59=\"+\"),OR(AND(תוכנה_ב=Tree_Viewb,'טבלת נתונים ב'!I59=\"+\"),OR(AND(תוכנה_ב=Audacity,'טבלת נתונים ב'!J59=\"+\"),OR(AND(תוכנה_ב=Gene_Runner,'טבלת נתונים ב'!K59=\"+\"),OR(AND(תוכנה_ב=Natural_Reader,'טבלת נתונים ב'!L59= \"+\"),OR(AND(תוכנה_ב=VLC,'טבלת נתונים ב'!M59=\"+\"),OR(AND(תוכנה_ב=Google_Earth,'טבלת נתונים ב'!N59=\"+\"),OR(AND(תוכנה_ב=Firefox,'טבלת נתונים ב'!O59=\"+\"),OR(AND(תוכנה_ב=Game_Maker,'טבלת נתונים ב'!P59=\"+\"),OR(AND(תוכנה_ב=Greenfoot,'טבלת נתונים ב'!Q59=\"+\"),OR(AND(תוכנה_ב=GeoGebra,'טבלת נתונים ב'!R59=\"+\"),OR(AND(תוכנה_ב=ArcG.I.S,'טבלת נתונים ב'!S59=\"+\"),OR(AND(תוכנה_ב=CLC_Sequence_Viewer,'טבלת נתונים ב'!T59=\"+\"),OR(AND(תוכנה_ב=MEGA_5x,'טבלת נתונים ב'!U59=\"+\"),OR(AND(תוכנה_ב=Chimera,'טבלת נתונים ב'!V59=\"+\"),OR(AND(תוכנה_ב=MultiLab,'טבלת נתונים ב'!W59=\"+\"),OR(AND(תוכנה_ב=Turbo_C,'טבלת נתונים ב'!X59=\"+\"),OR(AND(תוכנה_ב=Chrome,'טבלת נתונים ב'!Y59=\"+\"),OR(AND(תוכנה_ב=CodeBlocks,'טבלת נתונים ב'!Z59=\"+\"),OR(AND(תוכנה_ב=PASCO_Capstoe,'טבלת נתונים ב'!AA59=\"+\")))))))))))))))))))))))))))","v":false}]
[null,null,null,null,null,null,null,null,null,null,null,null,null,null,null,null,null,"lib2-8-8",{"$f":"OR(AND(תוכנה_ב=Office_Microsoft,'טבלת נתונים ב'!B60=\"+\"),OR(AND(תוכנה_ב=Spss_17b,'טבלת נתונים ב'!C60=\"+\"),OR(AND(תוכנה_ב=Babylon_b,'טבלת נתונים ב'!D60=\"+\"),OR(AND(תוכנה_ב=Eclipse_Java_b,'טבלת נתונים ב'!E60=\"+\"),OR(AND(תוכנה_ב=Photoshop_CS3b,'טבלת נתונים ב'!F60=\"+\"),OR(AND(תוכנה_ב=Flash_b,'טבלת נתונים ב'!G60=\"+\"),OR(AND(תוכנה_ב=Nero9_b,'טבלת נתונים ב'!H60=\"+\"),OR(AND(תוכנה_ב=Tree_Viewb,'טבלת נתונים ב'!I60=\"+\"),OR(AND(תוכנה_ב=Audacity,'טבלת נתונים ב'!J60=\"+\"),OR(AND(תוכנה_ב=Gene_Runner,'טבלת נתונים ב'!K60=\"+\"),OR(AND(תוכנה_ב=Natural_Reader,'טבלת נתונים ב'!L60= \"+\"),OR(AND(תוכנה_ב=VLC,'טבלת נתונים ב'!M60=\"+\"),OR(AND(תוכנה_ב=Google_Earth,'טבלת נתונים ב'!N60=\"+\"),OR(AND(תוכנה_ב=Firefox,'טבלת נתונים ב'!O60=\"+\"),OR(AND(תוכנה_ב=Game_Maker,'טבלת נתונים ב'!P60=\"+\"),OR(AND(תוכנה_ב=Greenfoot,'טבלת נתונים ב'!Q60=\"+\"),OR(AND(תוכנה_ב=GeoGebra,'טבלת נתונים ב'!R60=\"+\"),OR(AND(תוכנה_ב=ArcG.I.S,'טבלת נתונים ב'!S60=\"+\"),OR(AND(תוכנה_ב=CLC_Sequence_Viewer,'טבלת נתונים ב'!T60=\"+\"),OR(AND(תוכנה_ב=MEGA_5x,'טבלת נתונים ב'!U60=\"+\"),OR(AND(תוכנה_ב=Chimera,'טבלת נתונים ב'!V60=\"+\"),OR(AND(תוכנה_ב=MultiLab,'טבלת נתונים ב'!W60=\"+\"),OR(AND(תוכנה_ב=Turbo_C,'טבלת נתונים ב'!X60=\"+\"),OR(AND(תוכנה_ב=Chrome,'טבלת נתונים ב'!Y60=\"+\"),OR(AND(תוכנה_ב=CodeBlocks,'טבלת נתונים ב'!Z60=\"+\"),OR(AND(תוכנה_ב=PASCO_Capstoe,'טבלת נתונים ב'!AA60=\"+\")))))))))))))))))))))))))))","v":false}]
[null,null,null,null,null,null,null,null,null,null,null,null,null,null,null,null,null,"lib2-11-2 ",{"$f":"OR(AND(תוכנה_ב=Office_Microsoft,'טבלת נתונים ב'!B61=\"+\"),OR(AND(תוכנה_ב=Spss_17b,'טבלת נתונים ב'!C61=\"+\"),OR(AND(תוכנה_ב=Babylon_b,'טבלת נתונים ב'!D61=\"+\"),OR(AND(תוכנה_ב=Eclipse_Java_b,'טבלת נתונים ב'!E61=\"+\"),OR(AND(תוכנה_ב=Photoshop_CS3b,'טבלת נתונים ב'!F61=\"+\"),OR(AND(תוכנה_ב=Flash_b,'טבלת נתונים ב'!G61=\"+\"),OR(AND(תוכנה_ב=Nero9_b,'טבלת נתונים ב'!H61=\"+\"),OR(AND(תוכנה_ב=Tree_Viewb,'טבלת נתונים ב'!I61=\"+\"),OR(AND(תוכנה_ב=Audacity,'טבלת נתונים ב'!J61=\"+\"),OR(AND(תוכנה_ב=Gene_Runner,'טבלת נתונים ב'!K61=\"+\"),OR(AND(תוכנה_ב=Natural_Reader,'טבלת נתונים ב'!L61= \"+\"),OR(AND(תוכנה_ב=VLC,'טבלת נתונים ב'!M61=\"+\"),OR(AND(תוכנה_ב=Google_Earth,'טבלת נתונים ב'!N61=\"+\"),OR(AND(תוכנה_ב=Firefox,'טבלת נתונים ב'!O61=\"+\"),OR(AND(תוכנה_ב=Game_Maker,'טבלת נתונים ב'!P61=\"+\"),OR(AND(תוכנה_ב=Greenfoot,'טבלת נתונים ב'!Q61=\"+\"),OR(AND(תוכנה_ב=GeoGebra,'טבלת נתונים ב'!R61=\"+\"),OR(AND(תוכנה_ב=ArcG.I.S,'טבלת נתונים ב'!S61=\"+\"),OR(AND(תוכנה_ב=CLC_Sequence_Viewer,'טבלת נתונים ב'!T61=\"+\"),OR(AND(תוכנה_ב=MEGA_5x,'טבלת נתונים ב'!U61=\"+\"),OR(AND(תוכנה_ב=Chimera,'טבלת נתונים ב'!V61=\"+\"),OR(AND(תוכנה_ב=MultiLab,'טבלת נתונים ב'!W61=\"+\"),OR(AND(תוכנה_ב=Turbo_C,'טבלת נתונים ב'!X61=\"+\"),OR(AND(תוכנה_ב=Chrome,'טבלת נתונים ב'!Y61=\"+\"),OR(AND(תוכנה_ב=CodeBlocks,'טבלת נתונים ב'!Z61=\"+\"),OR(AND(תוכנה_ב=PASCO_Capstoe,'טבלת נתונים ב'!AA61=\"+\")))))))))))))))))))))))))))","v":true}]
[null,null,null,null,null,null,null,null,null,null,null,null,null,null,null,null,null,"lib2-12-2 ",{"$f":"OR(AND(תוכנה_ב=Office_Microsoft,'טבלת נתונים ב'!B62=\"+\"),OR(AND(תוכנה_ב=Spss_17b,'טבלת נתונים ב'!C62=\"+\"),OR(AND(תוכנה_ב=Babylon_b,'טבלת נתונים ב'!D62=\"+\"),OR(AND(תוכנה_ב=Eclipse_Java_b,'טבלת נתונים ב'!E62=\"+\"),OR(AND(תוכנה_ב=Photoshop_CS3b,'טבלת נתונים ב'!F62=\"+\"),OR(AND(תוכנה_ב=Flash_b,'טבלת נתונים ב'!G62=\"+\"),OR(AND(תוכנה_ב=Nero9_b,'טבלת נתונים ב'!H62=\"+\"),OR(AND(תוכנה_ב=Tree_Viewb,'טבלת נתונים ב'!I62=\"+\"),OR(AND(תוכנה_ב=Audacity,'טבלת נתונים ב'!J62=\"+\"),OR(AND(תוכנה_ב=Gene_Runner,'טבלת נתונים ב'!K62=\"+\"),OR(AND(תוכנה_ב=Natural_Reader,'טבלת נתונים ב'!L62= \"+\"),OR(AND(תוכנה_ב=VLC,'טבלת נתונים ב'!M62=\"+\"),OR(AND(תוכנה_ב=Google_Earth,'טבלת נתונים ב'!N62=\"+\"),OR(AND(תוכנה_ב=Firefox,'טבלת נתונים ב'!O62=\"+\"),OR(AND(תוכנה_ב=Game_Maker,'טבלת נתונים ב'!P62=\"+\"),OR(AND(תוכנה_ב=Greenfoot,'טבלת נתונים ב'!Q62=\"+\"),OR(AND(תוכנה_ב=GeoGebra,'טבלת נתונים ב'!R62=\"+\"),OR(AND(תוכנה_ב=ArcG.I.S,'טבלת נתונים ב'!S62=\"+\"),OR(AND(תוכנה_ב=CLC_Sequence_Viewer,'טבלת נתונים ב'!T62=\"+\"),OR(AND(תוכנה_ב=MEGA_5x,'טבלת נתונים ב'!U62=\"+\"),OR(AND(תוכנה_ב=Chimera,'טבלת נתונים ב'!V62=\"+\"),OR(AND(תוכנה_ב=MultiLab,'טבלת נתונים ב'!W62=\"+\"),OR(AND(תוכנה_ב=Turbo_C,'טבלת נתונים ב'!X62=\"+\"),OR(AND(תוכנה_ב=Chrome,'טבלת נתונים ב'!Y62=\"+\"),OR(AND(תוכנה_ב=CodeBlocks,'טבלת נתונים ב'!Z62=\"+\"),OR(AND(תוכנה_ב=PASCO_Capstoe,'טבלת נתונים ב'!AA62=\"+\")))))))))))))))))))))))))))","v":true}]
[null,null,null,null,null,null,null,null,null,null,null,null,null,null,null,null,null,"lib2-13-2",{"$f":"OR(AND(תוכנה_ב=Office_Microsoft,'טבלת נתונים ב'!B63=\"+\"),OR(AND(תוכנה_ב=Spss_17b,'טבלת נתונים ב'!C63=\"+\"),OR(AND(תוכנה_ב=Babylon_b,'טבלת נתונים ב'!D63=\"+\"),OR(AND(תוכנה_ב=Eclipse_Java_b,'טבלת נתונים ב'!E63=\"+\"),OR(AND(תוכנה_ב=Photoshop_CS3b,'טבלת נתונים ב'!F63=\"+\"),OR(AND(תוכנה_ב=Flash_b,'טבלת נתונים ב'!G63=\"+\"),OR(AND(תוכנה_ב=Nero9_b,'טבלת נתונים ב'!H63=\"+\"),OR(AND(תוכנה_ב=Tree_Viewb,'טבלת נתונים ב'!I63=\"+\"),OR(AND(תוכנה_ב=Audacity,'טבלת נתונים ב'!J63=\"+\"),OR(AND(תוכנה_ב=Gene_Runner,'טבלת נתונים ב'!K63=\"+\"),OR(AND(תוכנה_ב=Natural_Reader,'טבלת נתונים ב'!L63= \"+\"),OR(AND(תוכנה_ב=VLC,'טבלת נתונים ב'!M63=\"+\"),OR(AND(תוכנה_ב=Google_Earth,'טבלת נתונים ב'!N63=\"+\"),OR(AND(תוכנה_ב=Firefox,'טבלת נתונים ב'!O63=\"+\"),OR(AND(תוכנה_ב=Game_Maker,'טבלת נתונים ב'!P63=\"+\"),OR(AND(תוכנה_ב=Greenfoot,'טבלת נתונים ב'!Q63=\"+\"),OR(AND(תוכנה_ב=GeoGebra,'טבלת נתונים ב'!R63=\"+\"),OR(AND(תוכנה_ב=ArcG.I.S,'טבלת נתונים ב'!S63=\"+\"),OR(AND(תוכנה_ב=CLC_Sequence_Viewer,'טבלת נתונים ב'!T63=\"+\"),OR(AND(תוכנה_ב=MEGA_5x,'טבלת נתונים ב'!U63=\"+\"),OR(AND(תוכנה_ב=Chimera,'טבלת נתונים ב'!V63=\"+\"),OR(AND(תוכנה_ב=MultiLab,'טבלת נתונים ב'!W63=\"+\"),OR(AND(תוכנה_ב=Turbo_C,'טבלת נתונים ב'!X63=\"+\"),OR(AND(תוכנה_ב=Chrome,'טבלת נתונים ב'!Y63=\"+\"),OR(AND(תוכנה_ב=CodeBlocks,'טבלת נתונים ב'!Z63=\"+\"),OR(AND(תוכנה_ב=PASCO_Capstoe,'טבלת נתונים ב'!AA63=\"+\")))))))))))))))))))))))))))","v":true}]
[null,null,null,null,null,null,null,null,null,null,null,null,null,null,null,null,null,"lib2-14-1",{"$f":"OR(AND(תוכנה_ב=Office_Microsoft,'טבלת נתונים ב'!B64=\"+\"),OR(AND(תוכנה_ב=Spss_17b,'טבלת נתונים ב'!C64=\"+\"),OR(AND(תוכנה_ב=Babylon_b,'טבלת נתונים ב'!D64=\"+\"),OR(AND(תוכנה_ב=Eclipse_Java_b,'טבלת נתונים ב'!E64=\"+\"),OR(AND(תוכנה_ב=Photoshop_CS3b,'טבלת נתונים ב'!F64=\"+\"),OR(AND(תוכנה_ב=Flash_b,'טבלת נתונים ב'!G64=\"+\"),OR(AND(תוכנה_ב=Nero9_b,'טבלת נתונים ב'!H64=\"+\"),OR(AND(תוכנה_ב=Tree_Viewb,'טבלת נתונים ב'!I64=\"+\"),OR(AND(תוכנה_ב=Audacity,'טבלת נתונים ב'!J64=\"+\"),OR(AND(תוכנה_ב=Gene_Runner,'טבלת נתונים ב'!K64=\"+\"),OR(AND(תוכנה_ב=Natural_Reader,'טבלת נתונים ב'!L64= \"+\"),OR(AND(תוכנה_ב=VLC,'טבלת נתונים ב'!M64=\"+\"),OR(AND(תוכנה_ב=Google_Earth,'טבלת נתונים ב'!N64=\"+\"),OR(AND(תוכנה_ב=Firefox,'טבלת נתונים ב'!O64=\"+\"),OR(AND(תוכנה_ב=Game_Maker,'טבלת נתונים ב'!P64=\"+\"),OR(AND(תוכנה_ב=Greenfoot,'טבלת נתונים ב'!Q64=\"+\"),OR(AND(תוכנה_ב=GeoGebra,'טבלת נתונים ב'!R64=\"+\"),OR(AND(תוכנה_ב=ArcG.I.S,'טבלת נתונים ב'!S64=\"+\"),OR(AND(תוכנה_ב=CLC_Sequence_Viewer,'טבלת נתונים ב'!T64=\"+\"),OR(AND(תוכנה_ב=MEGA_5x,'טבלת נתונים ב'!U64=\"+\"),OR(AND(תוכנה_ב=Chimera,'טבלת נתונים ב'!V64=\"+\"),OR(AND(תוכנה_ב=MultiLab,'טבלת נתונים ב'!W64=\"+\"),OR(AND(תוכנה_ב=Turbo_C,'טבלת נתונים ב'!X64=\"+\"),OR(AND(תוכנה_ב=Chrome,'טבלת נתונים ב'!Y64=\"+\"),OR(AND(תוכנה_ב=CodeBlocks,'טבלת נתונים ב'!Z64=\"+\"),OR(AND(תוכנה_ב=PASCO_Capstoe,'טבלת נתונים ב'!AA64=\"+\")))))))))))))))))))))))))))","v":true}]
[null,null,null,null,null,null,null,null,null,null,null,null,null,null,null,null,null,"lib2-14-2",{"$f":"OR(AND(תוכנה_ב=Office_Microsoft,'טבלת נתונים ב'!B65=\"+\"),OR(AND(תוכנה_ב=Spss_17b,'טבלת נתונים ב'!C65=\"+\"),OR(AND(תוכנה_ב=Babylon_b,'טבלת נתונים ב'!D65=\"+\"),OR(AND(תוכנה_ב=Eclipse_Java_b,'טבלת נתונים ב'!E65=\"+\"),OR(AND(תוכנה_ב=Photoshop_CS3b,'טבלת נתונים ב'!F65=\"+\"),OR(AND(תוכנה_ב=Flash_b,'טבלת נתונים ב'!G65=\"+\"),OR(AND(תוכנה_ב=Nero9_b,'טבלת נתונים ב'!H65=\"+\"),OR(AND(תוכנה_ב=Tree_Viewb,'טבלת נתונים ב'!I65=\"+\"),OR(AND(תוכנה_ב=Audacity,'טבלת נתונים ב'!J65=\"+\"),OR(AND(תוכנה_ב=Gene_Runner,'טבלת נתונים ב'!K65=\"+\"),OR(AND(תוכנה_ב=Natural_Reader,'טבלת נתונים ב'!L65= \"+\"),OR(AND(תוכנה_ב=VLC,'טבלת נתונים ב'!M65=\"+\"),OR(AND(תוכנה_ב=Google_Earth,'טבלת נתונים ב'!N65=\"+\"),OR(AND(תוכנה_ב=Firefox,'טבלת נתונים ב'!O65=\"+\"),OR(AND(תוכנה_ב=Game_Maker,'טבלת נתונים ב'!P65=\"+\"),OR(AND(תוכנה_ב=Greenfoot,'טבלת נתונים ב'!Q65=\"+\"),OR(AND(תוכנה_ב=GeoGebra,'טבלת נתונים ב'!R65=\"+\"),OR(AND(תוכנה_ב=ArcG.I.S,'טבלת נתונים ב'!S65=\"+\"),OR(AND(תוכנה_ב=CLC_Sequence_Viewer,'טבלת נתונים ב'!T65=\"+\"),OR(AND(תוכנה_ב=MEGA_5x,'טבלת נתונים ב'!U65=\"+\"),OR(AND(תוכנה_ב=Chimera,'טבלת נתונים ב'!V65=\"+\"),OR(AND(תוכנה_ב=MultiLab,'טבלת נתונים ב'!W65=\"+\"),OR(AND(תוכנה_ב=Turbo_C,'טבלת נתונים ב'!X65=\"+\"),OR(AND(תוכנה_ב=Chrome,'טבלת נתונים ב'!Y65=\"+\"),OR(AND(תוכנה_ב=CodeBlocks,'טבלת נתונים ב'!Z65=\"+\"),OR(AND(תוכנה_ב=PASCO_Capstoe,'טבלת נתונים ב'!AA65=\"+\")))))))))))))))))))))))))))","v":true}]
[null,null,null,null,null,null,null,null,null,null,null,null,null,null,null,null,null,"lib2-15-1",{"$f":"OR(AND(תוכנה_ב=Office_Microsoft,'טבלת נתונים ב'!B66=\"+\"),OR(AND(תוכנה_ב=Spss_17b,'טבלת נתונים ב'!C66=\"+\"),OR(AND(תוכנה_ב=Babylon_b,'טבלת נתונים ב'!D66=\"+\"),OR(AND(תוכנה_ב=Eclipse_Java_b,'טבלת נתונים ב'!E66=\"+\"),OR(AND(תוכנה_ב=Photoshop_CS3b,'טבלת נתונים ב'!F66=\"+\"),OR(AND(תוכנה_ב=Flash_b,'טבלת נתונים ב'!G66=\"+\"),OR(AND(תוכנה_ב=Nero9_b,'טבלת נתונים ב'!H66=\"+\"),OR(AND(תוכנה_ב=Tree_Viewb,'טבלת נתונים ב'!I66=\"+\"),OR(AND(תוכנה_ב=Audacity,'טבלת נתונים ב'!J66=\"+\"),OR(AND(תוכנה_ב=Gene_Runner,'טבלת נתונים ב'!K66=\"+\"),OR(AND(תוכנה_ב=Natural_Reader,'טבלת נתונים ב'!L66= \"+\"),OR(AND(תוכנה_ב=VLC,'טבלת נתונים ב'!M66=\"+\"),OR(AND(תוכנה_ב=Google_Earth,'טבלת נתונים ב'!N66=\"+\"),OR(AND(תוכנה_ב=Firefox,'טבלת נתונים ב'!O66=\"+\"),OR(AND(תוכנה_ב=Game_Maker,'טבלת נתונים ב'!P66=\"+\"),OR(AND(תוכנה_ב=Greenfoot,'טבלת נתונים ב'!Q66=\"+\"),OR(AND(תוכנה_ב=GeoGebra,'טבלת נתונים ב'!R66=\"+\"),OR(AND(תוכנה_ב=ArcG.I.S,'טבלת נתונים ב'!S66=\"+\"),OR(AND(תוכנה_ב=CLC_Sequence_Viewer,'טבלת נתונים ב'!T66=\"+\"),OR(AND(תוכנה_ב=MEGA_5x,'טבלת נתונים ב'!U66=\"+\"),OR(AND(תוכנה_ב=Chimera,'טבלת נתונים ב'!V66=\"+\"),OR(AND(תוכנה_ב=MultiLab,'טבלת נתונים ב'!W66=\"+\"),OR(AND(תוכנה_ב=Turbo_C,'טבלת נתונים ב'!X66=\"+\"),OR(AND(תוכנה_ב=Chrome,'טבלת נתונים ב'!Y66=\"+\"),OR(AND(תוכנה_ב=CodeBlocks,'טבלת נתונים ב'!Z66=\"+\"),OR(AND(תוכנה_ב=PASCO_Capstoe,'טבלת נתונים ב'!AA66=\"+\")))))))))))))))))))))))))))","v":true}]
[null,null,null,null,null,null,null,null,null,null,null,null,null,null,null,null,null,"lib2-15-2",{"$f":"OR(AND(תוכנה_ב=Office_Microsoft,'טבלת נתונים ב'!B67=\"+\"),OR(AND(תוכנה_ב=Spss_17b,'טבלת נתונים ב'!C67=\"+\"),OR(AND(תוכנה_ב=Babylon_b,'טבלת נתונים ב'!D67=\"+\"),OR(AND(תוכנה_ב=Eclipse_Java_b,'טבלת נתונים ב'!E67=\"+\"),OR(AND(תוכנה_ב=Photoshop_CS3b,'טבלת נתונים ב'!F67=\"+\"),OR(AND(תוכנה_ב=Flash_b,'טבלת נתונים ב'!G67=\"+\"),OR(AND(תוכנה_ב=Nero9_b,'טבלת נתונים ב'!H67=\"+\"),OR(AND(תוכנה_ב=Tree_Viewb,'טבלת נתונים ב'!I67=\"+\"),OR(AND(תוכנה_ב=Audacity,'טבלת נתונים ב'!J67=\"+\"),OR(AND(תוכנה_ב=Gene_Runner,'טבלת נתונים ב'!K67=\"+\"),OR(AND(תוכנה_ב=Natural_Reader,'טבלת נתונים ב'!L67= \"+\"),OR(AND(תוכנה_ב=VLC,'טבלת נתונים ב'!M67=\"+\"),OR(AND(תוכנה_ב=Google_Earth,'טבלת נתונים ב'!N67=\"+\"),OR(AND(תוכנה_ב=Firefox,'טבלת נתונים ב'!O67=\"+\"),OR(AND(תוכנה_ב=Game_Maker,'טבלת נתונים ב'!P67=\"+\"),OR(AND(תוכנה_ב=Greenfoot,'טבלת נתונים ב'!Q67=\"+\"),OR(AND(תוכנה_ב=GeoGebra,'טבלת נתונים ב'!R67=\"+\"),OR(AND(תוכנה_ב=ArcG.I.S,'טבלת נתונים ב'!S67=\"+\"),OR(AND(תוכנה_ב=CLC_Sequence_Viewer,'טבלת נתונים ב'!T67=\"+\"),OR(AND(תוכנה_ב=MEGA_5x,'טבלת נתונים ב'!U67=\"+\"),OR(AND(תוכנה_ב=Chimera,'טבלת נתונים ב'!V67=\"+\"),OR(AND(תוכנה_ב=MultiLab,'טבלת נתונים ב'!W67=\"+\"),OR(AND(תוכנה_ב=Turbo_C,'טבלת נתונים ב'!X67=\"+\"),OR(AND(תוכנה_ב=Chrome,'טבלת נתונים ב'!Y67=\"+\"),OR(AND(תוכנה_ב=CodeBlocks,'טבלת נתונים ב'!Z67=\"+\"),OR(AND(תוכנה_ב=PASCO_Capstoe,'טבלת נתונים ב'!AA67=\"+\")))))))))))))))))))))))))))","v":true}]
[null,null,null,null,null,null,null,null,null,null,null,null,null,null,null,null,null,"lib2-16-1",{"$f":"OR(AND(תוכנה_ב=Office_Microsoft,'טבלת נתונים ב'!B68=\"+\"),OR(AND(תוכנה_ב=Spss_17b,'טבלת נתונים ב'!C68=\"+\"),OR(AND(תוכנה_ב=Babylon_b,'טבלת נתונים ב'!D68=\"+\"),OR(AND(תוכנה_ב=Eclipse_Java_b,'טבלת נתונים ב'!E68=\"+\"),OR(AND(תוכנה_ב=Photoshop_CS3b,'טבלת נתונים ב'!F68=\"+\"),OR(AND(תוכנה_ב=Flash_b,'טבלת נתונים ב'!G68=\"+\"),OR(AND(תוכנה_ב=Nero9_b,'טבלת נתונים ב'!H68=\"+\"),OR(AND(תוכנה_ב=Tree_Viewb,'טבלת נתונים ב'!I68=\"+\"),OR(AND(תוכנה_ב=Audacity,'טבלת נתונים ב'!J68=\"+\"),OR(AND(תוכנה_ב=Gene_Runner,'טבלת נתונים ב'!K68=\"+\"),OR(AND(תוכנה_ב=Natural_Reader,'טבלת נתונים ב'!L68= \"+\"),OR(AND(תוכנה_ב=VLC,'טבלת נתונים ב'!M68=\"+\"),OR(AND(תוכנה_ב=Google_Earth,'טבלת נתונים ב'!N68=\"+\"),OR(AND(תוכנה_ב=Firefox,'טבלת נתונים ב'!O68=\"+\"),OR(AND(תוכנה_ב=Game_Maker,'טבלת נתונים ב'!P68=\"+\"),OR(AND(תוכנה_ב=Greenfoot,'טבלת נתונים ב'!Q68=\"+\"),OR(AND(תוכנה_ב=GeoGebra,'טבלת נתונים ב'!R68=\"+\"),OR(AND(תוכנה_ב=ArcG.I.S,'טבלת נתונים ב'!S68=\"+\"),OR(AND(תוכנה_ב=CLC_Sequence_Viewer,'טבלת נתונים ב'!T68=\"+\"),OR(AND(תוכנה_ב=MEGA_5x,'טבלת נתונים ב'!U68=\"+\"),OR(AND(תוכנה_ב=Chimera,'טבלת נתונים ב'!V68=\"+\"),OR(AND(תוכנה_ב=MultiLab,'טבלת נתונים ב'!W68=\"+\"),OR(AND(תוכנה_ב=Turbo_C,'טבלת נתונים ב'!X68=\"+\"),OR(AND(תוכנה_ב=Chrome,'טבלת נתונים ב'!Y68=\"+\"),OR(AND(תוכנה_ב=CodeBlocks,'טבלת נתונים ב'!Z68=\"+\"),OR(AND(תוכנה_ב=PASCO_Capstoe,'טבלת נתונים ב'!AA68=\"+\")))))))))))))))))))))))))))","v":true}]
[null,null,null,null,null,null,null,null,null,null,null,null,null,null,null,null,null,"lib2-16-2",{"$f":"OR(AND(תוכנה_ב=Office_Microsoft,'טבלת נתונים ב'!B69=\"+\"),OR(AND(תוכנה_ב=Spss_17b,'טבלת נתונים ב'!C69=\"+\"),OR(AND(תוכנה_ב=Babylon_b,'טבלת נתונים ב'!D69=\"+\"),OR(AND(תוכנה_ב=Eclipse_Java_b,'טבלת נתונים ב'!E69=\"+\"),OR(AND(תוכנה_ב=Photoshop_CS3b,'טבלת נתונים ב'!F69=\"+\"),OR(AND(תוכנה_ב=Flash_b,'טבלת נתונים ב'!G69=\"+\"),OR(AND(תוכנה_ב=Nero9_b,'טבלת נתונים ב'!H69=\"+\"),OR(AND(תוכנה_ב=Tree_Viewb,'טבלת נתונים ב'!I69=\"+\"),OR(AND(תוכנה_ב=Audacity,'טבלת נתונים ב'!J69=\"+\"),OR(AND(תוכנה_ב=Gene_Runner,'טבלת נתונים ב'!K69=\"+\"),OR(AND(תוכנה_ב=Natural_Reader,'טבלת נתונים ב'!L69= \"+\"),OR(AND(תוכנה_ב=VLC,'טבלת נתונים ב'!M69=\"+\"),OR(AND(תוכנה_ב=Google_Earth,'טבלת נתונים ב'!N69=\"+\"),OR(AND(תוכנה_ב=Firefox,'טבלת נתונים ב'!O69=\"+\"),OR(AND(תוכנה_ב=Game_Maker,'טבלת נתונים ב'!P69=\"+\"),OR(AND(תוכנה_ב=Greenfoot,'טבלת נתונים ב'!Q69=\"+\"),OR(AND(תוכנה_ב=GeoGebra,'טבלת נתונים ב'!R69=\"+\"),OR(AND(תוכנה_ב=ArcG.I.S,'טבלת נתונים ב'!S69=\"+\"),OR(AND(תוכנה_ב=CLC_Sequence_Viewer,'טבלת נתונים ב'!T69=\"+\"),OR(AND(תוכנה_ב=MEGA_5x,'טבלת נתונים ב'!U69=\"+\"),OR(AND(תוכנה_ב=Chimera,'טבלת נתונים ב'!V69=\"+\"),OR(AND(תוכנה_ב=MultiLab,'טבלת נתונים ב'!W69=\"+\"),OR(AND(תוכנה_ב=Turbo_C,'טבלת נתונים ב'!X69=\"+\"),OR(AND(תוכנה_ב=Chrome,'טבלת נתונים ב'!Y69=\"+\"),OR(AND(תוכנה_ב=CodeBlocks,'טבלת נתונים ב'!Z69=\"+\"),OR(AND(תוכנה_ב=PASCO_Capstoe,'טבלת נתונים ב'!AA69=\"+\")))))))))))))))))))))))))))","v":true}]
[null,null,null,null,null,null,null,null,null,null,null,null,null,null,null,null,null,"lib2-17-1",{"$f":"OR(AND(תוכנה_ב=Office_Microsoft,'טבלת נתונים ב'!B70=\"+\"),OR(AND(תוכנה_ב=Spss_17b,'טבלת נתונים ב'!C70=\"+\"),OR(AND(תוכנה_ב=Babylon_b,'טבלת נתונים ב'!D70=\"+\"),OR(AND(תוכנה_ב=Eclipse_Java_b,'טבלת נתונים ב'!E70=\"+\"),OR(AND(תוכנה_ב=Photoshop_CS3b,'טבלת נתונים ב'!F70=\"+\"),OR(AND(תוכנה_ב=Flash_b,'טבלת נתונים ב'!G70=\"+\"),OR(AND(תוכנה_ב=Nero9_b,'טבלת נתונים ב'!H70=\"+\"),OR(AND(תוכנה_ב=Tree_Viewb,'טבלת נתונים ב'!I70=\"+\"),OR(AND(תוכנה_ב=Audacity,'טבלת נתונים ב'!J70=\"+\"),OR(AND(תוכנה_ב=Gene_Runner,'טבלת נתונים ב'!K70=\"+\"),OR(AND(תוכנה_ב=Natural_Reader,'טבלת נתונים ב'!L70= \"+\"),OR(AND(תוכנה_ב=VLC,'טבלת נתונים ב'!M70=\"+\"),OR(AND(תוכנה_ב=Google_Earth,'טבלת נתונים ב'!N70=\"+\"),OR(AND(תוכנה_ב=Firefox,'טבלת נתונים ב'!O70=\"+\"),OR(AND(תוכנה_ב=Game_Maker,'טבלת נתונים ב'!P70=\"+\"),OR(AND(תוכנה_ב=Greenfoot,'טבלת נתונים ב'!Q70=\"+\"),OR(AND(תוכנה_ב=GeoGebra,'טבלת נתונים ב'!R70=\"+\"),OR(AND(תוכנה_ב=ArcG.I.S,'טבלת נתונים ב'!S70=\"+\"),OR(AND(תוכנה_ב=CLC_Sequence_Viewer,'טבלת נתונים ב'!T70=\"+\"),OR(AND(תוכנה_ב=MEGA_5x,'טבלת נתונים ב'!U70=\"+\"),OR(AND(תוכנה_ב=Chimera,'טבלת נתונים ב'!V70=\"+\"),OR(AND(תוכנה_ב=MultiLab,'טבלת נתונים ב'!W70=\"+\"),OR(AND(תוכנה_ב=Turbo_C,'טבלת נתונים ב'!X70=\"+\"),OR(AND(תוכנה_ב=Chrome,'טבלת נתונים ב'!Y70=\"+\"),OR(AND(תוכנה_ב=CodeBlocks,'טבלת נתונים ב'!Z70=\"+\"),OR(AND(תוכנה_ב=PASCO_Capstoe,'טבלת נתונים ב'!AA70=\"+\")))))))))))))))))))))))))))","v":true}]
[null,null,null,null,null,null,null,null,null,null,null,null,null,null,null,null,null,"lib2-17-2",{"$f":"OR(AND(תוכנה_ב=Office_Microsoft,'טבלת נתונים ב'!B71=\"+\"),OR(AND(תוכנה_ב=Spss_17b,'טבלת נתונים ב'!C71=\"+\"),OR(AND(תוכנה_ב=Babylon_b,'טבלת נתונים ב'!D71=\"+\"),OR(AND(תוכנה_ב=Eclipse_Java_b,'טבלת נתונים ב'!E71=\"+\"),OR(AND(תוכנה_ב=Photoshop_CS3b,'טבלת נתונים ב'!F71=\"+\"),OR(AND(תוכנה_ב=Flash_b,'טבלת נתונים ב'!G71=\"+\"),OR(AND(תוכנה_ב=Nero9_b,'טבלת נתונים ב'!H71=\"+\"),OR(AND(תוכנה_ב=Tree_Viewb,'טבלת נתונים ב'!I71=\"+\"),OR(AND(תוכנה_ב=Audacity,'טבלת נתונים ב'!J71=\"+\"),OR(AND(תוכנה_ב=Gene_Runner,'טבלת נתונים ב'!K71=\"+\"),OR(AND(תוכנה_ב=Natural_Reader,'טבלת נתונים ב'!L71= \"+\"),OR(AND(תוכנה_ב=VLC,'טבלת נתונים ב'!M71=\"+\"),OR(AND(תוכנה_ב=Google_Earth,'טבלת נתונים ב'!N71=\"+\"),OR(AND(תוכנה_ב=Firefox,'טבלת נתונים ב'!O71=\"+\"),OR(AND(תוכנה_ב=Game_Maker,'טבלת נתונים ב'!P71=\"+\"),OR(AND(תוכנה_ב=Greenfoot,'טבלת נתונים ב'!Q71=\"+\"),OR(AND(תוכנה_ב=GeoGebra,'טבלת נתונים ב'!R71=\"+\"),OR(AND(תוכנה_ב=ArcG.I.S,'טבלת נתונים ב'!S71=\"+\"),OR(AND(תוכנה_ב=CLC_Sequence_Viewer,'טבלת נתונים ב'!T71=\"+\"),OR(AND(תוכנה_ב=MEGA_5x,'טבלת נתונים ב'!U71=\"+\"),OR(AND(תוכנה_ב=Chimera,'טבלת נתונים ב'!V71=\"+\"),OR(AND(תוכנה_ב=MultiLab,'טבלת נתונים ב'!W71=\"+\"),OR(AND(תוכנה_ב=Turbo_C,'טבלת נתונים ב'!X71=\"+\"),OR(AND(תוכנה_ב=Chrome,'טבלת נתונים ב'!Y71=\"+\"),OR(AND(תוכנה_ב=CodeBlocks,'טבלת נתונים ב'!Z71=\"+\"),OR(AND(תוכנה_ב=PASCO_Capstoe,'טבלת נתונים ב'!AA71=\"+\")))))))))))))))))))))))))))","v":true}]
[null,null,null,null,null,null,null,null,null,null,null,null,null,null,null,null,null,"lib2-18-1",{"$f":"OR(AND(תוכנה_ב=Office_Microsoft,'טבלת נתונים ב'!B72=\"+\"),OR(AND(תוכנה_ב=Spss_17b,'טבלת נתונים ב'!C72=\"+\"),OR(AND(תוכנה_ב=Babylon_b,'טבלת נתונים ב'!D72=\"+\"),OR(AND(תוכנה_ב=Eclipse_Java_b,'טבלת נתונים ב'!E72=\"+\"),OR(AND(תוכנה_ב=Photoshop_CS3b,'טבלת נתונים ב'!F72=\"+\"),OR(AND(תוכנה_ב=Flash_b,'טבלת נתונים ב'!G72=\"+\"),OR(AND(תוכנה_ב=Nero9_b,'טבלת נתונים ב'!H72=\"+\"),OR(AND(תוכנה_ב=Tree_Viewb,'טבלת נתונים ב'!I72=\"+\"),OR(AND(תוכנה_ב=Audacity,'טבלת נתונים ב'!J72=\"+\"),OR(AND(תוכנה_ב=Gene_Runner,'טבלת נתונים ב'!K72=\"+\"),OR(AND(תוכנה_ב=Natural_Reader,'טבלת נתונים ב'!L72= \"+\"),OR(AND(תוכנה_ב=VLC,'טבלת נתונים ב'!M72=\"+\"),OR(AND(תוכנה_ב=Google_Earth,'טבלת נתונים ב'!N72=\"+\"),OR(AND(תוכנה_ב=Firefox,'טבלת נתונים ב'!O72=\"+\"),OR(AND(תוכנה_ב=Game_Maker,'טבלת נתונים ב'!P72=\"+\"),OR(AND(תוכנה_ב=Greenfoot,'טבלת נתונים ב'!Q72=\"+\"),OR(AND(תוכנה_ב=GeoGebra,'טבלת נתונים ב'!R72=\"+\"),OR(AND(תוכנה_ב=ArcG.I.S,'טבלת נתונים ב'!S72=\"+\"),OR(AND(תוכנה_ב=CLC_Sequence_Viewer,'טבלת נתונים ב'!T72=\"+\"),OR(AND(תוכנה_ב=MEGA_5x,'טבלת נתונים ב'!U72=\"+\"),OR(AND(תוכנה_ב=Chimera,'טבלת נתונים ב'!V72=\"+\"),OR(AND(תוכנה_ב=MultiLab,'טבלת נתונים ב'!W72=\"+\"),OR(AND(תוכנה_ב=Turbo_C,'טבלת נתונים ב'!X72=\"+\"),OR(AND(תוכנה_ב=Chrome,'טבלת נתונים ב'!Y72=\"+\"),OR(AND(תוכנה_ב=CodeBlocks,'טבלת נתונים ב'!Z72=\"+\"),OR(AND(תוכנה_ב=PASCO_Capstoe,'טבלת נתונים ב'!AA72=\"+\")))))))))))))))))))))))))))","v":true}]
[null,null,null,null,null,null,null,null,null,null,null,null,null,null,null,null,null,"lib2-18-2",{"$f":"OR(AND(תוכנה_ב=Office_Microsoft,'טבלת נתונים ב'!B73=\"+\"),OR(AND(תוכנה_ב=Spss_17b,'טבלת נתונים ב'!C73=\"+\"),OR(AND(תוכנה_ב=Babylon_b,'טבלת נתונים ב'!D73=\"+\"),OR(AND(תוכנה_ב=Eclipse_Java_b,'טבלת נתונים ב'!E73=\"+\"),OR(AND(תוכנה_ב=Photoshop_CS3b,'טבלת נתונים ב'!F73=\"+\"),OR(AND(תוכנה_ב=Flash_b,'טבלת נתונים ב'!G73=\"+\"),OR(AND(תוכנה_ב=Nero9_b,'טבלת נתונים ב'!H73=\"+\"),OR(AND(תוכנה_ב=Tree_Viewb,'טבלת נתונים ב'!I73=\"+\"),OR(AND(תוכנה_ב=Audacity,'טבלת נתונים ב'!J73=\"+\"),OR(AND(תוכנה_ב=Gene_Runner,'טבלת נתונים ב'!K73=\"+\"),OR(AND(תוכנה_ב=Natural_Reader,'טבלת נתונים ב'!L73= \"+\"),OR(AND(תוכנה_ב=VLC,'טבלת נתונים ב'!M73=\"+\"),OR(AND(תוכנה_ב=Google_Earth,'טבלת נתונים ב'!N73=\"+\"),OR(AND(תוכנה_ב=Firefox,'טבלת נתונים ב'!O73=\"+\"),OR(AND(תוכנה_ב=Game_Maker,'טבלת נתונים ב'!P73=\"+\"),OR(AND(תוכנה_ב=Greenfoot,'טבלת נתונים ב'!Q73=\"+\"),OR(AND(תוכנה_ב=GeoGebra,'טבלת נתונים ב'!R73=\"+\"),OR(AND(תוכנה_ב=ArcG.I.S,'טבלת נתונים ב'!S73=\"+\"),OR(AND(תוכנה_ב=CLC_Sequence_Viewer,'טבלת נתונים ב'!T73=\"+\"),OR(AND(תוכנה_ב=MEGA_5x,'טבלת נתונים ב'!U73=\"+\"),OR(AND(תוכנה_ב=Chimera,'טבלת נתונים ב'!V73=\"+\"),OR(AND(תוכנה_ב=MultiLab,'טבלת נתונים ב'!W73=\"+\"),OR(AND(תוכנה_ב=Turbo_C,'טבלת נתונים ב'!X73=\"+\"),OR(AND(תוכנה_ב=Chrome,'טבלת נתונים ב'!Y73=\"+\"),OR(AND(תוכנה_ב=CodeBlocks,'טבלת נתונים ב'!Z73=\"+\"),OR(AND(תוכנה_ב=PASCO_Capstoe,'טבלת נתונים ב'!AA73=\"+\")))))))))))))))))))))))))))","v":true}]
[null,null,null,null,null,null,null,null,null,null,null,null,null,null,null,null,null,"lib2-19-1",{"$f":"OR(AND(תוכנה_ב=Office_Microsoft,'טבלת נתונים ב'!B74=\"+\"),OR(AND(תוכנה_ב=Spss_17b,'טבלת נתונים ב'!C74=\"+\"),OR(AND(תוכנה_ב=Babylon_b,'טבלת נתונים ב'!D74=\"+\"),OR(AND(תוכנה_ב=Eclipse_Java_b,'טבלת נתונים ב'!E74=\"+\"),OR(AND(תוכנה_ב=Photoshop_CS3b,'טבלת נתונים ב'!F74=\"+\"),OR(AND(תוכנה_ב=Flash_b,'טבלת נתונים ב'!G74=\"+\"),OR(AND(תוכנה_ב=Nero9_b,'טבלת נתונים ב'!H74=\"+\"),OR(AND(תוכנה_ב=Tree_Viewb,'טבלת נתונים ב'!I74=\"+\"),OR(AND(תוכנה_ב=Audacity,'טבלת נתונים ב'!J74=\"+\"),OR(AND(תוכנה_ב=Gene_Runner,'טבלת נתונים ב'!K74=\"+\"),OR(AND(תוכנה_ב=Natural_Reader,'טבלת נתונים ב'!L74= \"+\"),OR(AND(תוכנה_ב=VLC,'טבלת נתונים ב'!M74=\"+\"),OR(AND(תוכנה_ב=Google_Earth,'טבלת נתונים ב'!N74=\"+\"),OR(AND(תוכנה_ב=Firefox,'טבלת נתונים ב'!O74=\"+\"),OR(AND(תוכנה_ב=Game_Maker,'טבלת נתונים ב'!P74=\"+\"),OR(AND(תוכנה_ב=Greenfoot,'טבלת נתונים ב'!Q74=\"+\"),OR(AND(תוכנה_ב=GeoGebra,'טבלת נתונים ב'!R74=\"+\"),OR(AND(תוכנה_ב=ArcG.I.S,'טבלת נתונים ב'!S74=\"+\"),OR(AND(תוכנה_ב=CLC_Sequence_Viewer,'טבלת נתונים ב'!T74=\"+\"),OR(AND(תוכנה_ב=MEGA_5x,'טבלת נתונים ב'!U74=\"+\"),OR(AND(תוכנה_ב=Chimera,'טבלת נתונים ב'!V74=\"+\"),OR(AND(תוכנה_ב=MultiLab,'טבלת נתונים ב'!W74=\"+\"),OR(AND(תוכנה_ב=Turbo_C,'טבלת נתונים ב'!X74=\"+\"),OR(AND(תוכנה_ב=Chrome,'טבלת נתונים ב'!Y74=\"+\"),OR(AND(תוכנה_ב=CodeBlocks,'טבלת נתונים ב'!Z74=\"+\"),OR(AND(תוכנה_ב=PASCO_Capstoe,'טבלת נתונים ב'!AA74=\"+\")))))))))))))))))))))))))))","v":false}]
[null,null,null,null,null,null,null,null,null,null,null,null,null,null,null,null,null,"lib2-19-2",{"$f":"OR(AND(תוכנה_ב=Office_Microsoft,'טבלת נתונים ב'!B75=\"+\"),OR(AND(תוכנה_ב=Spss_17b,'טבלת נתונים ב'!C75=\"+\"),OR(AND(תוכנה_ב=Babylon_b,'טבלת נתונים ב'!D75=\"+\"),OR(AND(תוכנה_ב=Eclipse_Java_b,'טבלת נתונים ב'!E75=\"+\"),OR(AND(תוכנה_ב=Photoshop_CS3b,'טבלת נתונים ב'!F75=\"+\"),OR(AND(תוכנה_ב=Flash_b,'טבלת נתונים ב'!G75=\"+\"),OR(AND(תוכנה_ב=Nero9_b,'טבלת נתונים ב'!H75=\"+\"),OR(AND(תוכנה_ב=Tree_Viewb,'טבלת נתונים ב'!I75=\"+\"),OR(AND(תוכנה_ב=Audacity,'טבלת נתונים ב'!J75=\"+\"),OR(AND(תוכנה_ב=Gene_Runner,'טבלת נתונים ב'!K75=\"+\"),OR(AND(תוכנה_ב=Natural_Reader,'טבלת נתונים ב'!L75= \"+\"),OR(AND(תוכנה_ב=VLC,'טבלת נתונים ב'!M75=\"+\"),OR(AND(תוכנה_ב=Google_Earth,'טבלת נתונים ב'!N75=\"+\"),OR(AND(תוכנה_ב=Firefox,'טבלת נתונים ב'!O75=\"+\"),OR(AND(תוכנה_ב=Game_Maker,'טבלת נתונים ב'!P75=\"+\"),OR(AND(תוכנה_ב=Greenfoot,'טבלת נתונים ב'!Q75=\"+\"),OR(AND(תוכנה_ב=GeoGebra,'טבלת נתונים ב'!R75=\"+\"),OR(AND(תוכנה_ב=ArcG.I.S,'טבלת נתונים ב'!S75=\"+\"),OR(AND(תוכנה_ב=CLC_Sequence_Viewer,'טבלת נתונים ב'!T75=\"+\"),OR(AND(תוכנה_ב=MEGA_5x,'טבלת נתונים ב'!U75=\"+\"),OR(AND(תוכנה_ב=Chimera,'טבלת נתונים ב'!V75=\"+\"),OR(AND(תוכנה_ב=MultiLab,'טבלת נתונים ב'!W75=\"+\"),OR(AND(תוכנה_ב=Turbo_C,'טבלת נתונים ב'!X75=\"+\"),OR(AND(תוכנה_ב=Chrome,'טבלת נתונים ב'!Y75=\"+\"),OR(AND(תוכנה_ב=CodeBlocks,'טבלת נתונים ב'!Z75=\"+\"),OR(AND(תוכנה_ב=PASCO_Capstoe,'טבלת נתונים ב'!AA75=\"+\")))))))))))))))))))))))))))","v":false}]
[null,null,null,null,null,null,null,null,null,null,null,null,null,null,null,null,null,"lib2-20-1",{"$f":"OR(AND(תוכנה_ב=Office_Microsoft,'טבלת נתונים ב'!B76=\"+\"),OR(AND(תוכנה_ב=Spss_17b,'טבלת נתונים ב'!C76=\"+\"),OR(AND(תוכנה_ב=Babylon_b,'טבלת נתונים ב'!D76=\"+\"),OR(AND(תוכנה_ב=Eclipse_Java_b,'טבלת נתונים ב'!E76=\"+\"),OR(AND(תוכנה_ב=Photoshop_CS3b,'טבלת נתונים ב'!F76=\"+\"),OR(AND(תוכנה_ב=Flash_b,'טבלת נתונים ב'!G76=\"+\"),OR(AND(תוכנה_ב=Nero9_b,'טבלת נתונים ב'!H76=\"+\"),OR(AND(תוכנה_ב=Tree_Viewb,'טבלת נתונים ב'!I76=\"+\"),OR(AND(תוכנה_ב=Audacity,'טבלת נתונים ב'!J76=\"+\"),OR(AND(תוכנה_ב=Gene_Runner,'טבלת נתונים ב'!K76=\"+\"),OR(AND(תוכנה_ב=Natural_Reader,'טבלת נתונים ב'!L76= \"+\"),OR(AND(תוכנה_ב=VLC,'טבלת נתונים ב'!M76=\"+\"),OR(AND(תוכנה_ב=Google_Earth,'טבלת נתונים ב'!N76=\"+\"),OR(AND(תוכנה_ב=Firefox,'טבלת נתונים ב'!O76=\"+\"),OR(AND(תוכנה_ב=Game_Maker,'טבלת נתונים ב'!P76=\"+\"),OR(AND(תוכנה_ב=Greenfoot,'טבלת נתונים ב'!Q76=\"+\"),OR(AND(תוכנה_ב=GeoGebra,'טבלת נתונים ב'!R76=\"+\"),OR(AND(תוכנה_ב=ArcG.I.S,'טבלת נתונים ב'!S76=\"+\"),OR(AND(תוכנה_ב=CLC_Sequence_Viewer,'טבלת נתונים ב'!T76=\"+\"),OR(AND(תוכנה_ב=MEGA_5x,'טבלת נתונים ב'!U76=\"+\"),OR(AND(תוכנה_ב=Chimera,'טבלת נתונים ב'!V76=\"+\"),OR(AND(תוכנה_ב=MultiLab,'טבלת נתונים ב'!W76=\"+\"),OR(AND(תוכנה_ב=Turbo_C,'טבלת נתונים ב'!X76=\"+\"),OR(AND(תוכנה_ב=Chrome,'טבלת נתונים ב'!Y76=\"+\"),OR(AND(תוכנה_ב=CodeBlocks,'טבלת נתונים ב'!Z76=\"+\"),OR(AND(תוכנה_ב=PASCO_Capstoe,'טבלת נתונים ב'!AA76=\"+\")))))))))))))))))))))))))))","v":false}]
[null,null,null,null,null,null,null,null,null,null,null,null,null,null,null,null,null,"lib2-20-2",{"$f":"OR(AND(תוכנה_ב=Office_Microsoft,'טבלת נתונים ב'!B77=\"+\"),OR(AND(תוכנה_ב=Spss_17b,'טבלת נתונים ב'!C77=\"+\"),OR(AND(תוכנה_ב=Babylon_b,'טבלת נתונים ב'!D77=\"+\"),OR(AND(תוכנה_ב=Eclipse_Java_b,'טבלת נתונים ב'!E77=\"+\"),OR(AND(תוכנה_ב=Photoshop_CS3b,'טבלת נתונים ב'!F77=\"+\"),OR(AND(תוכנה_ב=Flash_b,'טבלת נתונים ב'!G77=\"+\"),OR(AND(תוכנה_ב=Nero9_b,'טבלת נתונים ב'!H77=\"+\"),OR(AND(תוכנה_ב=Tree_Viewb,'טבלת נתונים ב'!I77=\"+\"),OR(AND(תוכנה_ב=Audacity,'טבלת נתונים ב'!J77=\"+\"),OR(AND(תוכנה_ב=Gene_Runner,'טבלת נתונים ב'!K77=\"+\"),OR(AND(תוכנה_ב=Natural_Reader,'טבלת נתונים ב'!L77= \"+\"),OR(AND(תוכנה_ב=VLC,'טבלת נתונים ב'!M77=\"+\"),OR(AND(תוכנה_ב=Google_Earth,'טבלת נתונים ב'!N77=\"+\"),OR(AND(תוכנה_ב=Firefox,'טבלת נתונים ב'!O77=\"+\"),OR(AND(תוכנה_ב=Game_Maker,'טבלת נתונים ב'!P77=\"+\"),OR(AND(תוכנה_ב=Greenfoot,'טבלת נתונים ב'!Q77=\"+\"),OR(AND(תוכנה_ב=GeoGebra,'טבלת נתונים ב'!R77=\"+\"),OR(AND(תוכנה_ב=ArcG.I.S,'טבלת נתונים ב'!S77=\"+\"),OR(AND(תוכנה_ב=CLC_Sequence_Viewer,'טבלת נתונים ב'!T77=\"+\"),OR(AND(תוכנה_ב=MEGA_5x,'טבלת נתונים ב'!U77=\"+\"),OR(AND(תוכנה_ב=Chimera,'טבלת נתונים ב'!V77=\"+\"),OR(AND(תוכנה_ב=MultiLab,'טבלת נתונים ב'!W77=\"+\"),OR(AND(תוכנה_ב=Turbo_C,'טבלת נתונים ב'!X77=\"+\"),OR(AND(תוכנה_ב=Chrome,'טבלת נתונים ב'!Y77=\"+\"),OR(AND(תוכנה_ב=CodeBlocks,'טבלת נתונים ב'!Z77=\"+\"),OR(AND(תוכנה_ב=PASCO_Capstoe,'טבלת נתונים ב'!AA77=\"+\")))))))))))))))))))))))))))","v":false}]
[null,null,null,null,null,null,null,null,null,null,null,null,null,null,null,null,null,"lib2-21-1",{"$f":"OR(AND(תוכנה_ב=Office_Microsoft,'טבלת נתונים ב'!B78=\"+\"),OR(AND(תוכנה_ב=Spss_17b,'טבלת נתונים ב'!C78=\"+\"),OR(AND(תוכנה_ב=Babylon_b,'טבלת נתונים ב'!D78=\"+\"),OR(AND(תוכנה_ב=Eclipse_Java_b,'טבלת נתונים ב'!E78=\"+\"),OR(AND(תוכנה_ב=Photoshop_CS3b,'טבלת נתונים ב'!F78=\"+\"),OR(AND(תוכנה_ב=Flash_b,'טבלת נתונים ב'!G78=\"+\"),OR(AND(תוכנה_ב=Nero9_b,'טבלת נתונים ב'!H78=\"+\"),OR(AND(תוכנה_ב=Tree_Viewb,'טבלת נתונים ב'!I78=\"+\"),OR(AND(תוכנה_ב=Audacity,'טבלת נתונים ב'!J78=\"+\"),OR(AND(תוכנה_ב=Gene_Runner,'טבלת נתונים ב'!K78=\"+\"),OR(AND(תוכנה_ב=Natural_Reader,'טבלת נתונים ב'!L78= \"+\"),OR(AND(תוכנה_ב=VLC,'טבלת נתונים ב'!M78=\"+\"),OR(AND(תוכנה_ב=Google_Earth,'טבלת נתונים ב'!N78=\"+\"),OR(AND(תוכנה_ב=Firefox,'טבלת נתונים ב'!O78=\"+\"),OR(AND(תוכנה_ב=Game_Maker,'טבלת נתונים ב'!P78=\"+\"),OR(AND(תוכנה_ב=Greenfoot,'טבלת נתונים ב'!Q78=\"+\"),OR(AND(תוכנה_ב=GeoGebra,'טבלת נתונים ב'!R78=\"+\"),OR(AND(תוכנה_ב=ArcG.I.S,'טבלת נתונים ב'!S78=\"+\"),OR(AND(תוכנה_ב=CLC_Sequence_Viewer,'טבלת נתונים ב'!T78=\"+\"),OR(AND(תוכנה_ב=MEGA_5x,'טבלת נתונים ב'!U78=\"+\"),OR(AND(תוכנה_ב=Chimera,'טבלת נתונים ב'!V78=\"+\"),OR(AND(תוכנה_ב=MultiLab,'טבלת נתונים ב'!W78=\"+\"),OR(AND(תוכנה_ב=Turbo_C,'טבלת נתונים ב'!X78=\"+\"),OR(AND(תוכנה_ב=Chrome,'טבלת נתונים ב'!Y78=\"+\"),OR(AND(תוכנה_ב=CodeBlocks,'טבלת נתונים ב'!Z78=\"+\"),OR(AND(תוכנה_ב=PASCO_Capstoe,'טבלת נתונים ב'!AA78=\"+\")))))))))))))))))))))))))))","v":false}]
[null,null,null,null,null,null,null,null,null,null,null,null,null,null,null,null,null,"lib2-21-2",{"$f":"OR(AND(תוכנה_ב=Office_Microsoft,'טבלת נתונים ב'!B79=\"+\"),OR(AND(תוכנה_ב=Spss_17b,'טבלת נתונים ב'!C79=\"+\"),OR(AND(תוכנה_ב=Babylon_b,'טבלת נתונים ב'!D79=\"+\"),OR(AND(תוכנה_ב=Eclipse_Java_b,'טבלת נתונים ב'!E79=\"+\"),OR(AND(תוכנה_ב=Photoshop_CS3b,'טבלת נתונים ב'!F79=\"+\"),OR(AND(תוכנה_ב=Flash_b,'טבלת נתונים ב'!G79=\"+\"),OR(AND(תוכנה_ב=Nero9_b,'טבלת נתונים ב'!H79=\"+\"),OR(AND(תוכנה_ב=Tree_Viewb,'טבלת נתונים ב'!I79=\"+\"),OR(AND(תוכנה_ב=Audacity,'טבלת נתונים ב'!J79=\"+\"),OR(AND(תוכנה_ב=Gene_Runner,'טבלת נתונים ב'!K79=\"+\"),OR(AND(תוכנה_ב=Natural_Reader,'טבלת נתונים ב'!L79= \"+\"),OR(AND(תוכנה_ב=VLC,'טבלת נתונים ב'!M79=\"+\"),OR(AND(תוכנה_ב=Google_Earth,'טבלת נתונים ב'!N79=\"+\"),OR(AND(תוכנה_ב=Firefox,'טבלת נתונים ב'!O79=\"+\"),OR(AND(תוכנה_ב=Game_Maker,'טבלת נתונים ב'!P79=\"+\"),OR(AND(תוכנה_ב=Greenfoot,'טבלת נתונים ב'!Q79=\"+\"),OR(AND(תוכנה_ב=GeoGebra,'טבלת נתונים ב'!R79=\"+\"),OR(AND(תוכנה_ב=ArcG.I.S,'טבלת נתונים ב'!S79=\"+\"),OR(AND(תוכנה_ב=CLC_Sequence_Viewer,'טבלת נתונים ב'!T79=\"+\"),OR(AND(תוכנה_ב=MEGA_5x,'טבלת נתונים ב'!U79=\"+\"),OR(AND(תוכנה_ב=Chimera,'טבלת נתונים ב'!V79=\"+\"),OR(AND(תוכנה_ב=MultiLab,'טבלת נתונים ב'!W79=\"+\"),OR(AND(תוכנה_ב=Turbo_C,'טבלת נתונים ב'!X79=\"+\"),OR(AND(תוכנה_ב=Chrome,'טבלת נתונים ב'!Y79=\"+\"),OR(AND(תוכנה_ב=CodeBlocks,'טבלת נתונים ב'!Z79=\"+\"),OR(AND(תוכנה_ב=PASCO_Capstoe,'טבלת נתונים ב'!AA79=\"+\")))))))))))))))))))))))))))","v":false}]
[null,null,null,null,null,null,null,null,null,null,null,null,null,null,null,null,null,"lib2-22-1",{"$f":"OR(AND(תוכנה_ב=Office_Microsoft,'טבלת נתונים ב'!B80=\"+\"),OR(AND(תוכנה_ב=Spss_17b,'טבלת נתונים ב'!C80=\"+\"),OR(AND(תוכנה_ב=Babylon_b,'טבלת נתונים ב'!D80=\"+\"),OR(AND(תוכנה_ב=Eclipse_Java_b,'טבלת נתונים ב'!E80=\"+\"),OR(AND(תוכנה_ב=Photoshop_CS3b,'טבלת נתונים ב'!F80=\"+\"),OR(AND(תוכנה_ב=Flash_b,'טבלת נתונים ב'!G80=\"+\"),OR(AND(תוכנה_ב=Nero9_b,'טבלת נתונים ב'!H80=\"+\"),OR(AND(תוכנה_ב=Tree_Viewb,'טבלת נתונים ב'!I80=\"+\"),OR(AND(תוכנה_ב=Audacity,'טבלת נתונים ב'!J80=\"+\"),OR(AND(תוכנה_ב=Gene_Runner,'טבלת נתונים ב'!K80=\"+\"),OR(AND(תוכנה_ב=Natural_Reader,'טבלת נתונים ב'!L80= \"+\"),OR(AND(תוכנה_ב=VLC,'טבלת נתונים ב'!M80=\"+\"),OR(AND(תוכנה_ב=Google_Earth,'טבלת נתונים ב'!N80=\"+\"),OR(AND(תוכנה_ב=Firefox,'טבלת נתונים ב'!O80=\"+\"),OR(AND(תוכנה_ב=Game_Maker,'טבלת נתונים ב'!P80=\"+\"),OR(AND(תוכנה_ב=Greenfoot,'טבלת נתונים ב'!Q80=\"+\"),OR(AND(תוכנה_ב=GeoGebra,'טבלת נתונים ב'!R80=\"+\"),OR(AND(תוכנה_ב=ArcG.I.S,'טבלת נתונים ב'!S80=\"+\"),OR(AND(תוכנה_ב=CLC_Sequence_Viewer,'טבלת נתונים ב'!T80=\"+\"),OR(AND(תוכנה_ב=MEGA_5x,'טבלת נתונים ב'!U80=\"+\"),OR(AND(תוכנה_ב=Chimera,'טבלת נתונים ב'!V80=\"+\"),OR(AND(תוכנה_ב=MultiLab,'טבלת נתונים ב'!W80=\"+\"),OR(AND(תוכנה_ב=Turbo_C,'טבלת נתונים ב'!X80=\"+\"),OR(AND(תוכנה_ב=Chrome,'טבלת נתונים ב'!Y80=\"+\"),OR(AND(תוכנה_ב=CodeBlocks,'טבלת נתונים ב'!Z80=\"+\"),OR(AND(תוכנה_ב=PASCO_Capstoe,'טבלת נתונים ב'!AA80=\"+\")))))))))))))))))))))))))))","v":false}]
[null,null,null,null,null,null,null,null,null,null,null,null,null,null,null,null,null,"lib2-22-2",{"$f":"OR(AND(תוכנה_ב=Office_Microsoft,'טבלת נתונים ב'!B81=\"+\"),OR(AND(תוכנה_ב=Spss_17b,'טבלת נתונים ב'!C81=\"+\"),OR(AND(תוכנה_ב=Babylon_b,'טבלת נתונים ב'!D81=\"+\"),OR(AND(תוכנה_ב=Eclipse_Java_b,'טבלת נתונים ב'!E81=\"+\"),OR(AND(תוכנה_ב=Photoshop_CS3b,'טבלת נתונים ב'!F81=\"+\"),OR(AND(תוכנה_ב=Flash_b,'טבלת נתונים ב'!G81=\"+\"),OR(AND(תוכנה_ב=Nero9_b,'טבלת נתונים ב'!H81=\"+\"),OR(AND(תוכנה_ב=Tree_Viewb,'טבלת נתונים ב'!I81=\"+\"),OR(AND(תוכנה_ב=Audacity,'טבלת נתונים ב'!J81=\"+\"),OR(AND(תוכנה_ב=Gene_Runner,'טבלת נתונים ב'!K81=\"+\"),OR(AND(תוכנה_ב=Natural_Reader,'טבלת נתונים ב'!L81= \"+\"),OR(AND(תוכנה_ב=VLC,'טבלת נתונים ב'!M81=\"+\"),OR(AND(תוכנה_ב=Google_Earth,'טבלת נתונים ב'!N81=\"+\"),OR(AND(תוכנה_ב=Firefox,'טבלת נתונים ב'!O81=\"+\"),OR(AND(תוכנה_ב=Game_Maker,'טבלת נתונים ב'!P81=\"+\"),OR(AND(תוכנה_ב=Greenfoot,'טבלת נתונים ב'!Q81=\"+\"),OR(AND(תוכנה_ב=GeoGebra,'טבלת נתונים ב'!R81=\"+\"),OR(AND(תוכנה_ב=ArcG.I.S,'טבלת נתונים ב'!S81=\"+\"),OR(AND(תוכנה_ב=CLC_Sequence_Viewer,'טבלת נתונים ב'!T81=\"+\"),OR(AND(תוכנה_ב=MEGA_5x,'טבלת נתונים ב'!U81=\"+\"),OR(AND(תוכנה_ב=Chimera,'טבלת נתונים ב'!V81=\"+\"),OR(AND(תוכנה_ב=MultiLab,'טבלת נתונים ב'!W81=\"+\"),OR(AND(תוכנה_ב=Turbo_C,'טבלת נתונים ב'!X81=\"+\"),OR(AND(תוכנה_ב=Chrome,'טבלת נתונים ב'!Y81=\"+\"),OR(AND(תוכנה_ב=CodeBlocks,'טבלת נתונים ב'!Z81=\"+\"),OR(AND(תוכנה_ב=PASCO_Capstoe,'טבלת נתונים ב'!AA81=\"+\")))))))))))))))))))))))))))","v":false}]

{"sheet":"טבלת נתונים ב","index":1,"n_rows":81,"n_cols":27,"rows_kept":81,"cut":false,"hidden":true,"merged":[]}
["Column1","Column2","Column3","Column4","Column5","Column6","Column7","Column8","Column9","Column10","Column11","Column12","Column13","Column14","Column15","Column16","Column17","Column18","Column19","Column20","Column21","Column22","Column23","Column24","Column25","Column26","Column27"]
["18/11/2018"]
["שם המחשב","Office 2016","Spss 24","Babylon","Eclipse-Java","Photoshop CS3","Flash C3 prof","Nero9","Tree View","Audacity","Gene Runner","Natural Reader","VLC 2.4.2","Google Earth","Firefox","Game Maker","Greenfoot","GeoGebra","ArcG.I.S","CLC Sequence Viewer","MEGA 5.1","Chimera","MultiLab","Turbo C (TC)","Google Chrome","CodeBlocks","PASCO Capstone"]
["lib2-1-1","+","+","+","+","+","+","+","+","+",null,"+","+","+","+","+","+","+",null,"+","+","+",null,"+","+","+"]
["lib2-1-2","+","+","+","+","+","+","+","+","+",null,"+","+","+","+","+","+","+",null,"+","+","+",null,"+","+"]
["lib2-1-3","+","+",null,"+","+","+","+","+","+",null,"+","+","+","+","+","+","+",null,"+","+","+",null,"+","+"]
["lib2-1-4","+","+",null,"+","+","+",null,"+","+",null,"+","+","+","+","+","+","+",null,"+","+","+",null,"+","+"]
["lib2-1-5","+","+","+","+","+","+",null,"+","+",null,"+","+","+","+","+","+","+",null,"+","+","+",null,"+","+","+"]
["lib2-1-6","+","+",null,"+",null,null,null,"+","+",null,"+","+","+","+","+","+","+",null,"+","+","+",null,"+","+"]
["lib2-1-7","+","+","+","+",null,null,null,"+","+",null,"+","+","+","+","+","+","+",null,"+","+","+",null,"+","+"]
["lib2-1-8","+","+",null,"+",null,null,null,"+","+",null,"+","+","+","+","+","+","+",null,"+","+","+",null,"+","+"]
["lib2-2-1","+","+",null,"+",null,null,null,"+","+",null,"+","+","+","+","+","+","+",null,"+","+","+",null,"+","+"]
["lib2-2-2","+","+",null,"+",null,null,null,"+","+",null,"+","+","+","+","+","+","+",null,"+","+","+",null,"+","+","+"]
["lib2-2-3","+","+",null,"+",null,null,null,"+","+",null,"+","+","+","+","+","+","+",null,"+","+","+",null,"+","+"]
["lib2-2-4","+","+","+","+",null,null,null,"+","+",null,"+","+","+","+","+","+","+",null,"+","+","+",null,"+","+","+"]
["lib2-2-5","+","+",null,"+",null,null,null,"+","+",null,"+","+","+","+","+","+","+",null,"+","+","+",null,"+","+"]
["lib2-2-6","+","+","+","+",null,null,null,"+","+",null,"+","+","+","+","+","+","+",null,"+","+","+",null,"+","+"]
["lib2-2-7","+","+",null,"+",null,null,null,"+","+",null,"+","+","+","+","+","+","+",null,"+","+","+",null,"+","+"]
["lib2-2-8","+","+","+","+",null,null,null,"+","+",null,"+","+","+","+","+","+","+",null,"+","+","+",null,"+","+"]
["lib2-3-1","+","+",null,"+",null,null,null,"+","+",null,"+","+","+","+","+","+","+",null,"+","+","+",null,"+","+"]
["lib2-3-2","+","+","+","+",null,null,null,"+","+",null,"+","+","+","+","+","+","+",null,"+","+","+",null,"+","+"]
["lib2-3-3","+","+",null,"+",null,null,null,"+","+",null,"+","+","+","+","+","+","+",null,"+","+","+",null,"+","+"]
["lib2-3-4","+","+",null,"+",null,null,null,"+","+",null,"+","+","+","+","+","+","+",null,"+","+","+",null,"+","+"]
["lib2-3-5","+","+","+","+",null,null,null,"+","+",null,"+","+","+","+","+","+","+",null,"+","+","+",null,"+","+"]
["lib2-3-6","+","+","+","+",null,null,null,"+","+",null,"+","+","+","+","+","+","+",null,"+","+","+",null,"+","+"]
["lib2-3-7","+","+",null,"+",null,null,null,"+","+",null,"+","+","+","+","+","+","+",null,"+","+","+",null,"+","+"]
["lib2-3-8","+","+","+","+",null,null,null,"+","+",null,"+","+","+","+","+","+","+",null,"+","+","+",null,"+","+"]
["lib2-4-1","+","+",null,"+",null,null,null,"+","+",null,"+","+","+","+","+","+","+",null,"+","+","+",null,"+","+"]
["lib2-4-2","+","+","+","+",null,null,null,"+","+",null,"+","+","+","+","+","+","+",null,"+","+","+",null,"+","+"]
["lib2-4-3","+","+",null,"+",null,null,null,"+","+",null,"+","+","+","+","+","+","+",null,"+","+","+",null,"+","+"]
["lib2-4-4","+","+","+","+",null,null,null,"+","+",null,"+","+","+","+","+","+","+",null,"+","+","+",null,"+","+"]
["lib2-4-5","+","+",null,"+",null,null,null,"+","+",null,"+","+","+","+","+","+","+",null,"+","+","+",null,"+","+"]
["lib2-4-6","+","+",null,"+",null,null,null,"+","+",null,"+","+","+","+","+","+","+",null,"+","+","+",null,"+","+"]
["lib2-4-7","+","+","+","+",null,null,null,"+","+",null,"+","+","+","+","+","+","+",null,"+","+","+",null,"+","+"]
["lib2-4-8","+","+","+","+",null,null,null,"+","+",null,"+","+","+","+","+","+","+",null,"+","+","+",null,"+","+"]
["lib2-5-1","+","+","+","+",null,null,null,"+","+",null,"+","+","+","+","+","+","+",null,"+","+","+",null,"+","+"]
["lib2-5-2","+","+",null,"+",null,null,null,"+","+",null,"+","+","+","+","+","+","+",null,"+","+","+",null,"+","+"]
["lib2-5-3","+","+",null,"+",null,null,null,"+","+",null,"+","+","+","+","+","+","+",null,"+","+","+",null,"+","+"]
["lib2-5-4","+","+","+","+",null,null,null,"+","+",null,"+","+","+","+","+","+","+",null,"+","+","+",null,"+","+"]
["lib2-5-5","+","+",null,"+",null,null,null,"+","+",null,"+","+","+","+","+","+","+",null,"+","+","+",null,"+","+"]
["lib2-5-6","+","+",null,"+",null,null,null,"+","+",null,"+","+","+","+","+","+","+",null,"+","+","+",null,"+","+"]
["lib2-5-7","+","+",null,"+",null,null,null,"+","+",null,"+","+","+","+","+","+","+",null,"+","+","+",null,"+","+"]
["lib2-5-8","+","+","+","+",null,null,null,"+","+",null,"+","+","+","+","+","+","+",null,"+","+","+",null,"+","+"]
["lib2-6-1","+","+","+","+",null,null,null,"+","+",null,"+","+","+","+","+","+","+",null,"+","+","+",null,"+","+"]
["lib2-6-2","+","+","+","+",null,null,null,"+","+",null,"+","+","+","+","+","+","+",null,"+","+","+",null,"+","+"]
["lib2-6-3","+","+","+","+",null,null,null,"+","+",null,"+","+","+","+","+","+","+",null,"+","+","+","+","+","+"]
["lib2-6-4","+","+",null,"+",null,null,null,"+","+",null,"+","+","+","+","+","+","+",null,"+","+","+",null,"+","+"]
["lib2-6-5","+","+",null,"+",null,null,null,"+","+",null,"+","+","+","+","+","+","+",null,"+","+","+",null,"+","+"]
["lib2-6-6","+","+","+","+",null,null,null,"+","+",null,"+","+","+","+","+","+","+",null,"+","+","+",null,"+","+"]
["lib2-6-8","+","+",null,"+",null,null,null,"+","+",null,"+","+","+","+","+","+","+",null,"+","+","+",null,"+","+"]
["lib2-7-1","+","+","+","+",null,null,null,"+","+","+","+","+","+","+","+","+","+",null,"+","+","+","+","+","+"]
["lib2-7-2","+","+","+","+",null,null,null,"+","+","+","+","+","+","+","+","+","+",null,"+","+","+","+","+","+"]
["lib2-7-3","+","+",null,"+",null,null,null,"+","+","+","+","+","+","+","+","+","+",null,"+","+","+",null,"+","+"]
["lib2-7-6","+","+",null,"+",null,null,null,"+","+",null,"+","+","+","+","+","+","+",null,"+","+","+",null,"+","+"]
["lib2-7-8","+","+",null,"+",null,null,null,"+","+",null,"+","+","+","+","+","+","+",null,"+","+","+",null,"+","+"]
["lib2-8-1","+","+",null,"+",null,null,null,"+","+","+","+","+","+","+","+","+","+",null,"+","+","+","+","+","+"]
["lib2-8-2","+","+",null,"+",null,null,null,"+","+","+","+","+","+","+","+","+","+",null,"+","+","+","+","+","+"]
["lib2-8-3","+","+",null,"+",null,null,null,"+","+","+","+","+","+","+","+","+","+",null,"+","+","+","+","+","+"]
["lib2-8-6","+","+",null,"+",null,null,null,"+","+",null,"+","+","+","+","+","+","+",null,"+","+","+",null,"+","+"]
["lib2-8-8","+","+",null,"+",null,null,null,"+","+",null,"+","+","+","+","+","+","+",null,"+","+","+",null,"+","+"]
["מחשב סריקה lib2-11-2 ","+","+",null,"+","+",null,null,"+","+",null,"+","+","+","+","+","+","+","+","+","+","+",null,"+","+","+","+"]
["מחשב סריקה lib2-12-2 ","+","+",null,"+","+",null,null,"+","+",null,"+","+","+","+","+","+","+","+","+","+","+",null,"+","+","+","+"]
["lib2-13-2","+","+",null,"+",null,null,null,"+","+",null,"+","+","+","+","+","+","+","+","+","+","+",null,"+","+","+","+"]
["lib2-14-1","+","+",null,"+",null,null,null,"+","+",null,"+","+","+","+","+","+","+","+","+","+","+",null,"+","+","+","+"]
["lib2-14-2","+","+",null,"+",null,null,null,"+","+",null,"+","+","+","+","+","+","+","+","+","+","+",null,"+","+","+","+"]
["lib2-15-1","+","+",null,"+",null,null,null,"+","+",null,"+","+","+","+","+","+","+","+","+","+","+",null,"+","+","+","+"]
["lib2-15-2","+","+",null,"+",null,null,null,"+","+",null,"+","+","+","+","+","+","+","+","+","+","+",null,"+","+","+","+"]
["lib2-16-1","+","+","+","+",null,null,null,"+","+",null,"+","+","+","+","+","+","+","+","+","+","+",null,"+","+","+","+"]
["lib2-16-2","+","+","+","+",null,null,null,"+","+",null,"+","+","+","+","+","+","+","+","+","+","+",null,"+","+","+","+"]
["lib2-17-1","+","+","+","+",null,null,null,"+","+",null,"+","+","+","+","+","+","+","+","+","+","+",null,"+","+","+","+"]
["lib2-17-2","+","+","+","+",null,null,null,"+","+",null,"+","+","+","+","+","+","+","+","+","+","+",null,"+","+","+","+"]
["lib2-18-1","+","+","+","+",null,null,null,"+","+",null,"+","+","+","+","+","+","+","+","+","+","+",null,"+","+","+","+"]
["lib2-18-2","+","+","+","+",null,null,null,"+","+",null,"+","+","+","+","+","+","+","+","+","+","+",null,"+","+","+","+"]
["lib2-19-1","+","+",null,"+",null,null,null,"+","+",null,"+","+","+","+","+","+","+","+","+","+","+",null,"+","+"]
["lib2-19-2","+","+",null,"+",null,null,null,"+","+",null,"+","+","+","+","+","+","+","+","+","+","+",null,"+","+"]
["lib2-20-1","+","+",null,"+",null,null,null,"+","+",null,"+","+","+","+","+","+","+","+","+","+","+",null,"+","+"]
["lib2-20-2","+","+",null,"+",null,null,null,"+","+",null,"+","+","+","+","+","+","+","+","+","+","+",null,"+","+"]
["lib2-21-1","+","+",null,"+",null,null,null,"+","+",null,"+","+","+","+","+","+","+","+","+","+","+",null,"+","+"]
["lib2-21-2","+","+",null,"+",null,null,null,"+","+",null,"+","+","+","+","+","+","+","+","+","+","+",null,"+","+"]
["lib2-22-1","+","+",null,"+",null,null,null,"+","+",null,"+","+","+","+","+","+","+","+","+","+","+",null,"+","+"]
["lib2-22-2","+","+",null,"+",null,null,null,"+","+",null,"+","+","+","+","+","+","+","+","+","+","+",null,"+","+"]